Workbook

Sheet Inicio
A1: PLAN DE ACCIÓN 2024
A2: UNIDAD DE PLANEACIÓN MINERO ENERGÉTICA
A3: Modificado mediante Comité de Gestión y Desempeño No.5 del 30/10/2024 (Sesión 1) y 12/11/2024 (Sesión 2)
D4: De click sobre la dependencia que desee consultar
P6: AVANCE
O30: Entregables | P30: Actividades
P31: Con rezago | Q31: Ejecutada | R31: Total
O32: 146 | P32: 18 | Q32: 369 | R32: 387
O34: 146 | P34: 18 | Q34: 369 | R34: 387

Sheet DG-ET
C2: FORMATO FORMULACIÓN Y REPORTE DE AVANCES DEL PLAN DE ACCIÓN UNIDAD DE PLANEACIÓN MINERO ENERGÉTICA - UPME | AG2: Código: F-DE-09
AG4: Versión No. 01
D7: DEPENDENCIA FORMULADORA | E7: Dirección General - Enfoque Territorial
B9: ARTICULACIÓN CON PND 2022 - 2026 | D9: PLAN ESTRATÉGICO SECTORIAL-PES | E9: ASOCIACIÓN CON LA PLANEACIÓN ESTRATÉGICA INSTITUCIONAL -PEI | H9: 5. OTROS PLANES | I9: 3. FORMULACIÓN DE PLAN DE ACCIÓN | Q9: PROGRAMACIÓN DE LA EJECUCIÓN DE LA ACTIVIDAD | AC9: VALIDACIÓN DE LA PROGRAMACIÓN | AD9: 4. FINANCIACIÓN | AF9: ASOCIACIÓN CON LAS POLÍTICAS DE MIPG | AH9: REPORTE MENSUAL DE AVANCES
Q11: TRIMESTRE I | T11: TRIMESTRE Il | W11: TRIMESTRE Ill | Z11: TRIMESTRE IV | AH11: ENERO | AJ11: FEBRERO | AL11: MARZO | AO11: AVANCE | AQ11: ABRIL | AS11: MAYO | AU11: JUNIO | AX11: AVANCE | AZ11: JULIO | BB11: AGOSTO | BD11: SEPTIEMBRE | BG11: AVANCE | BI11: OCTUBRE | BK11: NOVIEMBRE | BM11: DICIEMBRE | BP11: AVANCE
B12: TRANSFORMACIÓN | C12: CATALIZADOR | D12: COMPROMISO PES | E12: OBJETIVO ESTRATÉGICO INSTITUCIONAL | F12: ESTRATEGIA PEI | G12: COMPROMISO PEI | H12: PLAN INSTITUCIONAL RELACIONADO (Decreto 612 del 2018) | I12: ID del Entregable | J12: ENTREGABLE | K12: ENTREGABLES "OTROS PLANES" | L12: META | M12: UNIDAD DE MEDIDA O CARÁCTERÍSTICA | N12: PONDERACIÓN DEL ENTREGABLE | O12: ID de la Actividad | P12: ACTIVIDADES CLAVE PARA MATERIALIZAR DEL PRODUCTO | Q12: ENE | R12: FEB | S12: MAR | T12: ABR | U12: MAY | V12: JUN | W12: JUL | X12: AGO | Y12: SEP | Z12: OCT | AA12: NOV | AB12: DIC | AC12: VALIDACIÓN DE LA PROGRAMACIÓN | AD12: PROYECTOS DE INVERSIÓN ASOCIADO - LISTADO | AE12: ÍTEM(S) DEL PAA ASOCIADOS | AF12: 1ª POLÍTICA MIPG | AG12: 2ª POLÍTICA MIPG | AH12: PORCENTAJE DE AVANCE | AI12: DESCRIPCIÓN DEL AVANCE | AJ12: PORCENTAJE DE AVANCE (Acumulado) | AK12: DESCRIPCIÓN DEL AVANCE | AL12: PORCENTAJE DE AVANCE (Acumulado) | AM12: DESCRIPCIÓN DEL AVANCE | AN12: Proyectado ponderado | AO12: Avance TRIMESTRE I | AP12: Ejecutado ponderado | AQ12: PORCENTAJE DE AVANCE (Acumulado) | AR12: DESCRIPCIÓN DEL AVANCE | AS12: PORCENTAJE DE AVANCE (Acumulado) | AT12: DESCRIPCIÓN DEL AVANCE | AU12: PORCENTAJE DE AVANCE (Acumulado a Junio) | AV12: DESCRIPCIÓN DEL AVANCE (Acumulado a Junio) | AW12: Proyectado ponderado | AX12: TRIM. II | AY12: Ejecutado ponderado | AZ12: PORCENTAJE DE AVANCE (Acumulado a Julio) | BA12: DESCRIPCIÓN DEL AVANCE (Acumulado a Julio) | BB12: PORCENTAJE DE AVANCE (Acumulado a Agosto) | BC12: DESCRIPCIÓN DEL AVANCE (Acumulado a Agosto) | BD12: PORCENTAJE DE AVANCE (Acumulado a Septiembre) | BE12: DESCRIPCIÓN DEL AVANCE (Acumulado a Septiembre) | BF12: Proyectado ponderado | BG12: TRIM. III | BH12: Ejecutado ponderado | BI12: PORCENTAJE DE AVANCE (Acumulado a Octubre) | BJ12: DESCRIPCIÓN DEL AVANCE (Acumulado a Octubre) | BK12: PORCENTAJE DE AVANCE (Acumulado a Noviembre) | BL12: DESCRIPCIÓN DEL AVANCE (Acumulado a Noviembre) | BM12: PORCENTAJE DE AVANCE (Acumulado a Diciembre) | BN12: DESCRIPCIÓN DEL AVANCE (Acumulado a Diciembre) | BO12: Proyectado ponderado | BP12: TRIM. IV | BQ12: Ejecutado ponderado
B13: 4. Internacionalización, transformación productiva para la vida y acción climática | C13: 2. Desarrollo económico a partir de eficiencia energética, nuevos energéticos y minerales estratégicos para la transición. | E13: Fortalecer la planeación y la investigación con estándares científicos, integrando los componentes social, ambiental, de cambio climático, territorial, étnico, de género, diferencial desde una mirada interseccional para la Transición Energética Justa | F13: Generar nuevas metodologías, modelos de optimización y adopción de tecnologías adecuados a la realidad del país, en términos de normatividad, regulación, operación del sistema energético y necesidades de señales de política energética | G13: Implementar una estrategia de integración de la perspectiva de género en los procesos técnicos de la UPME | I13: 100-1 | J13: Estrategia de integración de la perspectiva de género en los procesos técnicos de la UPME, implementada | L13: 1 | M13: Estrategia | N13: 0.2 | O13: 100-1-1 | P13: Socializar productos realizados en 2023 con las Subdirecciones de la UPME | U13: 1 | AC13: =SUM(Q13:AB13) -> 1 | AD13: Fortalecimiento del levantamiento, gestión y apropiación de la información para la planeación del sector minero energético con enfoque territorial Nacional | AE13: 100-42, 100-5, 100-17, 100-22, 100- 38,100-19,100-29, 100-39. | AH13: 0 | AI13: Para este mes no se programaron actividades | AJ13: 0 | AK13: Para este mes no se programaron actividades | AN13: =SUM(Q13:S13)*($N$13/5) -> 0 | AP13: =AL13*($N$13/3) -> 0 | AS13: 1 | AT13: Se programo y ejecutó CAFÉS UPME : 1.Socialización resultados convenio UDEA: 28 de febrero de 2024 2.Socialización resultados convenio UTP: 3 de abril de 2024 3. Socialización resultados convenio UNIANDES: 24 de abril de 2024 4. Socialización resultados convenio UNIMAGDALENA: 29 de mayo de 2024 5. Socialización resultados convenio PARES: 26 de junio de 2023 . donde se convoco a las subdirecciones y de mas interesados | AU13: 1 | AV13: Ejecutada | AW13: =SUM(Q13:V13)*($N$13/5) -> 0.04 | AX13: Ejecutada | AY13: =AU13*($N$13/5) -> 0.04 | AZ13: 1 | BA13: Ejecutada | BB13: 1 | BC13: Ejecutado | BD13: 1 | BE13: Ejecutado | BF13: =SUM(Q13:Y13)*($N$13/5) -> 0.04 | BG13: Ejecutada | BH13: =BD13*($N$13/5) -> 0.04 | BI13: 1 | BJ13: Ejecutado | BK13: 1 | BL13: Ejecutado | BM13: 1 | BN13: Ejecutado | BO13: =SUM(Q13:AB13)*($N$13/5) -> 0.04 | BP13: =IF(BQ13=BO13,"Ejecutada",IF(BQ13<BO13,"Con rezago","REVISAR")) -> Ejecutada | BQ13: =BM13*($N$13/5) -> 0.04
E14: Fortalecer la planeación y la investigación con estándares científicos, integrando los componentes social, ambiental, de cambio climático, territorial, étnico, de género, diferencial desde una mirada interseccional para la Transición Energética Justa | F14: Generar nuevas metodologías, modelos de optimización y adopción de tecnologías adecuados a la realidad del país, en términos de normatividad, regulación, operación del sistema energético y necesidades de señales de política energética | G14: Implementar una estrategia de integración de la perspectiva de género en los procesos técnicos de la UPME | J14: Estrategia de integración de la perspectiva de género en los procesos técnicos de la UPME, implementada | O14: 100-1-2 | P14: Definir con cada Subdirección qué variables o elementos relacionados con género se incluirán en sus documentos de planeación | V14: 1 | AC14: =SUM(Q14:AB14) -> 1 | AH14: 0 | AI14: Para este mes no se programaron actividades | AJ14: 0 | AK14: Para este mes no se programaron actividades | AN14: =SUM(Q14:S14)*($N$13/5) -> 0 | AO14: =IF(AL14="","",IF(AL14=SUM(S14:T14),"Al dia",IF(AL14<SUM(S14:T14),"Con Rezago",IF(AL14>SUM(S14:T14),"Sobre ejecutada","")))) ->  | AP14: =AL14*($N$13/3) -> 0 | AU14: 0.25 | AV14: Se avanzó en la definición de variables de género con la Subdirección de Hidrocarburos, correspondientes al Plan Nacional de Sustitución de Leña. | AW14: =SUM(Q14:V14)*($N$13/5) -> 0.04 | AX14: Con rezago | AY14: =AU14*($N$13/5) -> 0.01 | AZ14: 0.85 | BA14: Durante el periodo correspondiente, se han llevado a cabo varias actividades enfocadas en definir con cada Subdirección las variables o elementos relacionados con género que se incluirán en sus documentos de planeación. Se presentó el plan indicativo de abastecimiento de combustibles líquidos, en el cual se solicitó la integración de variables de género. Se realizaron reuniones de preparación y finalización, en las cuales se presentaron los ajustes al documento, incorporando las variables de género solicitadas por la Subdirección de Hidrocarburos. Además, se elaboraron ajustes a la propuesta de análisis de género para el Plan Nacional de Suministro de Líquidos (PNSL), corrigiendo la argumentación, las tablas de datos y el estilo del documento "Líneas de acción desde el enfoque de género en la UPME." Paralelamente, se preparó la propuesta de formación y se desarrolló el contenido y la metodología para el primer encuentro, a través de reuniones realizadas el 08, 11, 12 y 16 de julio. Se elaboró la presentación titulada "Una disrupción (de)formativa en género. Capítulo 1: Qué es el enfoque de género." Finalmente, se llevó a cabo la primera capacitación en género, cumpliendo con la meta de definir las variables o elementos relacionados con género que se incluirán en los documentos de planeación de cada Subdirección. | BB14: 0.85 | BC14: No se reporta avance | BD14: 0.85 | BE14: No se reporta avance | BF14: =SUM(Q14:Y14)*($N$13/5) -> 0.04 | BG14: Con rezago | BH14: =BD14*($N$13/5) -> 0.034 | BI14: 0.85 | BK14: 0.85 | BL14: Ejecutado | BM14: 1 | BN14: Con las Subdirecciónes se identificaron las variables de equidad de Géneroq ue deben ser incluidas en los diferentes planes, por otra parte con las variables identificadas se consolida a traves de una consultoria con la Universidad Tecnológia un documento de Variables de Equidad de Género para el proceso de operaciones de Redes en las Empresas de Distribución de ENergía Electrica. | BO14: =SUM(Q14:AB14)*($N$13/5) -> 0.04 | BP14: =IF(BQ14=BO14,"Ejecutada",IF(BQ14<BO14,"Con rezago","REVISAR")) -> Ejecutada | BQ14: =BM14*($N$13/5) -> 0.04
E15: Fortalecer la planeación y la investigación con estándares científicos, integrando los componentes social, ambiental, de cambio climático, territorial, étnico, de género, diferencial desde una mirada interseccional para la Transición Energética Justa | F15: Generar nuevas metodologías, modelos de optimización y adopción de tecnologías adecuados a la realidad del país, en términos de normatividad, regulación, operación del sistema energético y necesidades de señales de política energética | G15: Implementar una estrategia de integración de la perspectiva de género en los procesos técnicos de la UPME | J15: Estrategia de integración de la perspectiva de género en los procesos técnicos de la UPME, implementada | O15: 100-1-3 | P15: Definir acciones internas para la implementación del enfoque de género en los procesos de talento humano de la UPME | W15: 1 | AC15: =SUM(Q15:AB15) -> 1 | AH15: 0 | AI15: Para este mes no se programaron actividades | AJ15: 0 | AK15: Para este mes no se programaron actividades | AN15: =SUM(Q15:S15)*($N$13/5) -> 0 | AO15: =IF(AL15="","",IF(AL15=SUM(S15:T15),"Al dia",IF(AL15<SUM(S15:T15),"Con Rezago",IF(AL15>SUM(S15:T15),"Sobre ejecutada","")))) ->  | AP15: =AL15*($N$13/3) -> 0 | AU15: 0 | AW15: =SUM(Q15:V15)*($N$13/5) -> 0 | AX15: Sin avance y en terminos | AY15: =AU15*($N$13/5) -> 0 | BB15: 0.6 | BC15: "Durante el mes de agosto se reealizaron las sesiones II y III de la capacitación en género, en las cuales se profundizaron temas conceptuales e históricos acerca de la noción de este enfoque. Las capacitaciones se realizaron los días 5 y 20 de agosto. Se entregóaron a la Gerencia de Proyecto dos (2) position paper sobre: 1) disidencias de género, y: 2) la relación entre extractivismo y género, de los cuales se adjunta la versión 1. En el mes de septiembre se entregarán las versiones con los ajustes sugeridos por la Gerente de Proyecto y el equipo de gestión del conocimiento." | BD15: 0.7 | BE15: El 10 de septiembre se realizó la capacitación No. 4 en género, que se enfocó en Violencias Basadas en Género (VBG) Se remitieron ajustes solicitados para el position paper sobre extractivismo y género | BF15: =SUM(Q15:Y15)*($N$13/5) -> 0.04 | BG15: Con rezago | BH15: =BD15*($N$13/5) -> 0.028 | BI15: 0.8 | BJ15: Se avanzó en la planeación de una serie de capacitaciones sobre género, las cuales iniciaron el 29 de octubre y finalizarán el 27 de noviembre. En este ejercicio se elaboraron piezas comunicativas con el apoyo de la Oficina Asesora de Comunicaciones. El 29 de octubre se llevó a cabo la charla denominada: Lucha por la igualdad, equidad de género y la no discriminación de las mujeres. La reunión fue convocada por Talento humano y realizada por el equipo enfoque territorial. | BK15: 0.8 | BL15: Ejecutado | BM15: 1 | BN15: Se entrega un documento con la Estrategia de integración de la perspectiva de género en los procesos técnicos de la UPME. Balance año 2024. | BO15: =SUM(Q15:AB15)*($N$13/5) -> 0.04 | BP15: =IF(BQ15=BO15,"Ejecutada",IF(BQ15<BO15,"Con rezago","REVISAR")) -> Ejecutada | BQ15: =BM15*($N$13/5) -> 0.04
E16: Fortalecer la planeación y la investigación con estándares científicos, integrando los componentes social, ambiental, de cambio climático, territorial, étnico, de género, diferencial desde una mirada interseccional para la Transición Energética Justa | F16: Generar nuevas metodologías, modelos de optimización y adopción de tecnologías adecuados a la realidad del país, en términos de normatividad, regulación, operación del sistema energético y necesidades de señales de política energética | G16: Implementar una estrategia de integración de la perspectiva de género en los procesos técnicos de la UPME | J16: Estrategia de integración de la perspectiva de género en los procesos técnicos de la UPME, implementada | O16: 100-1-4 | P16: Implementación del enfoque de género en procesos de talento humano de la entidad a través de un piloto. | Z16: 1 | AC16: =SUM(Q16:AB16) -> 1 | AH16: 0 | AI16: Para este mes no se programaron actividades | AJ16: 0 | AK16: Para este mes no se programaron actividades | AN16: =SUM(Q16:S16)*($N$13/5) -> 0 | AP16: =AL16*($N$13/3) -> 0 | AU16: 0 | AW16: =SUM(Q16:V16)*($N$13/5) -> 0 | AX16: Sin avance y en terminos | AY16: =AU16*($N$13/5) -> 0 | BB16: 0 | BD16: 0 | BF16: =SUM(Q16:Y16)*($N$13/5) -> 0 | BG16: Sin avance y en terminos | BH16: =BD16*($N$13/5) -> 0 | BI16: 0 | BK16: 0 | BL16: Ejecutado | BM16: 1 | BN16: Se entrega un documento con la Estrategia de integración de la perspectiva de género en los procesos técnicos de la UPME. Balance año 2024. En el documento se encuentra el enlace de todo lo trabajado. | BO16: =SUM(Q16:AB16)*($N$13/5) -> 0.04 | BP16: =IF(BQ16=BO16,"Ejecutada",IF(BQ16<BO16,"Con rezago","REVISAR")) -> Ejecutada | BQ16: =BM16*($N$13/5) -> 0.04
E17: Fortalecer la planeación y la investigación con estándares científicos, integrando los componentes social, ambiental, de cambio climático, territorial, étnico, de género, diferencial desde una mirada interseccional para la Transición Energética Justa | F17: Generar nuevas metodologías, modelos de optimización y adopción de tecnologías adecuados a la realidad del país, en términos de normatividad, regulación, operación del sistema energético y necesidades de señales de política energética | G17: Implementar una estrategia de integración de la perspectiva de género en los procesos técnicos de la UPME | J17: Estrategia de integración de la perspectiva de género en los procesos técnicos de la UPME, implementada | O17: 100-1-5 | P17: lmplementación del enfoque de género en documentos de planeación priorizados con cada Subdirección a través de un piloto | AA17: 1 | AC17: =SUM(Q17:AB17) -> 1 | AH17: 0 | AI17: Para este mes no se programaron actividades | AJ17: 0 | AK17: Para este mes no se programaron actividades | AN17: =SUM(Q17:S17)*($N$13/5) -> 0 | AP17: =AL17*($N$13/3) -> 0 | AU17: 0 | AW17: =SUM(Q17:V17)*($N$13/5) -> 0 | AX17: Sin avance y en terminos | AY17: =AU17*($N$13/5) -> 0 | BB17: 0 | BD17: 0 | BF17: =SUM(Q17:Y17)*($N$13/5) -> 0 | BG17: Sin avance y en terminos | BH17: =BD17*($N$13/5) -> 0 | BI17: 0 | BK17: 0 | BL17: Ejecutado | BM17: 1 | BN17: Se entrega un documento con la Estrategia de integración de la perspectiva de género en los procesos técnicos de la UPME. Balance año 2024. | BO17: =SUM(Q17:AB17)*($N$13/5) -> 0.04 | BP17: =IF(BQ17=BO17,"Ejecutada",IF(BQ17<BO17,"Con rezago","REVISAR")) -> Ejecutada | BQ17: =BM17*($N$13/5) -> 0.04
B18: 4. Internacionalización, transformación productiva para la vida y acción climática | C18: 2. Desarrollo económico a partir de eficiencia energética, nuevos energéticos y minerales estratégicos para la transición. | E18: Fortalecer la planeación y la investigación con estándares científicos, integrando los componentes social, ambiental, de cambio climático, territorial, étnico, de género, diferencial desde una mirada interseccional para la Transición Energética Justa | F18: Generar nuevas metodologías, modelos de optimización y adopción de tecnologías adecuados a la realidad del país, en términos de normatividad, regulación, operación del sistema energético y necesidades de señales de política energética | G18: Implementar una estrategia de integración de variables, sociales y ambientales en los productos técnicos de la UPME | I18: 100-2 | J18: Estrategia de integración de variables, sociales y ambientales en los productos técnicos de la UPME, implementada | L18: 1 | M18: Estrategia | N18: 0.2 | O18: 100-2-1 | P18: Elaborar listado de variables sociales y ambientales para procesos de planeación minero energética | U18: 1 | AC18: =SUM(Q18:AB18) -> 1 | AD18: Fortalecimiento del levantamiento, gestión y apropiación de la información para la planeación del sector minero energético con enfoque territorial Nacional | AE18: 100-3,100-4, 100-7,100-9,100-16,100-30,100-31,100-44,100-19,100-29, 100-39. | AH18: 0 | AI18: Para este mes no se programaron actividades | AJ18: 0 | AK18: Para este mes no se programaron actividades | AN18: =SUM(Q18:S18)*($N$18/4) -> 0 | AP18: =AL18*($N$18/4) -> 0 | AS18: 1 | AT18: Se remite listado (versión 1) de las variables sociales y ambientales a tener en cuenta los planes de la entidad | AU18: 1 | AV18: Ejecutada | AW18: =SUM(Q18:V18)*($N$18/4) -> 0.05 | AX18: Ejecutada | AY18: =AU18*($N$18/4) -> 0.05 | AZ18: 1 | BA18: Ejecutada | BB18: 1 | BC18: Ejecutado | BD18: 1 | BE18: Ejecutado | BF18: =SUM(Q18:Y18)*($N$18/4) -> 0.05 | BG18: Ejecutada | BH18: =BD18*($N$18/4) -> 0.05 | BI18: 1 | BJ18: Ejecutado | BK18: 1 | BL18: Ejecutado | BM18: 1 | BN18: Ejecutado | BO18: =SUM(Q18:AB18)*($N$18/4) -> 0.05 | BP18: =IF(BQ18=BO18,"Ejecutada",IF(BQ18<BO18,"Con rezago","REVISAR")) -> Ejecutada | BQ18: =BM18*($N$18/4) -> 0.05
E19: Fortalecer la planeación y la investigación con estándares científicos, integrando los componentes social, ambiental, de cambio climático, territorial, étnico, de género, diferencial desde una mirada interseccional para la Transición Energética Justa. | F19: Generar nuevas metodologías, modelos de optimización y adopción de tecnologías adecuados a la realidad del país, en términos de normatividad, regulación, operación del sistema energético y necesidades de señales de política energética | G19: Implementar una estrategia de integración de variables, sociales y ambientales en los productos técnicos de la UPME | J19: Estrategia de integración de variables, sociales y ambientales en los productos técnicos de la UPME, implementada | O19: 100-2-2 | P19: Socializar propuesta a las subdirecciones sobre variables sociales y ambientales aplicables a sus planes. | V19: 0.5 | W19: 0.5 | AC19: =SUM(Q19:AB19) -> 1 | AH19: 0 | AI19: Para este mes no se programaron actividades | AJ19: 0 | AK19: Para este mes no se programaron actividades | AN19: =SUM(Q19:S19)*($N$18/4) -> 0 | AP19: =AL19*($N$18/4) -> 0 | AU19: 0.2 | AV19: Se realizó trabajo interno para la estructuración del modelo de trabajo sobre las variables sociales y ambientales a incorporar en los procesos de planeación. Se adjunta pantallazo de reunión del día 12 de junio donde se analizó el alcance del documento, 13 de junio donde se revisó el esquema de trabajo y los formatos donde los equipos social y territorialización revisaaron productos priorizados del año 2023. | AW19: =SUM(Q19:V19)*($N$18/4) -> 0.025 | AX19: Con avance y en terminos | AY19: =AU19*($N$18/4) -> 0.01 | AZ19: 0.7 | BA19: Se realizó una reunión con las subdirecciones para socializar la propuesta sobre variables sociales y ambientales aplicables a los planes. Esta propuesta fue construida a partir del trabajo realizado por el equipo social y ambiental en articulación con las subdirecciones, con el objetivo de cumplir con la meta de socializar la propuesta de variables sociales y ambientales aplicables a sus planes. | BB19: 0.8 | BC19: "Durante el mes de agosto se entregaron a la Subdirección de Hidrocarburos las versiones finales de los documentos de variables étnicas y de género para el Plan Nacional de Sustitución de Leña (PNSL) Se elaboró la versión 1 del documento de la metodología de incorporación de variables sociales, ambientales y territoriales, con énfasis en los departamentos de La Guajira, Atlántico, Magdalena, Bolívar, Sucre y Córdoba." | BD19: 0.8 | BE19: Para este mes no se reporto avance | BF19: =SUM(Q19:Y19)*($N$18/4) -> 0.05 | BG19: Con rezago | BH19: =BD19*($N$18/4) -> 0.04 | BI19: 0.8 | BK19: 0.8 | BM19: 1 | BN19: El día 20 de diciembre de 2024 en el marco del Comité Ambiental y Social con Enfoque Territorial (CASU) se socializó con las subdirecciones el análisis de variables. | BO19: =SUM(Q19:AB19)*($N$18/4) -> 0.05 | BP19: =IF(BQ19=BO19,"Ejecutada",IF(BQ19<BO19,"Con rezago","REVISAR")) -> Ejecutada | BQ19: =BM19*($N$18/4) -> 0.05
E20: Fortalecer la planeación y la investigación con estándares científicos, integrando los componentes social, ambiental, de cambio climático, territorial, étnico, de género, diferencial desde una mirada interseccional para la Transición Energética Justa | F20: Generar nuevas metodologías, modelos de optimización y adopción de tecnologías adecuados a la realidad del país, en términos de normatividad, regulación, operación del sistema energético y necesidades de señales de política energética | G20: Implementar una estrategia de integración de variables, sociales y ambientales en los productos técnicos de la UPME | J20: Estrategia de integración de variables, sociales y ambientales en los productos técnicos de la UPME, implementada | O20: 100-2-3 | P20: Realizar ajustes e implementar el uso de variables sociales y ambientales en procesos de planeación de cada subdirección. | AA20: 1 | AC20: =SUM(Q20:AB20) -> 1 | AH20: 0 | AI20: Para este mes no se programaron actividades | AJ20: 0 | AK20: Para este mes no se programaron actividades | AN20: =SUM(Q20:S20)*($N$18/4) -> 0 | AP20: =AL20*($N$18/4) -> 0 | AU20: 0 | AW20: =SUM(Q20:V20)*($N$18/4) -> 0 | AX20: Sin avance y en terminos | AY20: =AU20*($N$18/4) -> 0 | BB20: 0.1 | BC20: Se entrega al versión 1 de las variables ambientales para la incorporación en el Plan minero del triangulo de Tilimbí | BD20: 0.5 | BE20: Se entrega documento de las variables ambientales para la incorporación en el Plan minero del Norte del Cauca. | BF20: =SUM(Q20:Y20)*($N$18/4) -> 0 | BG20: Con avance y en terminos | BH20: =BD20*($N$18/4) -> 0.025 | BI20: 0.7 | BJ20: Se remitio la propuesta de estructuración de la integración del enfoque territorial en el Plan de Abastecimiento de Combustibles Líquidos. | BK20: 0.7 | BM20: 1 | BN20: Se realizaron los ajustes correspondientes para la integración de variables sociales ambientales en el PIEC y el Plan Indicativo de Bioenergía. | BO20: =SUM(Q20:AB20)*($N$18/4) -> 0.05 | BP20: =IF(BQ20=BO20,"Ejecutada",IF(BQ20<BO20,"Con rezago","REVISAR")) -> Ejecutada | BQ20: =BM20*($N$18/4) -> 0.05
E21: Fortalecer la planeación y la investigación con estándares científicos, integrando los componentes social, ambiental, de cambio climático, territorial, étnico, de género, diferencial desde una mirada interseccional para la Transición Energética Justa | F21: Generar nuevas metodologías, modelos de optimización y adopción de tecnologías adecuados a la realidad del país, en términos de normatividad, regulación, operación del sistema energético y necesidades de señales de política energética. | G21: Implementar una estrategia de integración de variables, sociales y ambientales en los productos técnicos de la UPME | J21: Estrategia de integración de variables, sociales y ambientales en los productos técnicos de la UPME, implementada | O21: 100-2-4 | P21: Acompañar los procesos misionales en requerimientos ambientales, sociales y territoriales que sean solicitados al Equipo de Enfoque Territorial | S21: 0.1 | T21: 0.1 | U21: 0.1 | V21: 0.1 | W21: 0.1 | X21: 0.1 | Y21: 0.1 | Z21: 0.1 | AA21: 0.1 | AB21: 0.1 | AC21: =SUM(Q21:AB21) -> 1 | AH21: 0 | AI21: Para este mes no se programaron actividades | AJ21: 0 | AK21: Para este mes no se programaron actividades | AL21: 0.1 | AM21: Se realizó el cargue de información de residuos sólidos generados diariamente del periodo de marzo del 2024, los datos recopilados son diligenciados en el formato Excel denominado control de generación de residuos aprovechables y no aprovechables, el cual se encuentra disponible en el siguiente Link: https://drive.google.com/drive/folders/1-e4Xjd0beda2ow5HZjALzo092TxU5-ln - Se realizo ajustes solicitados por la oficina de planeación a los planes de cumplimiento de hallazgos ambientales. * Se realizó apoyo a la Subdirección de Hidrocarburos en los ajustes requeridos para el Plan de Abastecimiento de Gas Natural (PAGN), en lo relacionaado en al componente de enfoque territorial. * Se avanza en solicitudes específicas para el Plan Indicativo de Expansión de Cobertura (PIEC) relacionadas con aspectos sociales y ambientales. | AN21: =SUM(Q21:S21)*($N$18/4) -> 0.005 | AP21: =AL21*($N$18/4) -> 0.005 | AS21: 0.1 | AT21: Se cosntruyeron los TDR y anexos para el convenio 963-2023 entre el MinMinciencias/Fondo Caldas y UPME (Anexo: TDR y anexos para el convenio 963-2023 ) Se realizaron comentarios a la prouesta de TDR Benefit Sharing in Grid Development_V4 presentados por el Banco Mundial (Anexo: 20240522_ToR_Colombia_Benefit-Sharing in Grid Developmen_COL - V4_UPME_mmc_JL_AMcomments-CASC (22mayo2024) y Se realizó el acompañamiento, principalmente enfocado a la entrega de los insumos para diagnósticos de distritos mineros y apoyos a la Subdirección de Energía. | AU21: 0.2 | AV21: (26.06.24) Reunión con la subdirección de Hidrocarburos con el fin de reestructurar el plan de acción requerido para desarrollar visitas técnicas -territoriales en san andres, Leticia y Nariño en el marco del Plan de sustitucion de lena y el plan de GLP, solicitadas en el mes de abril por cambio en la zona de estudio. Nueva zona Priorizada: departamento de Chocó. *Se realizó entre el grupo social y de territorializaciónl el documento metodológico para el desarrollo de los procesos de Socialización de las convocatorias y de socialización de selección del inversionista para los Proyectos de transmisión de Enenrgia a cargo de la Subdirección de Energia. *Se realizo entre el grupo social y de territorialización el docuemnto metodológico para la socialización de convocatoria UPME-09 - 2021 Subestación Cabrera y líneas de transmisión asociadas. * Se elaboró conjuntamente con el componente ambiental propuesta de Plan de Trabajo para la Subdirección de Hidrocarburos" | AW21: =SUM(Q21:V21)*($N$18/4) -> 0.02 | AX21: Con avance y en terminos | AY21: =AU21*($N$18/4) -> 0.01 | AZ21: 0.5 | BA21: Se realizó una reunión con la Subdirección de Energía para acompañarlos en las socializaciones de las convocatorias y en la estructuración de las metodologías. Durante esta reunión, se socializó un documento metodológico para el desarrollo de los procesos de socialización de las convocatorias y la selección del inversionista para los proyectos de transmisión de energía a cargo de la Subdirección de Energía. Además, se aportó en la planeación y desarrollo del uso de la leña en Colombia como un factor dinamizador del potencial energético comunitario. También se participó en una reunión virtual orientada por el operador de red Enel y la Subdirección de Energía Eléctrica, con el fin de retroalimentar sobre los aspectos sociales y ambientales de la convocatoria de la Subestación de Sopó 230 Kv, que se desarrollará próximamente. Este espacio permitió conocer en detalle el área de influencia del proyecto, que impacta a 23 municipios aledaños mejorando la confiabilidad del sistema y beneficiando a aproximadamente 1.000.000 de personas y 330.000 familias. Durante la reunión, se discutieron las restricciones y criticidades socio-ambientales en el área de influencia, incluyendo cuerpos de agua y alternativas de trazado según las determinantes ambientales. Asimismo, se asistió a una reunión virtual convocada por la Subdirección de Energía Eléctrica y el equipo de convocatorias, con la participación del equipo de Enfoque Territorial. El objetivo fue revisar los aspectos técnicos, ambientales y sociales de la convocatoria de la subestación Carreto 500 Kv. Este espacio permitió conocer la importancia del proyecto en el mejoramiento de los niveles de tensión a partir de la conexión de proyectos de Fuentes No Convencionales de Energía Renovable (FNCER). La fecha de entrada en operación del proyecto está proyectada para el 31 de marzo de 2027. Se identificó el área de influencia del proyecto, involucrando a 6 veredas del municipio de San Juan de Nepomuceno, y se analizaron las determinantes ambientales relacionadas con el conflicto del uso de la tierra, riesgos por erosión, cobertura vegetal, ecosistemas, áreas ambientales, red vial, etc. La información suministrada permitió una socialización detallada del proyecto en territorio. También se asistió a la reunión virtual "Mesa de Trabajo No. 2 - Requerimiento Geográfico" convocada por el equipo de cobertura de la Subdirección de Demanda, en la cual participó el equipo ambiental. En esta reunión, el equipo ambiental presentó la necesidad de cruzar información de pendientes con fenómenos de remoción en masa, inundaciones, incendios, con el objetivo de obtener datos precisos sobre la frecuencia de estos fenómenos y su incidencia en términos de riesgo para las instalaciones del sistema de distribución local. Además, se utilizó la matriz Saaty para la valoración. Finalmente, asistí a una reunión llevada a cabo con la Subdirección de Minería y el Ministerio de Minas y Energía para revisar el desarrollo de los Distritos Mineros Especiales para la Diversificación Productiva. Se discutieron los avances y ajustes realizados al documento del Bajo Cauca, con la intención de obtener una versión definitiva y avanzar en la construcción de la resolución de delimitación del Bajo Cauca. También se trató la coordinación de actividades paralelas y avances en procesos de concertación con comunidades étnicas en Nariño, para la implementación y desarrollo de los Distritos Mineros Especiales. Estas actividades se realizaron para dar cumplimiento a la meta de acompañar los procesos misionales en requerimientos ambientales, sociales y territoriales que sean solicitados al Equipo de Enfoque Territorial. | BB21: 0.6 | BC21: Se realizó el cargue de información de residuos sólidos generados diariamente del periodo de agosto del 2024, los datos recopilados son diligenciados en el formato Excel denominado control de generación de residuos aprovechables y no aprovechables, el cual se encuentra disponible en el siguiente Link: https://drive.google.com/drive/folders/1-e4Xjd0beda2ow5HZjALzo092TxU5-ln - Se realizo ajustes solicitados por la oficina de planeación a los planes de cumplimiento de hallazgos ambientales. * Se realizó apoyo a la Subdirección de Hidrocarburos en los ajustes requeridos para el Plan de Abastecimiento de Gas Natural (PAGN), en lo relacionaado en al componente de enfoque territorial. * Se avanza en solicitudes específicas para el Plan Indicativo de Expansión de Cobertura (PIEC) relacionadas con aspectos sociales y ambientales.Se realizaron eventos de socialización de convocatorias, en articulación con la Subdirección de Energía Eléctrica para la preparación de socializaciones de convocatorias de transmisión. Se realizó la preparación para los siguientes eventos: UPME 05-2021 Subestación Pasacaballos y líneas de transmisión asociadas (evento realizado el 1 de agosto). UPME 07-2021. Subestación Alcaraván 230 kV y líneas de transmisión asociadas (evento realizado el 23 de agosto) (sugiero solicitar las evidencias el equipo de territorialización. Adjunto una ayuda de memoria que me hicieron llegar del evento de Yopal) Se realizó análisis del Plan de Trabajo Detallado del Plan Indicativo de Bioenergía del Pacífico - PIBE. | BD21: 0.75 | BE21: Se apoyo a la subdirecciónd e Mineria con la redacción de conceptos juridicos respecto los procesos de diagnostico de lso distritos mineros desarrollados por la subdirección. Se realizaron eventos de socialización de convocatorias, en articulación con la Subdirección de Energía Eléctrica para la preparación de socializaciones de convocatorias de transmisión. Se realizó la preparación para el siguiente evento: FASE 2: Socialización inversionista UPME 04-2023 Segundo Circuito Subestación Sahagún 500kV​ 6 (4 de septiembre- Sahagún, Córdoba) (sugiero solicitar las evidencias el equipo de territorialización.) | BF21: =SUM(Q21:Y21)*($N$18/4) -> 0.035 | BG21: Con avance y en terminos | BH21: =BD21*($N$18/4) -> 0.0375 | BI21: 0.8 | BJ21: Se realizaron acompañamientos en los siguientes temas de interés de las subdirecciones: - Se remitió propuesta de estructura del Plan Nacional Indicativo de Combustibles Líquidos a la Subdirección de Hidrocarburos (25 de octubre) - Se remitió documento de análisis de PEI en temas de bioenergía, que hará parte del documento de PIBE pacífico, liderado por la Subdirección de Hidrocarburos. - Se acompañó la socialización de convocatoria de transmisión de energía S/E Magangué 500 kV (3 de octubre) - Se realizaron eventos de UPME al Territorio el 11 de octubre en Bahía Solano (Chocó) y Popayán (23 de octubre) - sugiero solicitar soportes a Territorialización - Se definió conjuntamente con la Subdirección de Minería el conjunto de indicadores para el Plan Nacional de Desarrollo MInero (10 de octubre) | BK21: 0.9 | BL21: Se realizaron acompañamientos en los siguientes temas de interés de las subdirecciones: - Se apoyó a la Subdirección de Hidrocarburos en el desarrollo del evento de socialización de cupos de biodiesel en la ciudad de Cartagena (28 de noviembre). - Se remitió al coordinador del PIBE pacífico la versión ajustada del documento revisión del PEI, agregando la referencia bibliográfica al gestor Mendeley. - Se entregó a la Subdirección de Energía el informe de cartografía social realizado en la socialización de convocatoria de transmisión de energía S/E Magangué 500 kV (3 de octubre) - Se realizó evento de UPME al Territorio el 7 de noviembre en Arauca (Arauca) - sugiero solicitar soportes a Territorialización | BM21: 1 | BN21: Durante el mes de diciembre se hizo entrega de los documentos asociados al Plan Indicativo de Expansión de Cobertura -PIEC-, asociados a comunidades energéticas y análisis socioeconómico. Frente al Plan Indicativo de Bioenergía del Pacífico (PIBE), se remitieron insumos para la elaboración del producto año 2024 solicitado por la Dirección General de la entidad. | BO21: =SUM(Q21:AB21)*($N$18/4) -> 0.05 | BP21: =IF(BQ21=BO21,"Ejecutada",IF(BQ21<BO21,"Con rezago","REVISAR")) -> Ejecutada | BQ21: =BM21*($N$18/4) -> 0.05
B22: 4. Internacionalización, transformación productiva para la vida y acción climática | C22: 2. Desarrollo económico a partir de eficiencia energética, nuevos energéticos y minerales estratégicos para la transición. | E22: Fortalecer la planeación y la investigación con estándares científicos, integrando los componentes social, ambiental, de cambio climático, territorial, étnico, de género, diferencial desde una mirada interseccional para la Transición Energética Justa | F22: Aumentar y estructurar la presencia en el territorio para diseñar e implementar las herramientas que permitan incorporar la visión social, ambiental, de cambio climático, territorial, étnico, de género, diferencial en los planes estudios y proyectos que realiza la UPME. | G22: Fortalecer el enfoque y presencia territorial-étnica para la planeación Minero-energética | I22: 100-3 | J22: Estrategia de la UPME al territorio implementada | L22: 1 | M22: Estrategia | N22: 0.07 | O22: 100-3-1 | P22: Seguimiento cumplimiento compromiso NARP en el Plan Nacional de Desarrollo | S22: 0.1 | T22: 0.1 | U22: 0.1 | V22: 0.1 | W22: 0.1 | X22: 0.1 | Y22: 0.1 | Z22: 0.1 | AA22: 0.1 | AB22: 0.1 | AC22: =SUM(Q22:AB22) -> 1 | AD22: FORTALECIMIENTO DEL LEVANTAMIENTO, GESTIÓN Y APROPIACIÓN DE LA INFORMACIÓN PARA LA PLANEACIÓN DEL SECTOR MINERO ENERGÉTICO CON ENFOQUE TERRITORIAL NACIONAL | AE22: 100-24,100-25,100-26,100-27,100-28,100-43,100-19, 100-29,100-39. | AH22: 0 | AI22: Para este mes no se programaron actividades | AJ22: 0 | AK22: Para este mes no se programaron actividades | AL22: 0.1 | AM22: Se realizó el desglose de presupuesto que se invierte para dar cumplimiento a los compromisos NARP. Se firmó contrato con el profesional que liderará el acompañamiento a la implementación del compromiso NARP. | AN22: =SUM(Q22:S22)*($N$22/3) -> 0.002333333333 | AP22: =AL22*($N$22/3) -> 0.002333333333 | AS22: 0.2 | AT22: Se reralizó la propuesta metodologica: Estrategia de participación y construcción colectiva para el cumplimiento del compromiso de la UPME en el marco del Plan Nacional de Desarrollo y las comunidades Negras, Afrocolombianas, Raizales y Palenqueras (NARP), y Se avanza en la realización del Plan interno de trabajo para socializar con Ministerio de Minas y Energía la cual debe presentarse en el mes de Junio a Min Minas para siu validación (Anexo: Estrategia participación_compromiso NARP) y | AU22: 0.2 | AV22: Continua con el mismo avance de mayo. Para este mes no hay avance, se espera que el Ministerio confirme cuando es la reunión con las comunidades NARP. | AW22: =SUM(Q22:V22)*($N$22/3) -> 0.009333333333 | AX22: Con avance y en terminos | AY22: =AU22*($N$22/3) -> 0.004666666667 | AZ22: 0.5 | BA22: Los dias 19, 26, 29 y 30 de Julio se realizaron reuniones virtuales y presenciales entre la Oficina de Planeación y Direccion de Hidrocarburos del Ministerio de Minas y Energia y el equipo de ET y Fondos y Planeación UPME, con el objeto de presentar, retroalimentar y validar la propuesta metodológica planteada y para la definición d eun plan de trabajo en conjunto para la viabilización del cumpolimeinto del compromiso. (Anexo: Plan de trabajo concertado con Min. Minas) | BB22: 0.6 | BC22: 1. Reunión de contexto del compromiso y de la estructuración del indice de priorización (INPRI) del Fondo Especial de Cuota de Fomento - FECF entre el quipo social de ET y la Oficina de Fondos. 2. Espacio de trabajo conjunto con el equipo de trabajo de género y étnico para la definición de los criterios a incorporar en el indice de priorización (INPRI) del Fondo Especial de Cuota de Fomento - FECF 3. Construccion del concepto juridico frente a la viabilidad tecnica y juridica de la modificacion | BD22: 0.7 | BE22: Elaboración del análisis juridico del resolución sobre la modificación y aplicación del Decreto 1073 del 2015, 6 SEPT DE 2024, VIE 9 – 10am Reunion de definición de los criterios para el componente género en conjunto con la oficina de Fondos. 16 SEPT DE 2024, LUN Participación en la reunión de Seguimiento Compromiso NARP por parte de la Comisión 2da de consulta previa 17 SEPT DE 2024, MAR 8 – 9am Reunión de la definición de los criterios para el componente étnico en conjunto con la oficina de Fondos. | BF22: =SUM(Q22:Y22)*($N$22/3) -> 0.01633333333 | BG22: Con avance y en terminos | BH22: =BD22*($N$22/3) -> 0.01633333333 | BI22: 0.7 | BK22: 0.7 | BM22: 1 | BN22: Seguimiento cumplimiento compromiso NARP en el Plan Nacional de Desarrollo: Se adjunta la relación de actividades, participantes, objetivo, conclusiones y responsables y los soportes. | BO22: =SUM(Q23:AB23)*($N$22/3) -> 0.02333333333 | BP22: =IF(BQ22=BO22,"Ejecutada",IF(BQ22<BO22,"Con rezago","REVISAR")) -> Ejecutada | BQ22: =BM22*($N$22/3) -> 0.02333333333
E23: Fortalecer la planeación y la investigación con estándares científicos, integrando los componentes social, ambiental, de cambio climático, territorial, étnico, de género, diferencial desde una mirada interseccional para la Transición Energética Justa. | F23: Aumentar y estructurar la presencia en el territorio para diseñar e implementar las herramientas que permitan incorporar la visión social, ambiental, de cambio climático, territorial, étnico, de género, diferencial en los planes estudios y proyectos que realiza la UPME. | G23: Fortalecer el enfoque y presencia territorial-étnica para la planeación Minero-energética | J23: Estrategia de la UPME al territorio implementada | O23: 100-3-2 | P23: Programación de actividades de la estrategia Upme al territorio | S23: 1 | AC23: =SUM(Q23:AB23) -> 1 | AH23: 0 | AI23: Para este mes no se programaron actividades | AJ23: 0 | AK23: Para este mes no se programaron actividades | AL23: 1 | AM23: Se elaboró cronograma de actividades de la estratégia UPME al Territorio, la cual está supeditada a la firma del contrato con el operador logístico y a los ajustes que se definan por parte de Dirección General o las Subdirecciones, en atención a los recursos disponibles. El cronograma se encuentra en el siguiente link: https://drive.google.com/drive/u/1/folders/1HdUGkh6e_j7w1bwjAv2xhai8Ik8YvWCE | AN23: =SUM(Q23:S23)*($N$22/3) -> 0.02333333333 | AP23: =AL23*($N$22/3) -> 0.02333333333 | AS23: 1 | AT23: Ejecutada Se realizó la actualización de la programacion de eventos para el 2024 | AU23: 1 | AV23: Ejecutada | AW23: =SUM(Q23:V23)*($N$22/3) -> 0.02333333333 | AX23: Ejecutada | AY23: =AU23*($N$22/3) -> 0.02333333333 | AZ23: 1 | BA23: Ejecutada | BB23: 1 | BC23: Ejecutada | BD23: 1 | BE23: Ejecutada | BF23: =SUM(Q23:Y23)*($N$22/3) -> 0.02333333333 | BG23: Ejecutada | BH23: =BD23*($N$22/3) -> 0.02333333333 | BI23: 1 | BJ23: Ejecutada | BK23: 1 | BL23: Ejecutada | BM23: 1 | BN23: Ejecutada | BO23: =SUM(Q24:AB24)*($N$22/3) -> 0.02333333333 | BP23: =IF(BQ23=BO23,"Ejecutada",IF(BQ23<BO23,"Con rezago","REVISAR")) -> Ejecutada | BQ23: =BM23*($N$22/3) -> 0.02333333333
E24: Fortalecer la planeación y la investigación con estándares científicos, integrando los componentes social, ambiental, de cambio climático, territorial, étnico, de género, diferencial desde una mirada interseccional para la Transición Energética Justa. | F24: Aumentar y estructurar la presencia en el territorio para diseñar e implementar las herramientas que permitan incorporar la visión social, ambiental, de cambio climático, territorial, étnico, de género, diferencial en los planes estudios y proyectos que realiza la UPME. | G24: Fortalecer el enfoque y presencia territorial-étnica para la planeación Minero-energética | J24: Estrategia de la UPME al territorio implementada | O24: 100-3-3 | P24: Implementación de la estrategia de la UPME al Territorio | T24: 0.1 | U24: 0.1 | V24: 0.1 | W24: 0.15 | X24: 0.15 | Y24: 0.15 | Z24: 0.15 | AA24: 0.1 | AC24: =SUM(Q24:AB24) -> 1 | AH24: 0 | AI24: Para este mes no se programaron actividades | AJ24: 0 | AK24: Para este mes no se programaron actividades | AL24: 0.1 | AM24: Durante el mes de abril se avanzó en el proceso de contratación de los enlaces territoriales, así como en el avance del contrato del operador logístico, aspecto clave para avanzar en la estrategia. | AN24: =SUM(Q24:S24)*($N$22/3) -> 0 | AP24: =AL24*($N$22/3) -> 0.002333333333 | AS24: 0.1 | AT24: Durante el mes de mayo se logró la suscripción del contrato con el operador logístico para la realización de los eventos De la UPME al Territorio | AU24: 0.2 | AV24: Se realizó entre el equipo social y de territorialización la planeación y ejecución del evento de socialización de convocatoria UPME-09 - 2021 Subestación Cabrera y líneas de transmisión asociadas enel muniicpio de Socorro-Santander | AW24: =SUM(Q24:V24)*($N$22/3) -> 0.007 | AX24: Con avance y en terminos | AY24: =AU24*($N$22/3) -> 0.004666666667 | AZ24: 0.4 | BA24: Se han realizado dos actividades de "UPME al Territorio": Socorro, Santander: Socialización de la convocatoria UPME 09-2021 para la Subestación Cabrera 230 kV y las líneas de transmisión asociadas. San Juan de Nepomuceno: Socialización del inversionista UPME 06-2021 para la Subestación Carreto 500 kV y las líneas de transmisión asociadas. Además, se programó la socialización en Pasacaballos para el 1 de agosto y se llevó a cabo la convocatoria correspondiente. | BB24: 0.55 | BC24: se inica la ejeción de la estrategia "UPME al Territorio", con un logrado una significativo participación en las regiones mediante convocatorias exitosas en varios municipios. La asistencia ha sido notable: Pasacaballos (107) ,Yopal (80),Pereira (156), Santamarta(26) y 72 personas conectadas por Youtube. Este esfuerzo ha permitido consolidar una base sólida de actores locales, facilitando una mayor integración y coordinación en las acciones futuras de la UPME. Esta participación activa es clave para alinear las necesidades del territorio con la planificación minero-energética nacional, asegurando un enfoque más inclusivo y efectivo. | BD24: 0.8 | BE24: En el marco de la implementación de los enventos de la UPME al Territorio, se realizaron durante el mes de septiembre los siguientes: * De la UPME al Territorio Sincelejo - Sucre (11 de septiembre) * De la UPME al Territorio Uribia - La Guajira (18 de septiembre) * De la UPME al Territorio Buenaventura - Valle del Cauca (25 de septiembre) | BF24: =SUM(Q24:Y24)*($N$22/3) -> 0.0175 | BG24: Con avance y en terminos | BH24: =BD24*($N$22/3) -> 0.01866666667 | BI24: 0.9 | BJ24: "En el marco de la implementación de los enventos de la UPME al Territorio, se realizaron durante el mes de octubre los siguientes (se sugiere solicitar soportes a territorialziación): * De la UPME al Territorio Bahía Solano - Chocó (13 de octubre) * De la UPME al Territorio Popayán - Cauca (23 de octubre) " | BK24: 1 | BL24: En el marco de la implementación de los enventos de la UPME al Territorio, se realizó durante el mes de noviembre el siguiente (se sugiere solicitar soportes a territorialziación): * De la UPME al Territorio Arauca (7 de octubre) | BM24: 1 | BN24: Ejecutada | BO24: =SUM(Q25:AB25)*($N$22/3) -> 0.02333333333 | BP24: =IF(BQ24=BO24,"Ejecutada",IF(BQ24<BO24,"Con rezago","REVISAR")) -> Ejecutada | BQ24: =BM24*($N$22/3) -> 0.02333333333
B25: 4. Internacionalización, transformación productiva para la vida y acción climática | C25: 2. Desarrollo económico a partir de eficiencia energética, nuevos energéticos y minerales estratégicos para la transición. | E25: Consolidar la modernización de la entidad para fortalecer la planeación minero energética del país y el rol como el CIO del sector. | F25: Fortalecer la gobernanza de la información, mediante la adopción de herramientas tecnológicas que faciliten la gestión adecuada de los datos e información para la planeación y la investigación. | G25: Actualizar los sistemas de información para procesos ambientales y sociales | H25: Plan Estratégico de Tecnologías de la Información y las Comunicaciones PETI | I25: 100-4 | J25: Geovisor con capas sociales y ambientales actualizado | L25: 1 | M25: Sistema de información - Software | N25: 0.23 | O25: 100-4-1 | P25: Definir las variables sociales y ambientales que deben ser actualizadas en la base de datos corporativa de la entidad. (abril - diciembre) | T25: 0.1 | Y25: 0.4 | AA25: 0.5 | AC25: =SUM(Q25:AB25) -> 1 | AD25: Fortalecimiento del levantamiento, gestión y apropiación de la información para la planeación del sector minero energético con enfoque territorial Nacional | AE25: 100-4, 100-3,100-5,100-6, 100-9, 100-15, 100-16, 100-17, 100-22 -100-34,,100-38, 100-7,100-9,100-16,100-30,100-31,100-44.100-42, 100-45, 100-19,100-29, 100-39. | AH25: 0 | AI25: Para este mes no se programaron actividades | AJ25: 0 | AK25: Para este mes no se programaron actividades | AN25: =SUM(Q25:S25)*($N$25/4) -> 0 | AP25: =AL25*($N$25/4) -> 0 | AU25: 0 | AW25: =SUM(Q25:V25)*($N$25/4) -> 0.00575 | AX25: Sin avance y en terminos | AY25: =AU25*($N$25/4) -> 0 | AZ25: 0.4 | BA25: Se enviaron correos para la calificación de las coberturas y se consideraron las observaciones de los compañeros y compañeras del equipo ambiental. En este proceso, se identificaron variables sociales y ambientales. Además, se realizaron reuniones con los equipos de GIS y los profesionales de cada equipo (Ambiental, Social y Territorial) para definir las variables. | BB25: 0.6 | BC25: De los 357 objetos identificados en la base de datos de la entidad, se identificaron 136 capas de información geográfica social, ambiental y cartografía básica, de las cuales en 52 capas (38%) se requiere realizar una solicitud a las entidades generadoras de la información para obtener las versiones más recientes; es decir se ha actualizado un 62% de las capas socioambientales. (Anexo 100-4-1: Base de datos relación variables a solicitar) | BD25: 0.7 | BE25: Las 84 capas restantes que no fueron necesarias tramitar debido a que su información está disponible para descarga en entidades oficiales, se tienen almacenadas en el servidor info_geo, se mantiene el 62% de las variables actualizadas y se está a la espera de los avances en el 38% que corresponden a las variables que fueron solicitadas para su trámite de obtención a través de la oficina de subdirección de la información. Anexo 100-4-1: Base de datos relación variables actualizadas | BF25: =SUM(Q25:Y25)*($N$25/4) -> 0.02875 | BG25: Con avance y en terminos | BH25: =BD25*($N$25/4) -> 0.04025 | BI25: 0.7 | BJ25: Se tienen avana ya que la espera de la recepción de las capas solicitadas para cargar las mismas a la base de datos de la entidad. | BK25: 0.7 | BM25: 1 | BN25: Las 84 capas restantes que no fueron necesarias tramitar debido a que su información está disponible para descarga en entidades oficiales, se tienen almacenadas en el servidor info_geo, se mantiene el 62% de las variables actualizadas y se está a la espera de los avances en el 38% que corresponden a las variables que fueron solicitadas para su trámite de obtención. | BO25: =SUM(Q25:AB25)*($N$25/4) -> 0.0575 | BP25: =IF(BQ25=BO25,"Ejecutada",IF(BQ25<BO25,"Con rezago","REVISAR")) -> Ejecutada | BQ25: =BM25*($N$25/4) -> 0.0575
E26: Consolidar la modernización de la entidad para fortalecer la planeación minero energética del país y el rol como el CIO del sector. | F26: Fortalecer la gobernanza de la información, mediante la adopción de herramientas tecnológicas que faciliten la gestión adecuada de los datos e información para la planeación y la investigación. | G26: Actualizar los sistemas de información para procesos ambientales y sociales | H26: Plan Estratégico de Tecnologías de la Información y las Comunicaciones PETI | J26: Geovisor con capas sociales y ambientales actualizado | O26: 100-4-2 | P26: Adquirir las fuentes de datos de actualización de las variables sociales y ambientales. (abril - diciembre) | T26: 0.1 | Y26: 0.4 | AA26: 0.5 | AC26: =SUM(Q26:AB26) -> 1 | AH26: 0 | AI26: Para este mes no se programaron actividades | AJ26: 0 | AK26: Para este mes no se programaron actividades | AN26: =SUM(Q26:S26)*($N$25/4) -> 0 | AP26: =AL26*($N$25/4) -> 0 | AU26: 0 | AW26: =SUM(Q26:V26)*($N$25/4) -> 0.00575 | AX26: Sin avance y en terminos | AY26: =AU26*($N$25/4) -> 0 | AZ26: 0.1 | BA26: Se anexa excel con fuente de datos y cobertura de variables. | BB26: 0.2 | BC26: Se está realizando la proyección del correo para la subdirección de gestión de la información reportando la solicitud de los 52 capas socioambientales requeridas. Adicional a ello se ha identificado la necesidad de gestionar nueva información para complementar la información geográfica social. Anexo 100 - 4 - 2: Correo dirigido al gerente del proyecto de enfoque territorial. | BD26: 0.7 | BE26: Se elevó el correo correspondiente adjunto un documento tipo excel en el que se detallan en diferentes hojas la información que se requiere tener o actualizar y que por el momento reposa o es generada por otras entidades.También fueron solicitadas más capas de información que fueron puntualizadas como necesarias hasta el momento desde el equipo ambiental del grupo de enfoque territorial. Anexo 100 - 4 - 2: Excel elevado con solicitudes interinstitucionales | BF26: =SUM(Q26:Y26)*($N$25/4) -> 0.02875 | BG26: Con avance y en terminos | BH26: =BD26*($N$25/4) -> 0.04025 | BI26: 0.7 | BJ26: Se tienen avance ya que la espera de la recepción de las capas solicitadas para cargar las mismas a la base de datos de la entidad. | BK26: 0.7 | BM26: 1 | BN26: Se identificaron las variables y/o capas correspondientes conforme a la última información disponible y actualizada. | BO26: =SUM(Q26:AB26)*($N$25/4) -> 0.0575 | BP26: =IF(BQ26=BO26,"Ejecutada",IF(BQ26<BO26,"Con rezago","REVISAR")) -> Ejecutada | BQ26: =BM26*($N$25/4) -> 0.0575
E27: Consolidar la modernización de la entidad para fortalecer la planeación minero energética del país y el rol como el CIO del sector. | F27: Fortalecer la gobernanza de la información, mediante la adopción de herramientas tecnológicas que faciliten la gestión adecuada de los datos e información para la planeación y la investigación. | G27: Actualizar los sistemas de información para procesos ambientales y sociales | H27: Plan Estratégico de Tecnologías de la Información y las Comunicaciones PETI | J27: Geovisor con capas sociales y ambientales actualizado | O27: 100-4-3 | P27: Almacenar y disponer la información de las variables sociales y ambientales a ser analizadas por el equipo de enfoque territorial. (abril - diciembre) | U27: 0.1 | Y27: 0.4 | AA27: 0.5 | AC27: =SUM(Q27:AB27) -> 1 | AH27: 0 | AI27: Para este mes no se programaron actividades | AJ27: 0 | AK27: Para este mes no se programaron actividades | AL27: 0.1 | AM27: * El 24 de abril se realizó reunión con el equipo encargado de administrar las capas de información cartográfica y alfanumérica almacenadas en la entidad sobe aspectos sociales y ambientales. En el siguiente link está la grabación de la reunión. https://drive.google.com/file/d/1MhKAiwkd2cd5_URu3KtVZ6sQD-r6AKaG/view * El 30 de abril se llevó acabo reunión con la Gerente de Proyecto y la Subdirectora de Inofrmación para ver alcance y avances del geovisor de la entidaad. La grabación de la reunión está en: https://drive.google.com/file/d/1vkFdByp2TQqYrrq5b270JuSTZe1H4Pqs/view | AN27: =SUM(Q27:S27)*($N$25/4) -> 0 | AP27: =AL27*($N$25/4) -> 0.00575 | AS27: 0.1 | AT27: Se avanzo con la identificación de las variables y se contratarón los profesionales encargados del tema. | AU27: 0.1 | AV27: Continua con el mismo avance de mayo | AW27: =SUM(Q27:V27)*($N$25/4) -> 0.00575 | AX27: Con avance y en terminos | AY27: =AU27*($N$25/4) -> 0.00575 | AZ27: 0.3 | BA27: En el periodo correspondiente, se inició el primer ejercicio de mapeo de "Territorio Vivo". Este proceso consiste en la recopilación y subida de diversas variables por departamentos, con el fin de construir una representación integral y dinámica del territorio. Estas variables incluyen aspectos sociales, ambientales, permitiendo una visión más completa y detallada de cada región. Este primer ejercicio es fundamental para identificar patrones, conflictos y oportunidades de desarrollo en el marco de la planeación minero-energética. | BB27: 0.6 | BC27: En el servidor info_geo se crea la carpeta "GIS - Enfoque Territorial" la cual se está alimentando con las variables socioambientales actualizadas. Por el volumen de la información se presenta en un pantallazo la ruta. Anexo 100 - 4 - 3: Ruta de cargue de información. | BD27: 0.65 | BE27: La carpeta "GIS - Enfoque Territorial" se está alimentando con las variables socioambientales actualizadas teniendo en cuenta las solicitudes que se han realizado desde las diferentes áreas, así mismo se está a la espera de las variables solicitadas en el correo anteriormente mencionado para seguir alimentando al servidor con la información restante. Por el volumen de la información se presenta en un pantallazo la ruta. Anexo 100 - 4 - 3: Ruta de cargue de información. | BF27: =SUM(Q27:Y27)*($N$25/4) -> 0.02875 | BG27: Con avance y en terminos | BH27: =BD27*($N$25/4) -> 0.037375 | BI27: 0.8 | BJ27: La carpeta "GIS - Enfoque Territorial" se sigue alimentando con las variables socioambientales actualizadas teniendo en cuenta las solicitudes que se han realizado desde las diferentes áreas, así mismo se está a la espera de las variables solicitadas en el correo anteriormente mencionado para seguir alimentando al servidor con la información restante. Para el mes de octubre se construyeron variables sociales referentes a DDHH, género y arqueología; por parte del área ambiental se han cargado variables referentes a acuíferos y vulnerabilidad hídrica. Por el volumen de la información se presenta en un pantallazo la ruta. Anexo 100 - 4 - 3: Ruta de cargue de información. | BK27: 0.8 | BM27: 1 | BN27: La carpeta "GIS - Enfoque Territorial" se sigue alimentando con las variables ambientales actualizadas teniendo en cuenta las solicitudes que se han realizado desde el área, así mismo se está a la espera de las variables solicitadas en el correo anteriormente mencionado para seguir alimentando al servidor con la información restante. Para el mes de diciembre se cargaron variables ambientales referentes a índices de pobreza multidimensional y energética, municipios muestreo PIEC, datos demográficos, nivel de riesgo MITI y mapas departamentales minero energéticos, etc. Por el volumen de la información se presenta en un pantallazo la ruta. Anexo 100 - 4 - 3: Ruta de cargue de información. | BO27: =SUM(Q27:AB27)*($N$25/4) -> 0.0575 | BP27: =IF(BQ27=BO27,"Ejecutada",IF(BQ27<BO27,"Con rezago","REVISAR")) -> Ejecutada | BQ27: =BM27*($N$25/4) -> 0.0575
E28: Consolidar la modernización de la entidad para fortalecer la planeación minero energética del país y el rol como el CIO del sector. | F28: Fortalecer la gobernanza de la información, mediante la adopción de herramientas tecnológicas que faciliten la gestión adecuada de los datos e información para la planeación y la investigación. | G28: Actualizar los sistemas de información para procesos ambientales y sociales | H28: Plan Estratégico de Tecnologías de la Información y las Comunicaciones PETI | J28: Geovisor con capas sociales y ambientales actualizado | O28: 100-4-4 | P28: Disponer de dashboard, visores y ejercicios de analítica en el geoportal con variables sociales y ambientales (junio - diciembre) | V28: 0.1 | Z28: 0.5 | AA28: 0.4 | AC28: =SUM(Q28:AB28) -> 1 | AH28: 0 | AI28: Para este mes no se programaron actividades | AJ28: 0 | AK28: Para este mes no se programaron actividades | AN28: =SUM(Q28:S28)*($N$25/4) -> 0 | AP28: =AL28*($N$25/4) -> 0 | AU28: 0.2 | AV28: Se inicia la recolección de la información actualizada tipo shapefile. Se anexa Excel con los links de descarga debido a que los archivos son demasiado pesados para ser enviados. | AW28: =SUM(Q28:V28)*($N$25/4) -> 0.00575 | AX28: Con avance y en terminos | AY28: =AU28*($N$25/4) -> 0.0115 | AZ28: 0.3 | BA28: Este ítem es complementario con el ítem 100-3 , se ha dispuesto de dashboards, visores y ejercicios de analítica en el geoportal, integrando estas variables sociales y ambientales. Estas herramientas permiten una visualización interactiva y análisis detallados, facilitando la toma de decisiones informadas y la identificación de patrones, conflictos y oportunidades de desarrollo en el marco de la planeación minero-energética. Esto se esta construyendo para trabajar en el marco d eUPME al Territorio | BB28: 0.6 | BC28: En el servidor info_geo se crea la carpeta "GIS - Enfoque Territorial" la cual se está alimentando con las variables socioambientales actualizadas. Por el volumen de la información se presenta en un pantallazo la ruta. Anexo 100 - 4 - 3: Ruta de cargue de información. | BD28: 0.65 | BE28: Se generó un story map del evento llevado a cabo en Pereira el cual fue alimentado no solo con la información geográfica pertinente sino con información en otros formatos recolectada en el evento: Link: https://experience.arcgis.com/experience/b2fe4c387d3c4aad8a2d5830cb0855f4 | BF28: =SUM(Q28:Y28)*($N$25/4) -> 0.00575 | BG28: Con avance y en terminos | BH28: =BD28*($N$25/4) -> 0.037375 | BI28: 0.75 | BJ28: En conjunto con la subdirección de información se ha estado diseñando y alimentando el micrositio con la información recogida en los eventos de UPME al territorio y las variables desarrolladas desde las diferentes áreas del equipo de enfoque territorial: Link: https://experience.arcgis.com/experience/b2fe4c387d3c4aad8a2d5830cb0855f4 | BK28: 0.95 | BL28: "En conjunto con la subdirección de información se diseñó y se alimentó el sitio con la información recogida en los eventos de UPME al territorio y las variables desarrolladas desde las diferentes áreas del equipo de enfoque territorial: Link: https://experience.arcgis.com/experience/7c8ecf1c28be47e3b431c7fe4105a03e" | BM28: 1 | BN28: Se muestra en reunión final al director de la UPME, el diseño y montaje final del micrositio "Territorio Vivo" creado de la mano de la subdirección de gestión de la información. Link: https://experience.arcgis.com/experience/7c8ecf1c28be47e3b431c7fe4105a03e | BO28: =SUM(Q28:AB28)*($N$25/4) -> 0.0575 | BP28: =IF(BQ28=BO28,"Ejecutada",IF(BQ28<BO28,"Con rezago","REVISAR")) -> Ejecutada | BQ28: =BM28*($N$25/4) -> 0.0575
E29: Consolidar la modernización de la entidad para fortalecer la planeación minero energética del país y el rol como el CIO del sector. | F29: Fortalecer la gobernanza de la información, mediante la adopción de herramientas tecnológicas que faciliten la gestión adecuada de los datos e información para la planeación y la investigación. | G29: Actualizar los sistemas de información para procesos ambientales y sociales | H29: Plan Estratégico de Tecnologías de la Información y las Comunicaciones PETI | I29: 100-5 | J29: Sistema de información -Territorio vivo | L29: 1 | M29: Herramienta | N29: 0.2 | O29: 100-5-1 | P29: Definir la arquitectura de los datos a ser almacenados de variables sociales y ambientales. (abril - julio) | T29: 0.4 | V29: 0.6 | AC29: =SUM(Q29:AB29) -> 1 | AD29: Fortalecimiento del levantamiento, gestión y apropiación de la información para la planeación del sector minero energético con enfoque territorial Nacional | AE29: 100-32,100-33,100-36, 100-9,100-19,100-29,100-39, 100-38,100-39,100-43 | AH29: 0 | AI29: Para este mes no se programaron actividades | AJ29: 0 | AK29: Para este mes no se programaron actividades | AN29: =SUM(Q29:S29)*($N$29/3) -> 0 | AP29: =AL29*($N$29/3) -> 0 | AU29: 0.1 | AV29: Se inicia apoyo al grupo de Cobertura con la recolección y actualización de la información cartográfica expresada en variables que serán ponderadas por el equipo territorial para una evaluación costo – beneficio en la electrificación de los puntos sin conexión. | AW29: =SUM(Q29:V29)*($N$29/3) -> 0.06666666667 | AX29: Con rezago | AY29: =AU29*($N$29/3) -> 0.006666666667 | AZ29: 0.6 | BA29: se ha avanzado en la definición de la arquitectura de los datos que serán almacenados, abarcando tanto las variables sociales como las ambientales. Este trabajo es esencial para garantizar una organización eficiente y una accesibilidad óptima de la información, facilitando su integración en dashboards, visores y ejercicios de analítica en el geoportal. La arquitectura de datos definida permitirá una gestión robusta y estructurada, soportando la toma de decisiones informadas y el análisis detallado de las diversas dinámicas territoriales. | BB29: 0.7 | BC29: Diseño de propuesta de estrucutura de base de datos para el almacenamiento de las variables socioambientales. Pendientes por validación de subdirección de gestión de la información. Anexo 100 - 5 - 1: Documento propuesta estructura de datos pendiente Santi | BD29: 0.8 | BE29: a propuesta en formato word fue remitida y está en espera de validación de subdirección de gestión de la información con el apoyo de la nueva profesional de gestión de la información desiganda para tal fin. Anexo 100_5_1 Documento propuesta estructura de datos.docx | BF29: =SUM(Q29:Y29)*($N$29/3) -> 0.06666666667 | BG29: Con rezago | BH29: =BD29*($N$29/3) -> 0.05333333333 | BI29: 0.85 | BJ29: Se definió junto con la oficina de gestión de la información la arquitectura a utilizar para el almacenamiento de los datos. Anexo: Anexo 100_5_1 Estructura definida arquitectura almacenamiento.jpg | BK29: 0.85 | BM29: 1 | BN29: Después de una primera revisión no se encontraron sugerencias o cambios a la arquitectura propuesta, razón por la cual se mantiene la presentada hasta el momento. Anexo: Anexo 100_5_1 Estructura definida arquitectura almacenamiento.jpg | BO29: =SUM(Q29:AB29)*($N$29/3) -> 0.06666666667 | BP29: =IF(BQ29=BO29,"Ejecutada",IF(BQ29<BO29,"Con rezago","REVISAR")) -> Ejecutada | BQ29: =BM29*($N$29/3) -> 0.06666666667
E30: Consolidar la modernización de la entidad para fortalecer la planeación minero energética del país y el rol como el CIO del sector. | F30: Fortalecer la gobernanza de la información, mediante la adopción de herramientas tecnológicas que faciliten la gestión adecuada de los datos e información para la planeación y la investigación. | G30: Actualizar los sistemas de información para procesos ambientales y sociales | H30: Plan Estratégico de Tecnologías de la Información y las Comunicaciones PETI | J30: Sistema de información -Territorio vivo | O30: 100-5-2 | P30: Disponer del inventario y metadato de la información de las variables sociales y ambientales. (abril - diciembre) | T30: 0.1 | Y30: 0.4 | Z30: 0.5 | AC30: =SUM(Q30:AB30) -> 1 | AH30: 0 | AI30: Para este mes no se programaron actividades | AJ30: 0 | AK30: Para este mes no se programaron actividades | AN30: =SUM(Q30:S30)*($N$29/3) -> 0 | AP30: =AL30*($N$29/3) -> 0 | AU30: 0 | AW30: =SUM(Q30:V30)*($N$29/3) -> 0.006666666667 | AX30: Con rezago | AY30: =AU30*($N$29/3) -> 0 | AZ30: 0.1 | BA30: Este ítem se cumple con los ítem 100-4-3,100-4, el ítem 100-5-1y 100-2 | BB30: 0.2 | BC30: Definición de la estructura del diccionario de datos según los lineamientos de la subdirección de gestión de la información. | BD30: 0.8 | BE30: La definición de la estructura del diccionario de datos según los lineamientos de la subdirección de gestión de la información esta en espera a ser validada por el ingeniero John Alejandro Barrios para su aprobación. | BF30: =SUM(Q30:Y30)*($N$29/3) -> 0.03333333333 | BG30: Con avance y en terminos | BH30: =BD30*($N$29/3) -> 0.05333333333 | BI30: 0.85 | BJ30: La definición de la estructura del diccionario de datos según los lineamientos de la subdirección de gestión de la información esta en espera a ser validada por el ingeniero John Alejandro Barrios para su aprobación. Anexo 100_5_2 Formato diccionario de datos por objeto.jpg | BK30: 0.85 | BL30: La definición de la estructura del diccionario de datos según los lineamientos de la subdirección de gestión de la información esta en proceso de conformación por el ingeniero John Alejandro Barrios. | BM30: 1 | BN30: La definición de la estructura del diccionario de datos según los lineamientos de la subdirección de gestión de la información esta en proceso de conformación por el ingeniero John Alejandro Barrios para el siguiente año. | BO30: =SUM(Q30:AB30)*($N$29/3) -> 0.06666666667 | BP30: =IF(BQ30=BO30,"Ejecutada",IF(BQ30<BO30,"Con rezago","REVISAR")) -> Ejecutada | BQ30: =BM30*($N$29/3) -> 0.06666666667
E31: Consolidar la modernización de la entidad para fortalecer la planeación minero energética del país y el rol como el CIO del sector. | F31: Fortalecer la gobernanza de la información, mediante la adopción de herramientas tecnológicas que faciliten la gestión adecuada de los datos e información para la planeación y la investigación. | G31: Actualizar los sistemas de información para procesos ambientales y sociales | H31: Plan Estratégico de Tecnologías de la Información y las Comunicaciones PETI | J31: Sistema de información -Territorio vivo | O31: 100-5-3 | P31: Disponer del repositorio de la información para consulta interna de variables sociales y ambientales (julio - diciembre) | T31: 0.1 | Y31: 0.4 | AA31: 0.5 | AC31: =SUM(Q31:AB31) -> 1 | AH31: 0 | AI31: Para este mes no se programaron actividades | AJ31: 0 | AK31: Para este mes no se programaron actividades | AN31: =SUM(Q31:S31)*($N$29/3) -> 0 | AP31: =AL31*($N$29/3) -> 0 | AU31: 0 | AW31: =SUM(Q31:V31)*($N$29/3) -> 0.006666666667 | AX31: Con rezago | AY31: =AU31*($N$29/3) -> 0 | BA31: Este ítem se cumple con los ítem 100-1,100-2, 100-4-3,100-4. | BB31: 0.1 | BC31: Se encuentra en desarrollo el repositorio general de acuerdo a los lineamientos de la subdirección de gestión de la información; sin embargo, actualmente se tiene un repositorio en el servidor de la entidad. Anexo 100 - 4 - 3: Ruta de cargue de información | BD31: 0.3 | BE31: Se ha ido alimentando el servidor de info_geo con los mapas que se han generado mediante requerimientos tanto del grupo de enfoque territorial como de la subdirección de minería. Anexo 100 - 5 - 3: Ruta de cargue de mapas. | BF31: =SUM(Q31:Y31)*($N$29/3) -> 0.03333333333 | BG31: Con rezago | BH31: =BD31*($N$29/3) -> 0.02 | BI31: 0.4 | BJ31: Se ha ido alimentando el servidor de info_geo con los mapas que se han generado mediante requerimientos tanto del grupo de enfoque territorial como de la subdirección de minería. Anexo 100 - 5 - 3: Ruta de cargue de mapas. | BK31: 0.4 | BM31: 1 | BN31: Se sigue alimentando el servidor de info_geo con los mapas que se han generado mediante requerimientos tanto del grupo de enfoque territorial como de la subdirección de minería. Anexo 100 - 5 - 3: Ruta de cargue de mapas. | BO31: =SUM(Q31:AB31)*($N$29/3) -> 0.06666666667 | BP31: =IF(BQ31=BO31,"Ejecutada",IF(BQ31<BO31,"Con rezago","REVISAR")) -> Ejecutada | BQ31: =BM31*($N$29/3) -> 0.06666666667
B32: 4. Internacionalización, transformación productiva para la vida y acción climática | C32: 2. Desarrollo económico a partir de eficiencia energética, nuevos energéticos y minerales estratégicos para la transición. | E32: Propiciar posturas técnicas disruptivas y transformadoras, desde la planificación minero energética integral, para propender por cambios en materia económica, social y fiscal del país. | F32: Fortalecer y ampliar la capacidad institucional para proponer política minero energética disruptiva y trasformadora para la discusión nacional y los espacios de decisión de cara a la TEJ. | G32: Formular el plan de Bionergía regionalizado articuladamente con las Subdirecciones de la UPME | I32: 100-6 | J32: Documento (capítulos) con referentes territoriales para los planes de Bionergia | L32: 1 | M32: Documento | N32: 0.1 | O32: 100-6-1 | P32: Definir con cada Subdirección qué variables o elementos relacionados con bionergía se deben incluir en el Plan de Bionergía | T32: 1 | AC32: =SUM(Q32:AB32) -> 1 | AD32: Fortalecimiento del levantamiento, gestión y apropiación de la información para la planeación del sector minero energético con enfoque territorial Nacional | AE32: 100-1, 100-2,100-32,100-19,100-29, 100-39. | AH32: 0 | AI32: Para este mes no se programaron actividades | AJ32: 0 | AK32: Para este mes no se programaron actividades | AN32: =SUM(Q32:S32)*($N$32/3) -> 0 | AP32: =AL32*($N$32/3) -> 0 | AS32: 0.2 | AT32: (09/05/24) Reunion de presentación de la propuesta de Plan indicativo de Bioenergia a cargo de la Subdirección de Hidrocarburos con el objeto de dar a conocer el alcance esperado, cronograma preliminar 2024-2025 con el objeto de definir de manera conjunta la inclución transversal del enfoque territorial y apartir de alli cada area definir una acciones a presentar en el mes de junio. (Anexo: video reunión https://drive.google.com/file/d/1Lxab6DG3GxDuXvkM8_wm2BCdE03aP7kl/view?usp=drive_link) | AU32: 0.3 | AV32: El grupo de territorialización elaboró la propuesta preliminar del plan de accion para la formulación del Plan de Bionergia regionalizado con enfoque territorial, de genro y diferencial. (25.06.24) Reunión para la articulación de planes de trabajo con la subdireccion de hidrocarburos encargado del Plan de Bioenergia regionalizado y el grupo de Demanda encargado del Plan Nacional de Bioenergia | AW32: =SUM(Q32:V32)*($N$32/3) -> 0.03333333333 | AX32: Con rezago | AY32: =AU32*($N$32/3) -> 0.01 | AZ32: 0.6 | BA32: Se ha trabajando conjuntamente con la subdirección en la construcción del plan indicativo de Bionergía. | BB32: 0.7 | BC32: Se realizaron reuniones con subdirección de hidrocarburo y la subdirección de Demanda donde se avanzo en los lineameintos para la generadción de los documentos | BD32: 0.8 | BE32: Se participo en 4 reuniones de seguimiento convocada por Hidrocarburos y Demanda para la revisión y aportes de los Bionergéticos con may0r potencial . Se realizó en el Plan de Trabajo Detallado del Plan Indicativo de Bioenergía del Pacífico - PIBE. Se adjunta Plan de Trabajo del equipo social y ambiental, así como mapas preliminares presentados a la coordinación del PIBE. | BF32: =SUM(Q32:Y32)*($N$32/3) -> 0.03333333333 | BG32: Con rezago | BH32: =BD32*($N$32/3) -> 0.02666666667 | BI32: 0.8 | BK32: 0.8 | BM32: 1 | BN32: Se entrega el documento "CAPÍTULO 1: BIOENERGÍA PARA LA REGIÓN PACÍFICO: Referencias con los Objetivos de Desarrollo Sostenible" CAPÍTULO 1: BIOENERGÍA PARA LA REGIÓN PACÍFICO: Referencia de regionalización Pacífico Documento :IMPLICACIONES SOCIALES DE LA EXPANSIÓN DE LA COBERTURA DE ENERGÍA ELÉCTRICA Análisis socioeconómico1 | BO32: =SUM(Q32:AB32)*($N$32/2) -> 0.05 | BP32: =IF(BQ32=BO32,"Ejecutada",IF(BQ32<BO32,"Con rezago","REVISAR")) -> Ejecutada | BQ32: =BM32*($N$32/2) -> 0.05
E33: Propiciar posturas técnicas disruptivas y transformadoras, desde la planificación minero energética integral, para propender por cambios en materia económica, social y fiscal del país. | F33: Fortalecer y ampliar la capacidad institucional para proponer política minero energética disruptiva y trasformadora para la discusión nacional y los espacios de decisión de cara a la TEJ. | G33: Formular el plan de Bionergía regionalizado articuladamente con las Subdirecciones de la UPME | J33: Documento (capítulos) con referentes territoriales para los planes de Bionergia | O33: 100-6-2 | P33: Informe consolidado de ejercicios pedagógicos y recopilación de insumos para la construcción del Plan de Bioenergía a través de la estrategia "UPME al Territorio" | Y33: 1 | AC33: =SUM(Q33:AB33) -> 1 | AH33: 0 | AI33: Para este mes no se programaron actividades | AJ33: 0 | AK33: Para este mes no se programaron actividades | AN33: =SUM(Q33:S33)*($N$32/3) -> 0 | AP33: =AL33*($N$32/3) -> 0 | AU33: 0 | AW33: =SUM(Q33:V33)*($N$32/3) -> 0 | AX33: Sin avance y en terminos | AY33: =AU33*($N$32/3) -> 0 | AZ33: 0.2 | BA33: Se ha trabajando conjuntamente con la subdirección en la construcción del plan indicativo de Bionergía | BB33: 0.2 | BC33: No hay avance | BD33: 0.2 | BE33: No hay avance | BF33: =SUM(Q33:Y33)*($N$32/3) -> 0.03333333333 | BG33: Con rezago | BH33: =BD33*($N$32/3) -> 0.006666666667 | BI33: 0.2 | BK33: 0.2 | BM33: 1 | BN33: PLAN INDICATIVO DE EXPANSIÓN DE COBERTURA DE ENERGÍA ELÉCTRICA PIEC - 2024 DOCUMENTO CON LOS ASPECTOS A TENER EN CUENTA DESDE EL PUNTO DE VISTA AMBIENTAL, SOCIAL, TERRITORIAL Y DE GÉNERO PARA EL DESARROLLO DE UNA COMUNIDAD ENERGÉTICA | BO33: =SUM(Q33:AB33)*($N$32/2) -> 0.05 | BP33: =IF(BQ33=BO33,"Ejecutada",IF(BQ33<BO33,"Con rezago","REVISAR")) -> Ejecutada | BQ33: =BM33*($N$32/2) -> 0.05
AM34: Avance al Trimestre I | AN34: =SUM(AN13:AN33) -> 0.03066666667 | AP34: =SUM(AP13:AP33) -> 0.03875 | AV34: Avance al Trimestre II | AW34: =SUM(AW13:AW33) -> 0.351 | AY34: =SUM(AY13:AY33) -> 0.1865833333 | BF34: =SUM(BF13:BF33) -> 0.6041666667 | BH34: =SUM(BH13:BH33) -> 0.6280833333 | BO34: =SUM(BO13:BO33) -> 1 | BQ34: =SUM(BQ13:BQ33) -> 1
AN36: Ejecutada | AO36: 0 | AW36: Ejecutada | AX36: =COUNTIF($AX$13:$AX$33,AW36) -> 3 | BF36: Ejecutada | BG36: =COUNTIF($BG$13:$BG$33,BF36) -> 3 | BO36: Ejecutada | BP36: =COUNTIF($BP$13:$BP$33,BO36) -> 21
AN37: Con avance | AO37: 0 | AW37: Con avance y en terminos | AX37: =COUNTIF($AX$13:$AX$33,AW37) -> 6 | BF37: Con avance y en terminos | BG37: =COUNTIF($BG$13:$BG$33,BF37) -> 9 | BO37: Con avance y en terminos | BP37: =COUNTIF($BP$13:$BP$33,BO37) -> 0
AN38: Con Rezago | AO38: 0 | AW38: Con rezago | AX38: =COUNTIF($AX$13:$AX$33,AW38) -> 5 | BF38: Con rezago | BG38: =COUNTIF($BG$13:$BG$33,BF38) -> 7 | BO38: Con rezago | BP38: =COUNTIF($BP$13:$BP$33,BO38) -> 0
AW39: Sin avance y en terminos | AX39: =COUNTIF($AX$13:$AX$33,AW39) -> 7 | BF39: Sin avance y en terminos | BG39: =COUNTIF($BG$13:$BG$33,BF39) -> 2 | BO39: Sin avance y en terminos | BP39: =COUNTIF($BP$13:$BP$33,BO39) -> 0
AW40: Total Actividades | AX40: =SUM(AX36:AX39) -> 21 | BF40: Total Actividades | BG40: =SUM(BG36:BG39) -> 21 | BO40: Total Actividades | BP40: =SUM(BP36:BP39) -> 21

Sheet OAP
C2: FORMATO FORMULACIÓN Y REPORTE DE AVANCES DEL PLAN DE ACCIÓN UNIDAD DE PLANEACIÓN MINERO ENERGÉTICA - UPME | AG2: Código: F-DE-09
AG4: Versión No. 01
D7: DEPENDENCIA FORMULADORA | E7: Oficina Asesora de Planeación
B9: ARTICULACIÓN CON PND 2022 - 2026 | D9: PLAN ESTRATÉGICO SECTORIAL-PES | E9: ASOCIACIÓN CON LA PLANEACIÓN ESTRATÉGICA INSTITUCIONAL -PEI | H9: 5. OTROS PLANES | I9: 3. FORMULACIÓN DE PLAN DE ACCIÓN | Q9: PROGRAMACIÓN DE LA EJECUCIÓN DE LA ACTIVIDAD | AC9: VALIDACIÓN DE LA PROGRAMACIÓN | AD9: 4. FINANCIACIÓN | AF9: ASOCIACIÓN CON LAS POLÍTICAS DE MIPG | AH9: REPORTE MENSUAL DE AVANCES
Q11: TRIMESTRE I | T11: TRIMESTRE Il | W11: TRIMESTRE Ill | Z11: TRIMESTRE IV | AH11: ENERO | AJ11: FEBRERO | AL11: MARZO | AO11: AVANCE | AQ11: ABRIL | AS11: MAYO | AU11: JUNIO | AX11: AVANCE | AZ11: JULIO | BB11: AGOSTO | BD11: SEPTIEMBRE | BG11: AVANCE | BI11: OCTUBRE | BK11: NOVIEMBRE | BM11: DICIEMBRE | BP11: AVANCE
B12: TRANSFORMACIÓN | C12: CATALIZADOR | D12: COMPROMISO PES | E12: OBJETIVO ESTRATÉGICO INSTITUCIONAL | F12: ESTRATEGIA PEI | G12: COMPROMISO PEI | H12: PLAN INSTITUCIONAL RELACIONADO (Decreto 612 del 2018) | I12: ID del Entregable | J12: ENTREGABLE | K12: ENTREGABLES "OTROS PLANES" | L12: META | M12: UNIDAD DE MEDIDA O CARÁCTERÍSTICA | N12: PONDERACIÓN DEL ENTREGABLE | O12: ID de la Actividad | P12: ACTIVIDADES CLAVE PARA MATERIALIZAR DEL PRODUCTO | Q12: ENE | R12: FEB | S12: MAR | T12: ABR | U12: MAY | V12: JUN | W12: JUL | X12: AGO | Y12: SEP | Z12: OCT | AA12: NOV | AB12: DIC | AC12: VALIDACIÓN DE LA PROGRAMACIÓN | AD12: PROYECTOS DE INVERSIÓN ASOCIADO - LISTADO | AE12: ÍTEM(S) DEL PAA ASOCIADOS | AF12: 1ª POLÍTICA MIPG | AG12: 2ª POLÍTICA MIPG | AH12: PORCENTAJE DE AVANCE | AI12: DESCRIPCIÓN DEL AVANCE | AJ12: PORCENTAJE DE AVANCE (Acumulado) | AK12: DESCRIPCIÓN DEL AVANCE | AL12: PORCENTAJE DE AVANCE (Acumulado) | AM12: DESCRIPCIÓN DEL AVANCE | AN12: Proyectado ponderado | AO12: Avance TRIMESTRE I | AP12: Ejecutado ponderado | AQ12: PORCENTAJE DE AVANCE (Acumulado) | AR12: DESCRIPCIÓN DEL AVANCE | AS12: PORCENTAJE DE AVANCE (Acumulado) | AT12: DESCRIPCIÓN DEL AVANCE | AU12: PORCENTAJE DE AVANCE (Acumulado a Junio) | AV12: DESCRIPCIÓN DEL AVANCE (Acumulado a Junio) | AW12: Proyectado ponderado | AX12: TRIM. II | AY12: Ejecutado ponderado | AZ12: PORCENTAJE DE AVANCE (Acumulado a Julio) | BA12: DESCRIPCIÓN DEL AVANCE (Acumulado a Julio) | BB12: PORCENTAJE DE AVANCE (Acumulado a Agosto) | BC12: DESCRIPCIÓN DEL AVANCE (Acumulado a Agosto) | BD12: PORCENTAJE DE AVANCE (Acumulado a Septiembre) | BE12: DESCRIPCIÓN DEL AVANCE (Acumulado a Septiembre) | BF12: Proyectado ponderado | BG12: TRIM. III | BH12: Ejecutado ponderado | BI12: PORCENTAJE DE AVANCE (Acumulado a Octubre) | BJ12: DESCRIPCIÓN DEL AVANCE (Acumulado a Octubre) | BK12: PORCENTAJE DE AVANCE (Acumulado a Noviembre) | BL12: DESCRIPCIÓN DEL AVANCE (Acumulado a Noviembre) | BM12: PORCENTAJE DE AVANCE (Acumulado a Diciembre) | BN12: DESCRIPCIÓN DEL AVANCE (Acumulado a Diciembre) | BO12: Proyectado ponderado | BP12: TRIM. IV | BQ12: Ejecutado ponderado
B13: 4. Internacionalización, transformación productiva para la vida y acción climática | C13: 2. Desarrollo económico a partir de eficiencia energética, nuevos energéticos y minerales estratégicos para la transición. | E13: 2.Consolidar la modernización de la entidad para fortalecer la planeación minero energética del país y el rol como el CIO del sector. | F13: 5.Fortalecer la gobernanza de la información, mediante la adopción de herramientas tecnológicas que faciliten la gestión adecuada de los datos e información para la planeación y la investigación. | G13: Suministrar herramientas informáticas que faciliten la toma de decisiones eficaces en todos los niveles de la organización | I13: 101-1 | J13: Tableros de control diseñados e implementados (1 ejecución presupuestal, 1 de indicadores y 1 de riesgos) | L13: 1 | M13: Tablero de control | N13: 0.15 | O13: 101-1-1 | P13: Realizar un ejercicio de priorización para determinar las necesidades de la alta gerencia. | T13: 1 | AC13: =IF(SUM(Q13:AB13)=0," ",SUM(Q13:AB13)) -> 1 | AD13: Fortalecimiento de la percepción de la ciudadanía frente a los productos y servicios prestados por la UPME nacional | AE13: 101-3 | AF13: POL-14 Seguimiento y Evaluación del Desempeño Institucional | AG13: POL-17 Gestión Información Estadística | AN13: =SUM(Q13:S13)*($N$13/3) -> 0 | AO13: =IF(AL13="","",IF(AL13=SUM(V13:W13),"Al dia",IF(AL13<SUM(V13:W13),"Con Rezago",IF(AL13>SUM(V13:W13),"Sobre ejecutada","")))) ->  | AP13: =AL13*($N$13/3) -> 0 | AQ13: 1 | AR13: En conjunto con el equipo de la Oficina Asesora de Planeación se determinó que las necesidades prioritarias estaban en realizar una tablero para el control y seguimiento de la ejecución presupuestal en cuanto a recursos de inversión. | AS13: 1 | AT13: Ejecutada | AU13: 1 | AV13: Ejecutada | AW13: =SUM(Q13:V13)*($N$13/3) -> 0.05 | AX13: Ejecutada | AY13: =AU13*($N$13/3) -> 0.05 | AZ13: 1 | BA13: Ejecutada | BB13: 1 | BC13: Ejecutada | BD13: 1 | BE13: Ejecutada | BF13: =SUM(Q13:Y13)*($N$13/3) -> 0.05 | BG13: Ejecutada | BH13: =BD13*($N$13/3) -> 0.05 | BI13: 1 | BJ13: Ejecutada | BK13: 1 | BL13: Ejecutada | BM13: 1 | BN13: Ejecutada | BO13: =SUM(Q13:AB13)*($N$13/3) -> 0.05 | BP13: =IF(BQ13=BO13,"Ejecutada",IF(BQ13<BO13,"Con rezago","REVISAR")) -> Ejecutada | BQ13: =BM13*($N$13/3) -> 0.05
E14: 2.Consolidar la modernización de la entidad para fortalecer la planeación minero energética del país y el rol como el CIO del sector. | F14: 5.Fortalecer la gobernanza de la información, mediante la adopción de herramientas tecnológicas que faciliten la gestión adecuada de los datos e información para la planeación y la investigación. | G14: Suministrar herramientas informáticas que faciliten la toma de decisiones eficaces en todos los niveles de la organización | J14: Tableros de control diseñados e implementados (1 ejecución presupuestal, 1 de indicadores y 1 de riesgos) | O14: 101-1-2 | P14: Elaborar el tablero de control | W14: 1 | AC14: =IF(SUM(Q14:AB14)=0," ",SUM(Q14:AB14)) -> 1 | AN14: =SUM(Q14:S14)*($N$13/3) -> 0 | AO14: =IF(AL14="","",IF(AL14=SUM(V14:W14),"Al dia",IF(AL14<SUM(V14:W14),"Con Rezago",IF(AL14>SUM(V14:W14),"Sobre ejecutada","")))) ->  | AP14: =AL14*($N$13/3) -> 0 | AU14: 0.5 | AV14: Se avanzó con la elaboración de la primera versión del tablero de control en Power BI, este mismo, se encuentra en revisión y pruebas por parte del jefe de la OAP y de los funcionarios que desde esta misma oficina realizan el control y seguimiento a partir de archivos compartidos en Drive. | AW14: =SUM(Q14:V14)*($N$13/3) -> 0 | AX14: Con avance y en terminos | AY14: =AU14*($N$13/3) -> 0.025 | AZ14: 1 | BA14: Se terminó el tablero de control para el seguimiento y control de la ejecución del presupuesto de inversión, el cual se encuentra a cargo de la OAP. Esta tablero fue presentado a la mesa directa, quedará a disposición de la comunidad institucional para la consulta. El tablero se puede visualizar en el siguiente enlace de power BI: https://app.powerbi.com/view?r=eyJrIjoiZGIzNGFmYTktNGNhNi00ZDQ4LWJjODItZDRjN2MyNDQxNDZhIiwidCI6IjMzZWYwNmM5LTBiNjMtNDg3MC1hNTY1LWIzYzc5NWIxNmE1MyIsImMiOjR9 | BB14: 1 | BC14: Ejecutada | BD14: 1 | BE14: Ejecutada | BF14: =SUM(Q14:Y14)*($N$13/3) -> 0.05 | BG14: Ejecutada | BH14: =BD14*($N$13/3) -> 0.05 | BI14: 1 | BJ14: Ejecutada | BK14: 1 | BL14: Ejecutada | BM14: 1 | BN14: Ejecutada | BO14: =SUM(Q14:AB14)*($N$13/3) -> 0.05 | BP14: =IF(BQ14=BO14,"Ejecutada",IF(BQ14<BO14,"Con rezago","REVISAR")) -> Ejecutada | BQ14: =BM14*($N$13/3) -> 0.05
E15: 2.Consolidar la modernización de la entidad para fortalecer la planeación minero energética del país y el rol como el CIO del sector. | F15: 5.Fortalecer la gobernanza de la información, mediante la adopción de herramientas tecnológicas que faciliten la gestión adecuada de los datos e información para la planeación y la investigación. | G15: Suministrar herramientas informáticas que faciliten la toma de decisiones eficaces en todos los niveles de la organización | J15: Tableros de control diseñados e implementados (1 ejecución presupuestal, 1 de indicadores y 1 de riesgos) | O15: 101-1-3 | P15: Socializar y poner en funcionamiento el tablero de control elaborado | Y15: 1 | AC15: =IF(SUM(Q15:AB15)=0," ",SUM(Q15:AB15)) -> 1 | AN15: =SUM(Q15:S15)*($N$13/3) -> 0 | AO15: =IF(AL15="","",IF(AL15=SUM(V15:W15),"Al dia",IF(AL15<SUM(V15:W15),"Con Rezago",IF(AL15>SUM(V15:W15),"Sobre ejecutada","")))) ->  | AP15: =AL15*($N$13/3) -> 0 | AU15: 0 | AW15: =SUM(Q15:V15)*($N$13/3) -> 0 | AX15: Sin avance y en terminos | AY15: =AU15*($N$13/3) -> 0 | BB15: 1 | BC15: En la mesa de coordinación directiva No.33 del 5-08-2024, se presentó el tablero de control de ejecución presupuestal, el cual es el la herramienta que se utilizará en adelante para el seguimiento a la ejecución del presupuesto de inversión. Se sube como evidencia la presentación de la mesa. | BD15: 1 | BE15: Ejecutada | BF15: =SUM(Q15:Y15)*($N$13/3) -> 0.05 | BG15: Ejecutada | BH15: =BD15*($N$13/3) -> 0.05 | BI15: 1 | BJ15: Ejecutada | BK15: 1 | BL15: Ejecutada | BM15: 1 | BN15: Ejecutada | BO15: =SUM(Q15:AB15)*($N$13/3) -> 0.05 | BP15: =IF(BQ15=BO15,"Ejecutada",IF(BQ15<BO15,"Con rezago","REVISAR")) -> Ejecutada | BQ15: =BM15*($N$13/3) -> 0.05
B16: 4. Internacionalización, transformación productiva para la vida y acción climática | C16: 2. Desarrollo económico a partir de eficiencia energética, nuevos energéticos y minerales estratégicos para la transición. | E16: 2.Consolidar la modernización de la entidad para fortalecer la planeación minero energética del país y el rol como el CIO del sector. | F16: 7.Fortalecer y ampliar la capacidad institucional para proponer política minero energética disruptiva y trasformadora para la discusión nacional y los espacios de decisión de cara a la TEJ. (Obj. 2 y 3) | G16: Posicionar el Sistema de Gestión Institucional como una herramienta gerencial que aporte valor a la Entidad y partes interesadas | I16: 101-2 | J16: Sistema de gestión implementado y evaluado | L16: 1 | M16: Documento | N16: 0.15 | O16: 101-2-1 | P16: Elaborar la hoja de ruta para adecuar el Sistema de Gestión Institucional (Modelo integrado de planeación y gestión - MIPG) a la planeación estratégica de la UPME. | W16: 0.2 | X16: 0.8 | AC16: =IF(SUM(Q16:AB16)=0," ",SUM(Q16:AB16)) -> 1 | AD16: Fortalecimiento de la percepción de la ciudadanía frente a los productos y servicios prestados por la UPME nacional | AE16: 101-3 | AF16: POL-03 Planeación Institucional | AG16: POL-06 Fortalecimiento Organizacional y Simplificación de Procesos | AN16: =SUM(Q16:S16)*($N$16/4) -> 0 | AO16: =IF(AL16="","",IF(AL16=SUM(V16:W16),"Al dia",IF(AL16<SUM(V16:W16),"Con Rezago",IF(AL16>SUM(V16:W16),"Sobre ejecutada","")))) ->  | AP16: =AL16*($N$16/4) -> 0 | AQ16: 0.05 | AR16: A la fecha se ha desarrollado diagnóstico inicial frente a la identificación del nivel de madurez y apalancamiento de la Estrategia Institucional a través del SGI bajo el MIPG, el cual contempla la alineación y despliegue de la Planeación Estratégica (Misión, Visión, Valores, Objetivos y estrategias Institucionales, naturaleza, objeto, trámites y servicios de la UPME, Planes Institucionales (MIPG), Procesos, Indicadores de Gestión, Riesgos, Documentación, Gestión de Conocimiento, Arquitectura Empresarial) en todos los niveles de la Entidad. Para el desarrollo de esta actividad se realizó la contratación de un profesional que se vincula a la OAP en el equipo de MIPG a partir del 22 de marzo de 2024, consolidando así el equipo de trabajo en la OAP para liderar y gestionar este frente de acción, razón por la cual se extiende el desarrollo de esta actividad de marzo a julio. En la última semana de marzo y primera de abril el equipo de MIPG ha establecido en detalle el plan de trabajo para atender cada frente, considerando las prioridades existentes. A partir de ello, en el Comité Institucional de Gestión y Desempeño previsto para el mes de abril (10 de mayo) se solicitará la modificación de la fecha de ejecución de la actividad la cual se proyecta para julio teniendo en cuenta que esta hoja de ruta abarca diferentes componentes que deben articularse en el marco de la reestructuración del SGI, tales como: Planeación Estratégica Institucional, MIPG, gestión del conocimiento, arquitectura organizacional y arquitectura empresarial. | AU16: 0.05 | AV16: Continua con el mismo avance de abril | AW16: =SUM(Q16:V16)*($N$16/4) -> 0 | AX16: Con avance y en terminos | AY16: =AU16*($N$16/4) -> 0.001875 | AZ16: 0.2 | BA16: Se establecen las tres (3) etapas clave (hito) y priorizadas para la reestructuración del mapa de procesos en 2024, las cuales son presentados en el Comité Institucional de Gestión y Desempeño realizado el 29 de julio de 2024. La definición de hitos representa el 20% de avance de esta actividad. Las actividades referenciadas en los hitos describen cómo se realizará la reestructuración de los procesos, los cuales tendrán en cuenta como componentes de integración los enfoques: interseccional (territorial, social, ambiental, étnico y de género), el PEI, MIPG, cooperación internacional, racionalización de trámites, arquitectura empresarial y gestión de conocimiento e innovación, así como la redefinición de las caracterizaciones de procesos con sus componentes de integración, el plan documental que incluye la generación de la documentación del proceso a partir de la caracterización definida, los indicadores y riesgos asociados. Se desarrollan sesiones de trabajo con el área de Enfoque Territorial para presentar la estructura de la documentación del Sistema de Gestión Institucional y acordar la entrega del diagnóstico generado por esta área, para su integración en el diagnóstico la hoja de ruta de la generación de la Cadena de Valor y la Reestructuración de los Procesos. Se modifican las fechas y distribución porcentual de ejecución de las actividades del entregable “Sistema de gestión implementado y evaluado”. Para el mes de julio se proyectó la definición de las actividades hito de la hoja de ruta para la reestructuración del mapa de procesos de la Entidad, equivalente al 20% y para agosto el detalle de actividades, responsables y fechas para su implementación, correspondiente al 80%. Lo anterior, considerando la distribución y priorización de actividades en el equipo MIPG de la OAP y los enfoques que serán incorporados a los procesos en alineación con el Plan Estratégico Institucional (Arquitectura empresarial, Enfoque interseccional, Cooperación Internacional, Gestión del Conocimiento e innovación, racionalización de trámites y plan de brechas). A su vez, se ajustan las fechas de las actividades conexas que se ven impactadas de acuerdo con la proyección de la hoja de ruta. | BB16: 1 | BC16: Respecto a las tres etapas claves priorizadas para la reestructuración de procesos, durante el mes de agosto se constituyó el 100% de la hoja de ruta de la modernización de procesos, la cual contiene el paso a paso de su desarrollo, responsables, tiempos, seguimientos e informes necesarios por etapa, con el fin gestionar los grandes entregables correspondientes a: Metodología a ser implementada, Propuesta Inicial de la Cadena de Valor, Cadena de Valor Final complementada con la visión estratégica y táctica, y el modelamiento del ciclo de los procesos mediante las caracterizaciones, indicadores, riesgos y documentación. La Hoja de Ruta de la Modernización de Procesos se presenta al Jefe de la Oficina Asesora de Planeación en dos sesiones, el 30 de agosto y el 3 de septiembre del 2024, para dar a conocer se estructura y recibir su aval. A partir del mes de Septiembre se inicia la implementación de la primera etapa. | BD16: 1 | BE16: Ejecutada | BF16: =SUM(Q16:Y16)*($N$16/4) -> 0.0375 | BG16: Ejecutada | BH16: =BD16*($N$16/4) -> 0.0375 | BI16: 1 | BJ16: Ejecutada | BK16: 1 | BL16: Ejecutada | BM16: 1 | BN16: Ejecutada | BO16: =SUM(Q16:AB16)*($N$16/4) -> 0.0375 | BP16: =IF(BQ16=BO16,"Ejecutada",IF(BQ16<BO16,"Con rezago","REVISAR")) -> Ejecutada | BQ16: =BM16*($N$16/4) -> 0.0375
E17: 2.Consolidar la modernización de la entidad para fortalecer la planeación minero energética del país y el rol como el CIO del sector. | F17: 7.Fortalecer y ampliar la capacidad institucional para proponer política minero energética disruptiva y transformadora para la discusión nacional y los espacios de decisión de cara a la TEJ. (Obj. 2 y 3) | G17: Posicionar el Sistema de Gestión Institucional como una herramienta gerencial que aporte valor a la Entidad y partes interesadas | J17: Sistema de gestión implementado y evaluado | O17: 101-2-2 | P17: Implementar la hoja de ruta trazada para la vigencia | Z17: 0.5 | AB17: 0.5 | AC17: =IF(SUM(Q17:AB17)=0," ",SUM(Q17:AB17)) -> 1 | AN17: =SUM(Q17:S17)*($N$16/4) -> 0 | AO17: =IF(AL17="","",IF(AL17=SUM(V17:W17),"Al dia",IF(AL17<SUM(V17:W17),"Con Rezago",IF(AL17>SUM(V17:W17),"Sobre ejecutada","")))) ->  | AP17: =AL17*($N$16/4) -> 0 | AR17: La implementación de la hoja de ruta, con todos los elementos previstos, se realizará a lo largo del 2024-II. Razón por la cual, en el Comité Institucional de Gestión y Desempeño previsto para el mes de abril (06 de mayo) se harán aclaraciones sobre la metodología y espacios de socialización de avances por sprint. | AU17: 0 | AW17: =SUM(Q17:V17)*($N$16/4) -> 0 | AX17: Sin avance y en terminos | AY17: =AU17*($N$16/4) -> 0 | BD17: 0.15 | BE17: •En el Marco del Modelo Integrado de Planeación y Gestión se ha definido la metodología para la definición del Modelo Operativo de la Entidad mediante la constitución de una Cadena de Valor que se fundamenta en la gestión por procesos. En la Hoja de Ruta se definió la primera etapa para la identificación de los elementos que serán integrados de acuerdo con los componentes focos de la entidad (Planeación Estratégica con los elementos de Enfoque Interseccional, Cooperación Internacional y Arquitectura Empresarial; MIPG con énfasis en los Trámites, la Gestión de Conocimiento e Innovación y los Sistemas de Gestión de Calidad, Ambiental y Seguridad y Salud en el Trabajo). Las profesionales de MIPG adelantan los análisis de estos componentes de acuerdo con las fechas programas y se encuentran citadas las sesiones para la revisión final de cada ejercicio. Se culmina el análisis del componente de MIPG y el componente de Planeación Estratégica se encuentra en proceso de culminación integrando los elementos derivados de las nuevas iniciativas conversadas en el Cónclave de Planeación Estratégica del 14/09/24. •Fueron trabajados y socializados 3 de los instrumentos prioritarios para iniciar con el análisis de información de la Etapa 1, así como también los instrumentos de seguimiento de la gestión de la Hoja de Ruta, el Plan de Comunicaciones y la Planificación de Cambios. Actualmente están en desarrollo los 3 instrumentos relacionados con una Matriz de Procesos para recopilación y definición de los procesos de la Cadena de Valor, instrumentos de recopilación de información de las entrevistas de expertos y la ficha de progreso de procesos. •La metodología para la definición de la Cadena de Valor, el Mapa de Procesos y el Modelamiento de Procesos se ha socializado a 5 grupos de interés diferentes (el Jefe de la Oficina Asesora de Planeación y el Equipo de MIPG, los Profesionales Especializados de la OAP, La Mesa Directiva y el Equipo de Enfoque Territorial), por lo cual las presentaciones realizadas se han complementado, para brindar la información necesaria a cada grupo. •Se definen las actividades del Plan de Comunicaciones para la Primer Etapa de la Hoja de Ruta con el fin de determinar en apoyo con el área de comunicaciones los contenidos de las piezas que pueden ser generadas y socializadas para el mes de septiembre. •Se documentó el formato de planificación de cambios de acuerdo con los lineamientos del instrumento. El 13 de septiembre, junto con el equipo del MIPG, se llevó a cabo la presentación de la planificación de cambios, acompañada del plan de mejoramiento asociado a una oportunidad de mejora en el sistema SIGUEME. •Se realizan reuniones de seguimiento de los avances de la hoja de ruta y el cargue de evidencias en el repositorio de la Oficina Asesora de Planeación. | BF17: =SUM(Q17:Y17)*($N$16/4) -> 0 | BG17: Sin avance y en terminos | BH17: =BD17*($N$16/4) -> 0.005625 | BI17: 0.4 | BJ17: •Como parte de la definición de los elementos metodológicos que se integrarán en los procesos, se estableció reunión con la Oficina Asesora Jurídica para definiciones de la asociación del normograma de la entidad en los procesos, definiendo la viabilidad de tener la normatividad asociada por proceso, cómo será el conducto regular para sus actualizaciones (interacción entre Jurídica y las dependencias) y su periodicidad. •Se adelanta en la presentación que será utilizada para los diferentes talleres de cadena de valor y modelamiento de procesos, especificaciones respecto a la implementación del modelo operativo, con la aclaración del despliegue de la cadena de valor, mapa de procesos, caracterizaciones de procesos con los elementos que serán integrados de los diferentes componentes focos de la entidad, con énfasis en la normatividad vigente y la matriz de comunicación. •Fueron trabajados y culminados los instrumentos de trabajo para Entrevistas de Expertos, Matriz de Procesos y Ficha de Progreso de Modelamiento por Proceso, para el desarrollo de cada una de las etapas de la implementación de la hoja de ruta de modernización de procesos. •En cuanto al plan de comunicaciones se realiza la entrega de las piezas que en el momento deben ser publicadas para el mes de octubre (7 piezas). •Respecto a la planificación de cambios se carga la oportunidad de mejora N°313, la cual fue modificada para garantizar que las actividades sean más precisas y no requieran una carga operativa para Control Interno y la Oficina Asesora de Planeación. Se cargan las primeras evidencias de las actividades. •Realización de 22 entrevistas de expertos, actualmente se está en la consolidación de la información de estas entrevistas, para la retroalimentación de la Cadena de Valor y el mapa de procesos. •En cuanto a la constitución de la Cadena de Valor se realiza sesión final para la revisión y definición de la propuesta inicial de los grupos de valor, entradas y salidas para la Cadena de Valor, se realizaron complementaciones y por parte de los respectivos equipos y se dan por cerradas las actividades asociadas. Se realiza el primer ejercicio para la definición de los procesos que se proponen bajo Cadena de Valor, para complementar este ejercicio se tendrá en cuenta la información de las reuniones de expertos. | BK17: 0.7 | BL17: Gestión de la primera etapa de la hoja de ruta: •Se culminan las sesiones de concertación con el equipo de enfoque territorial y el análisis del instrumento del componente de enfoque interseccional, para su integración en los procesos. En cuanto a la revisión de las caracterizaciones y las interacciones entre procesos se dará en la tercera etapa. •En la reunión de Equipo de MIPG realizada el 5 de noviembre, se decide que las actividades relacionadas con el diseño de los talleres de riesgos e indicadores, el análisis del componente del sistema de gestión de calidad y las mejoras de las plantillas documentales se trasladan a la etapa 2 de la Hoja de Ruta, esto se debe a que estas serán implementadas en el modelamiento de procesos para la tercera etapa, por tal razón puede desarrollarse en esta siguiente etapa. •Las profesionales de MIPG Claudia Fernández y Diana Bohórquez realizan diferentes sesiones de trabajo para definir el mapa de procesos en su versión inicial, la cual es remitida mediante correo electrónico el 4 de noviembre de 2024 al Jefe de la Oficina Asesora de Planeación, quien avala el mapa de procesos para continuar con la etapa 2, en donde se realizaran validaciones con diferentes actores y escenarios. Se establece el diligenciamiento de la Matriz de Procesos, la cual contiene la justificación y sugerencias de los contenidos de los procesos definidos en el mapa de procesos propuesto. •El 6 de noviembre de 2024 se realiza la consolidación de la información de los eslabones de la Cadena de Valor correspondientes a entradas y salidas y el 8 de noviembre del 2024 se culmina la definición de los eslabones por parte de las profesionales de MIPG Monica Ovalle, Diana Bohórquez y Claudia Fernández. •Se establece sesión con Comunicaciones para explicar los diseños requeridos de la Cadena de Valor y el Mapa de Procesos, además del diseño requerido para el instrumento que será utilizado en el Taller de Cadena de Valor, se establecen entregas parciales para el 20 y 22 de noviembre, el seguimiento al cumplimiento de esta actividad y resultados será incorporado en la etapa 2 de la Hoja de Ruta de la Modernización de Procesos, y esta actividad se da con el cierre de la entrega del requerimiento a comunicaciones mediante correo electrónico el 12/11/2024. •Se realizan reuniones de seguimiento de los avances de la hoja de ruta y el cargue de evidencias en el repositorio de la Oficina Asesora de Planeación. Gestión de la segunda etapa de la hoja de ruta: •Esta etapa se inicia con retroalimentación del Mapa de Procesos por parte de los Asesores de Energía Eléctrica, Subdirectora de Minería / Olga Tatiana Araque, el Subdirector de Hidrocarburos/Mauricio Andres Palma Orozco, el Director General /Carlos Adrian Correa, con la Subdirectora de Demanda / Jessica Arias Gaviria y el Asesor de Energía Eléctrica / Carlos Arturo Saldarriaga Cortes. En estas sesiones se recopilan ajustes a considerar en la definición de este modelo operativo. •En cuanto al plan de comunicaciones con la Subdirección de Comunicaciones, se genera video para la invitación a los talleres de la Cadena de Valor, que permitirán la retroalimentación de la Cadena de Valor y el Mapa de Procesos en todos sus niveles, se recibe la primer propuesta del diseño de la Cadena de Valor y el Mapa de Procesos, los cuales serán utilizados en los talleres de la Cadena de Valor y se activa la estrategia de comunicación para el inicio de la etapa 2 de la hoja de ruta de la modernización de procesos. En curso se encuentra la generación del video de la Modernización de Procesos, el cual busca fortalecer el entendimiento sobre la iniciativa y dar a conocer los espacios de participación de los funcionarios y contratistas necesarios en cada etapa de la hoja de ruta de la modernización de procesos. •Se definen los grupos interdisciplinarios y las dinámicas, para la ejecución de los talleres de la Cadena de Valor y su logística definiendo las fechas de programación de los equipos interdisciplinarios, apartar espacios y remitir citación a grupos interdisciplinarios. •Del 22 al 26 de noviembre de 2024 se ejecutar los talleres de la Cadena de Valor con los grupos interdisciplinarios tácticos y con los enlaces de MIPG para el ejercicio con dependencias, que buscan la retroalimentación de la Cadena de Valor y el Mapa de Procesos en todos los niveles de la organización. •Realizar presentación de la metodología de la Cadena de Valor y Mapa de Procesos, presentación de la propuesta inicial, su despliegue y ejecutar talleres de retroalimentación desde una visión táctica. •Se realizan reuniones de seguimiento de los avances de la hoja de ruta y el cargue de evidencias en el repositorio de la Oficina Asesora de Planeación. | BM17: 0.95 | BN17: Gestión de la primera etapa de la hoja de ruta: •De 101 actividades programadas en la primera etapa de la hoja de ruta, fueron ejecutadas un total de 94 actividades, se logra un porcentaje de cumplimiento de 93%, que implico esfuerzos importantes respecto a la generación de instrumentos de trabajo, consolidación y análisis de información, espacios de participación de funcionarios y contratistas; además del entendimiento de la UPME, para la generación de la propuesta de su modelo operativo. Es importante indicar que, 7 actividades no fueron ejecutadas, de estas 5 actividades son integradas a la etapa 2 de la hoja de ruta y 2 actividades se consideran inviables por cambios en el alcance de la actividad a la que se encuentran asociadas. Es importante indicar que para esta etapa se genera el informe de Gestión de la Etapa 1 y un resumen ejecutivo para relacionar como anexo al informe de gestión del año 2025. Gestión de la segunda etapa de la hoja de ruta: •De 51 actividades programadas en la segunda etapa de la hoja de ruta, por el momento fueron finalizadas un total de 16 actividades, 7 se encuentran en ejecución y 28 actividades sin iniciar, se logra un porcentaje de cumplimiento de 41%, Durante esta etapa se resalta la consolidación de las retroalimentaciones recibidas mediante los talleres de la Cadena de Valor con los grupos interdisciplinarios tácticos y el ejercicio con dependencias, la obtención del resultado final de la de la Cadena de Valor y el Mapa de Procesos, los cuales son aprobado por la Mesa Directiva el lunes 23 de diciembre. Respecto al porcentaje de avance para el plan de acción del año 2024 se reporta el 95% de cumplimiento, el 5% restante será gestionado en el año 2025 con el cumplimiento y cierre de la segunda etapa de la hoja de ruta. | BO17: =SUM(Q17:AB17)*($N$16/4) -> 0.0375 | BP17: =IF(BQ17=BO17,"Ejecutada",IF(BQ17<BO17,"Con rezago","REVISAR")) -> Con rezago | BQ17: =BM17*($N$16/4) -> 0.035625
E18: 2.Consolidar la modernización de la entidad para fortalecer la planeación minero energética del país y el rol como el CIO del sector. | F18: 7.Fortalecer y ampliar la capacidad institucional para proponer política minero energética disruptiva y transformadora para la discusión nacional y los espacios de decisión de cara a la TEJ. (Obj. 2 y 3) | G18: Posicionar el Sistema de Gestión Institucional como una herramienta gerencial que aporte valor a la Entidad y partes interesadas | J18: Sistema de gestión implementado y evaluado | O18: 101-2-3 | P18: Desarrollar una campaña de posicionamiento del Sistema de Gestión Institucional (Modelo integrado de planeación y gestión - MIPG) | Y18: 0.5 | AB18: 0.5 | AC18: =IF(SUM(Q18:AB18)=0," ",SUM(Q18:AB18)) -> 1 | AN18: =SUM(Q18:S18)*($N$16/4) -> 0 | AO18: =IF(AL18="","",IF(AL18=SUM(V18:W18),"Al dia",IF(AL18<SUM(V18:W18),"Con Rezago",IF(AL18>SUM(V18:W18),"Sobre ejecutada","")))) ->  | AP18: =AL18*($N$16/4) -> 0 | AR18: Considerando la proyección de actividades para la atención de este frente de trabajo, se requiere la redistribución de ejecución de esta actividad en los siguientes periodos octubre (50%) y diciembre (50%), para asegurar la alineación con la implementación de la hoja de ruta. En el Comité Institucional de Gestión y Desempeño previsto para el mes de abril (13 de mayo) se formalizará el cambio. | AU18: 0 | AW18: =SUM(Q18:V18)*($N$16/4) -> 0 | AX18: Sin avance y en terminos | AY18: =AU18*($N$16/4) -> 0 | BC18: Se ha desarrollado la implementación de la hoja de ruta de la modernización de procesos durante los meses de septiembre y octubre para lograr obtener la primer versión de la Cadena de Valor y uno de los elementos que la integran correspondiente al mapa de procesos, bajo el marco del Modelo integrado de Planeación y Gestión (MIPG). Durante estos dos meses se definió la metodología que será implementada para cada uno de los ejercicios que contribuyen a la definición de la Cadena de Valor y posteriormente al modelamiento de los procesos. Además de esto se ha desarrollado la consolidación de información y análisis de los elementos que serán integrados en el modelamiento de los procesos, la revisión de información y entrevistas con expertos que retroalimenten el ejercicio de la definición de los procesos bajo la Cadena de Valor. Con la definición de la Cadena de Valor se obtendrá el 50% de la gestión proyectada frente a la hoja de ruta, el otro 50% hará parte del modelamiento de los procesos que se definan, por tal razón será importante evaluar los tiempos que se requieran una vez definido el mapa de procesos. Actualmente se realizan reuniones de seguimiento para revisar el avance de la Hoja de Ruta, y tomar decisiones respecto a los resultados generados. Es importante destacar que la hoja de ruta se encuentra acompañada de un Plan de Comunicaciones para el despliegue de información sobre la implementación de las 3 etapas que se tienen previstas para la modernización de procesos y la metodología. Este plan detalla la información que requiere ser socializada, el medio, las fechas en las que se requiere esta socialización, los grupos a quienes va dirigido, el responsable de gestionar estas socializaciones y las evidencias generadas de la implementación del plan. También se ha implementado la metodología de planificación de cambios soportada mediante el diligenciamiento de la "Solicitud de Planificación de Cambios" y el registro de la Oportunidad de Mejora N° 313 en el Sistema SIGUEME, con las actividades necesarias para efectuar el cambio, controlarlo y ayudar a los servidores a adaptarse al mismo. A la fecha se estima que el procentaje de cumplimiento corresponde al 40%, el 10% se encuentra comprometido en lograr la aprobación de la propuesta de la Cadena de Valor por parte del DIrector General. | BD18: 0.4 | BE18: Las actividades descritas anteriormente representan un avance de la estrategia posicionamiento del SGI en el marco de la modernización del mapa de procesos de la entidad del 40%. El porcentaje restante se considera alcanzado con la aprobación del mapa por parte de la Dirección General, prevista para la última semada de noviembre. | BF18: =SUM(Q18:Y18)*($N$16/4) -> 0.01875 | BG18: Con rezago | BH18: =BD18*($N$16/4) -> 0.015 | BI18: 0.4 | BK18: 0.4 | BM18: 1 | BN18: En mesa directiva realizada el 23 de diciembre de 2024, se aprueban la cadena de valor y mapa de procesos de la UPME, actividad con la cual se concluye la etapa 1 de la hoja de ruta que contempla mecanismos de posicionamiento del Sistema de Gestión Institucional en su consolidación y modernización para hacerlo más eficiente. Se elabora informe con los resultados de la Primera Etapa de la Hoja de Ruta de la Modernización de Procesos, que contempla los logros sobre la Difusión Efectiva de la Información Clave de la Hoja de ruta de cara al nuevo modelo operativo de la UPME. Para asegurar la comprensión y el compromiso de todos los involucrados en la iniciativa de modernización, se llevó a cabo la implementación de las estrategias del Plan de Comunicación, obteniendo los siguientes logros: - Diseño y divulgación exitosa de materiales gráficos, se crearon 11 piezas gráficas que mantuvieron una línea adecuada de la información a socializar, alineadas con la imagen corporativa de la entidad, para explicar de manera clara y concisa los objetivos, metodología de la Cadena de Valor fundamentada en la gestión por procesos, la integración de los componentes de MIPG y la Planeación Estratégica, además de los avances de la iniciativa. - Fomento de la participación del personal, mediante las convocatorias y la programación del personal, tanto funcionarios como contratistas para el desarrollo de las entrevistas de expertos. - Gestión efectiva de la comunicación, todas las actividades de comunicación fueron planificadas y ejecutadas de acuerdo con los plazos establecidos. Además, se documentó de manera detallada cada una de las acciones realizadas, lo cual facilita el seguimiento y la evaluación de los resultados. En el informe se detallan cada uno de las estrategias y resultados. | BO18: =SUM(Q18:AB18)*($N$16/4) -> 0.0375 | BP18: =IF(BQ18=BO18,"Ejecutada",IF(BQ18<BO18,"Con rezago","REVISAR")) -> Ejecutada | BQ18: =BM18*($N$16/4) -> 0.0375
E19: 2.Consolidar la modernización de la entidad para fortalecer la planeación minero energética del país y el rol como el CIO del sector. | F19: 7.Fortalecer y ampliar la capacidad institucional para proponer política minero energética disruptiva y transformadora para la discusión nacional y los espacios de decisión de cara a la TEJ. (Obj. 2 y 3) | G19: Posicionar el Sistema de Gestión Institucional como una herramienta gerencial que aporte valor a la Entidad y partes interesadas | J19: Sistema de gestión implementado y evaluado | O19: 101-2-4 | P19: Diseñar e implementar una encuesta de percepción del Sistema de Gestión Institucional (Modelo integrado de planeación y gestión - MIPG) | AA19: 1 | AC19: =IF(SUM(Q19:AB19)=0," ",SUM(Q19:AB19)) -> 1 | AN19: =SUM(Q19:S19)*($N$16/4) -> 0 | AO19: =IF(AL19="","",IF(AL19=SUM(V19:W19),"Al dia",IF(AL19<SUM(V19:W19),"Con Rezago",IF(AL19>SUM(V19:W19),"Sobre ejecutada","")))) ->  | AP19: =AL19*($N$16/4) -> 0 | AU19: 0 | AW19: =SUM(Q19:V19)*($N$16/4) -> 0 | AX19: Sin avance y en terminos | AY19: =AU19*($N$16/4) -> 0 | BD19: 0 | BF19: =SUM(Q19:Y19)*($N$16/4) -> 0 | BG19: Sin avance y en terminos | BH19: =BD19*($N$16/4) -> 0 | BI19: 0 | BK19: 1 | BL19: Desde el equipo MIPG de la Oficina Asesora de Planeación se elabora encuesta para evaluar la percepción del equipo de enlaces MIPG frente al Sistema de Gestión Institucional y el SIGUEME como herramienta de apoyo en la gestión de este. En su estructura la encuenta contó con 4 secciones: 1- Autorización para el Tratamiento de Datos Personales, 2- Información General de los encuestados (nombre, correo y dependencia), 3- Evaluación del Sistema de Gestión Institucional y 4- Evaluación del Sistema de Gestión Único Estratégico de Mejoramiento - SIGUEME. La muestra de la encuesta fue de 72 participantes, entre servidores públicos y colaboradores de la UPME, de los cuales 37 personas participaron activamente brindando su espuesta. Los participantes fueron consultados exclusivamente para fines de evaluación interna, garantizando la confidencialidad de las respuestas registradas. A la pregunta sobre el nivel de desarrollo del Sistema de Gestión Institucional de la entidad, bajo 7 criterios: 1- Alineación con la Planeación Estratégica de la UPME, 2- Mejora en la eficiencia de los procesos, 3- Impacto en la calidad de los servicios brindados a la ciudadanía , 4- Facilita la comunicación, coordinación e interacción entre las áreas, 5- Apoya al cumplimiento de las políticas y normatividad, 6- Facilita el acceso a la información para la toma de decisiones basada en hechos y datos y 7-Facilita el acceso a la información para la toma de decisiones basada en hechos y datos, y dentro de la escala de 1 a 5, siendo: 1 (nulo), 2 (bajo), 3 (medio), 4 (alto) y 5 (óptimo), de manera transversal el 39% de los encuestados concentran sus calificaciones entre 5 y 4. Los criterios mejor calificados son: Mejora en la eficiencia de los procesos y Apoya al cumplimiento de las políticas y normatividad. Respecto a la evaluación del SISTEMA DE GESTIÓN ÚNICO ESTRATÉGICO DE MEJORAMIENTO – SIGUEME, las calificaciones se ubican en el rango de bueno (45%) y regular (27%). El detalle de los resultados se describe en el informe que acompaña la encuesta y establece conclusiones y oportunidades de mejora para fortalecer el Sistema de Gestión de la Entidad de cara la modernización de su estructura nuclear. Se reporta cumplimiento de esta actividad, se encuentra en trámite los ajustes y diagramación del informe de resultados con las partes interesadas del Sistema de Gestión Institucional. | BM19: 1 | BN19: Ejecutada | BO19: =SUM(Q19:AB19)*($N$16/4) -> 0.0375 | BP19: =IF(BQ19=BO19,"Ejecutada",IF(BQ19<BO19,"Con rezago","REVISAR")) -> Ejecutada | BQ19: =BM19*($N$16/4) -> 0.0375
B20: 4. Internacionalización, transformación productiva para la vida y acción climática | C20: 2. Desarrollo económico a partir de eficiencia energética, nuevos energéticos y minerales estratégicos para la transición. | H20: Plan Cierre Brechas MIPG | I20: 101-3 | K20: Tablero de seguimiento actualizado mensualmente | L20: 1 | M20: Tablero de seguimiento | N20: 0.2 | O20: 101-3-1 | P20: Realizar el seguimiento detallado de la ejecución del PAA y de los recursos programados. | Q20: 0.1 | R20: 0.08 | S20: 0.08 | T20: 0.08 | U20: 0.08 | V20: 0.08 | W20: 0.08 | X20: 0.08 | Y20: 0.08 | Z20: 0.08 | AA20: 0.08 | AB20: 0.1 | AC20: =IF(SUM(Q20:AB20)=0," ",SUM(Q20:AB20)) -> 1 | AD20: Fortalecimiento de la percepción de la ciudadanía frente a los productos y servicios prestados por la UPME nacional | AE20: 101-5 | AF20: POL-04 Gestión Presupuestal y Eficiencia del Gasto Público | AH20: 0.1 | AI20: A1. Registro de las modificaciones del Plan Anual de Adquisiciones presentadas y aprobadas por el Comité de Contratación A2. Registro de los compromisos y obligaciones que se produjeron en enero para lograr el 14,18% de ejecución presupuestal. A3. Presentaciones con los informes de ejecución reportados a la mesa directiva | AJ20: 0.18 | AK20: A1. Registro de las modificaciones del Plan Anual de Adquisiciones presentadas y aprobadas por el Comité de Contratación A2. Registro de los compromisos y obligaciones que se produjeron en febrero para lograr el 24,81% de ejecución presupuestal. A3. Presentaciones con los informes de ejecución reportados a la mesa directiva | AL20: 0.26 | AM20: A1. Revisión y registro de las modificaciones del PAA presentadas y aprobadas por el Comité de Contratación No. 010, 011, 012 y 015 A2. Registro de los compromisos y obligaciones que se emitieron en marzo para lograr el 32% de compromisos presupuestales y 3,3% de obligaciones. A3. Elaboración de las presentaciones con los informes de ejecución reportados a la mesa directiva No. 010, 011, 012 y 013 | AN20: =SUM(Q20:S20)*($N$20/12) -> 0.004333333333 | AO20: Con avance y términos | AP20: =AL20*($N$20/12) -> 0.004333333333 | AQ20: 0.34 | AR20: A1. Revisión y registro de las modificaciones del PAA presentadas y aprobadas por el Comité de Contratación No. 016, 017, 018, 019, 020, 021 y 022 A2. Registro de los compromisos y obligaciones que se emitieron en abril para lograr el 43% de compromisos presupuestales y 6,6% de obligaciones. A3. Elaboración de las presentaciones con los informes de ejecución reportados a la mesa directiva No. 014, 015, 016, 017 , 018 y 019. | AS20: 0.42 | AT20: A1. Revisión y registro de las modificaciones del PAA presentadas y aprobadas por el Comité de Contratación No. 023 al 029 A2. Registro de los compromisos y obligaciones que se emitieron en mayo para lograr el 54% de compromisos presupuestales y 18% de obligaciones. A3. Elaboración de las presentaciones con los informes de ejecución reportados a la mesa directiva No. 020, 021, 022 y 023 | AU20: 0.5 | AV20: A1. Revisión y registro de las modificaciones del PAA presentadas y aprobadas por el Comité de Contratación No. 030 a 037 A2. Registro de los compromisos y obligaciones que se emitieron en junio para lograr el 61% de compromisos presupuestales y 23% de obligaciones. A3. Elaboración de las presentaciones con los informes de ejecución reportados a la mesa directiva No. 024, 025, 026 y 027 | AW20: =SUM(Q20:V20)*($N$20/12) -> 0.008333333333 | AX20: Con avance y en terminos | AY20: =AU20*($N$20/12) -> 0.008333333333 | AZ20: 0.58 | BA20: A1. Revisión y registro de las modificaciones del PAA presentadas y aprobadas por el Comité de Contratación No. 038 al 045 A2. Registro de los compromisos y obligaciones que se emitieron en julio para lograr el 67% de compromisos presupuestales y 29% de obligaciones. A3. Elaboración de las presentaciones con los informes de ejecución reportados a la mesa directiva No. 028, 029, y 030 . A4. elaboración de la presentación del seguimiento de la ejecución presupuestal a Julio 31 de 2024 para cumplir el requerimiento del Ministerio de Minas y Energía. | BB20: 0.66 | BC20: A1. Revisión y registro de las modificaciones del PAA presentadas y aprobadas por el Comité de Contratación No. 046 al 051 A2. Registro de los compromisos y obligaciones que se emitieron en agosto para lograr el 79,88% de compromisos presupuestales y 38,21% de obligaciones. A3. Elaboración de las presentaciones con los informes de ejecución reportados a la mesa directiva No. 031,032 033, 034 y 035. A4. Se emitió la Circular 061 del 2024 mediante la cual se dan los lineamientos y el cronograma para la actualización de los proyectos de inversión, la formulación del plan anual de adquisiciones, plan de acción y planes institucionales de 2025. Documento que fue socializado con gerentes y enlaces administrativos de cada dependencia. | BD20: 0.74 | BE20: A1. Revisión y registro de las modificaciones del PAA presentadas y aprobadas por el Comité de Contratación No. 052 a 057 A2. Registro de los compromisos y obligaciones que se emitieron en septiembre para lograr el 82% de compromisos presupuestales y 45% de obligaciones. A3. Elaboración de las presentaciones con los informes de ejecución reportados a la mesa directiva No. 036, 037, 038 y 039. A4. Elaboración de la presentación para el seguimiento de los proyectos de inversión por parte del Ministerio de Minas y Energía que incluye la programación de los compromisos y obligaciones de septiembre a diciembre de 2024. A5. Elaboración de la matriz de programación de compromisos y obligaciones para cerrar la brecha entre los ejecutado y lo programado en los Acuerdos de Gestión Presupuestal. A6. Con el apoyo del Ingeniero Oliver Quintero se actualizó el formato para la modificación del PAA con el fin de mejorar los controles que facilitan el seguimiento a la ejecución del PAA, asimismo se incluyó la matriz para la programación de los compromisos y obligaciones de las líneas nuevas. | BF20: =SUM(Q20:Y20)*($N$20/12) -> 0.01233333333 | BG20: Con avance y en terminos | BH20: =BD20*($N$20/12) -> 0.01233333333 | BI20: 0.82 | BJ20: A1. Revisión y registro de las modificaciones del PAA presentadas y aprobadas por el Comité de Contratación No. 058 a 065, cuyas carpetas por sesión del Comité se pueden consultar en el siguiente enlace: https://drive.google.com/drive/folders/1Jubu3MHckmmoObL7W7VpNgaXwGfHbZ3s, A2. Registro de los compromisos y obligaciones que se emitieron en octubre para lograr el 89% de compromisos presupuestales y 54% de obligaciones. A3. Elaboración de las presentaciones con los informes de ejecución reportados a la mesa directiva No. 040, 041, 042 y 043. A4. Elaboración de la presentación para el seguimiento de los proyectos de inversión con corte a octubre de 2024 por parte del Ministerio de Minas y Energía que incluye la programación de los compromisos y obligaciones de octubre a diciembre de 2024. A5. Seguimiento semanal al Cumplimiento de la programación de la ejecución presupuestal (compromisos y obligaciones) para el último trimestre del año (octubre a diciembre 2024). | BK20: 0.9 | BL20: A1. Revisión y registro de las modificaciones del PAA presentadas y aprobadas por el Comité de Contratación No. 066 a 070, cuyas carpetas por sesión del Comité se pueden consultar en el siguiente enlace: https://drive.google.com/drive/folders/1Jubu3MHckmmoObL7W7VpNgaXwGfHbZ3s, A2. Registro de los compromisos y obligaciones que se emitieron en octubre para lograr el 90% de compromisos presupuestales y 70% de obligaciones. A3. Elaboración de las presentaciones con los informes de ejecución reportados a la mesa directiva No. 044, 045 y 046. A5. Seguimiento semanal al cumplimiento de la programación de la ejecución presupuestal (compromisos y obligaciones) para el último bimestre del año (noviembre y diciembre 2024). | BM20: 1 | BN20: A1. Revisión y registro de las modificaciones del PAA presentadas y aprobadas por el Comité de Contratación No. 071 a 074 A2. Registro de los compromisos y obligaciones que se emitieron en el periodo de noviembre a diciembre para lograr el 99% de compromisos presupuestales y 98,72% de obligaciones. A3. Elaboración de las presentaciones con los informes de ejecución reportados a las mesas directivas No. 047 a la 049. A4. Seguimiento final de los compromisos y obligaciones pendientes de ejecutar por cierre de vigencia. | BO20: =SUM(Q20:AB20)*($N$20/12) -> 0.01666666667 | BP20: =IF(BQ20=BO20,"Ejecutada",IF(BQ20<BO20,"Con rezago","REVISAR")) -> Ejecutada | BQ20: =BM20*($N$20/12) -> 0.01666666667
H21: Plan Cierre Brechas MIPG | I21: 101-4 | K21: Otros procedimientos administrativos (OPAS) registrados en el SUIT. | L21: 1 | M21: Documento | O21: 101-3-2 | P21: Identificar y categorizar los otros procedimientos administrativos (OPAS) y registrarlos en el SUIT. | V21: 1 | AC21: =IF(SUM(Q21:AB21)=0," ",SUM(Q21:AB21)) -> 1 | AE21: 101-4 | AF21: POL-12 Racionalización de Trámites | AN21: =SUM(Q21:S21)*($N$20/12) -> 0 | AO21: =IF(AL21="","",IF(AL21=SUM(V21:W21),"Al dia",IF(AL21<SUM(V21:W21),"Con Rezago",IF(AL21>SUM(V21:W21),"Sobre ejecutada","")))) ->  | AP21: =AL21*($N$20/12) -> 0 | AU21: 0.1 | AV21: Hasta la fecha, desde la Oficina de Planeación se ha enviado a los líderes de los servicios el formato de identificación de OPAS. Se ha recibido la caracterización de los servicios de Registro de Proyectos de Generación de Energía Eléctrica y Concepto Técnico de Potencial Hidroenergético. Estamos a la espera de la caracterización de los otros servicios faltantes. Además, se ha agendado una cita con el líder del DAFP en SUIT para concretar si se pueden caracterizar esos servicios como OPAS y establecer directrices sobre cómo incluirlos dentro del SUIT con sus momentos de verdad. | AW21: =SUM(Q21:V21)*($N$20/12) -> 0.01666666667 | AX21: Con rezago | AY21: =AU21*($N$20/12) -> 0.001666666667 | BB21: 1 | BC21: De acuerdo con la definición y los atributos establecida para “Otros Procedimientos Administrativos – OPAS, se diseño una herramienta para identificar OPAs, la cual fue remitida y aplicada en los procedimiento que incialmente se pensaban que podian clasificar como OPA. Esta misma fue devuelta debidamente diligencia por lo encargados de aplicar cada uno de esos procedimientos. Se adjunta evidenicas. A partir de la información recibida, se realizaron mesas de trabajo virtuales el 31 de julio con el asesor del DAFP José Miguel Guaje y la del 9 de agosto con la asesora Laura Carolina Lozano Carrero. Y después de mencionarles las opciones que internamente identificamos que aplicaban como OPAS y describirles en lo que consisten y las características de cada una de esas opciones (Por un lado, el registro de proyectos de generación, la expedición de conceptos PECOR, la expedición de conceptos de potencial hidroenergético realizados por la Subdirección de Energía), se concluyó que la UPME no tiene Otros Procedimientos Administrativos, La misma consulta y explicación del procedimiento se realizó para el servicio que presta la UPME de asesorías y asistencias técnicas para la formulación de proyectos de fondos realizado por la Oficina de Gestión de Proyectos de Fondos, a lo cual se recibe la misma respuesta. Evidencias en el siguiente enlace: | BD21: 1 | BE21: Ejecutada | BF21: =SUM(Q21:Y21)*($N$20/12) -> 0.01666666667 | BG21: Ejecutada | BH21: =BD21*($N$20/12) -> 0.01666666667 | BI21: 1 | BJ21: Ejecutada | BK21: 1 | BL21: Ejecutada | BM21: 1 | BN21: Alcance al reporte de agosto: | BO21: =SUM(Q21:AB21)*($N$20/12) -> 0.01666666667 | BP21: =IF(BQ21=BO21,"Ejecutada",IF(BQ21<BO21,"Con rezago","REVISAR")) -> Ejecutada | BQ21: =BM21*($N$20/12) -> 0.01666666667
H22: Plan Cierre Brechas MIPG | I22: 101-5 | K22: Reporte de las consultas de información pública | L22: 1 | M22: Documento | O22: 101-3-3 | P22: Cuantificar las consultas de información pública (contador de visitas) mediante un instrumento de medición y realizar seguimiento al reporte. | W22: 1 | AC22: =IF(SUM(Q22:AB22)=0," ",SUM(Q22:AB22)) -> 1 | AN22: =SUM(Q22:S22)*($N$20/12) -> 0 | AO22: =IF(AL22="","",IF(AL22=SUM(V22:W22),"Al dia",IF(AL22<SUM(V22:W22),"Con Rezago",IF(AL22>SUM(V22:W22),"Sobre ejecutada","")))) ->  | AP22: =AL22*($N$20/12) -> 0 | AU22: 0 | AW22: =SUM(Q22:V22)*($N$20/12) -> 0 | AX22: Sin avance y en terminos | AY22: =AU22*($N$20/12) -> 0 | BD22: 1 | BE22: Actualmente, no se pueden cuantificar dado que la UPME no se tienen "Consultas de Acceso a la Información Pública" registradas en el SUIT. Se avanzó con la lectura de los Lineamientos y orientaciones para la disposición de consultas de acceso a información pública” Versión 1 de agosto del 2021 (chrome-extension://efaidnbmnnnibpcajpcglclefindmkaj/https://www1.funcionpublica.gov.co/documents/418548/34150781/Lineamientos+y+orientaciones+para+la+disposici%C3%B3n+de++consultas+de+acceso+a+informaci%C3%B3n+p%C3%BAblica+-+Versi%C3%B3n+1+-+Agosto+2021.pdf/f6b57ff5-c175-43cc-1f81-bff5f801da61?version=1.2&t=1628645397432), amanera de contextualización, con el fin de identificar la aplicabilidad de las consultas de accesos a la información en la UPME. En ese sentido, se prevé la posibilidad que con la puesta en producción del modulo de Incentivos Tributarios de Bizagi (propuesta en la estrategia de racionalización 2024), se pueda implementar una consulta de acceso a la información pública, para los certificados que son el producto de estos trámites. En ese sentido, una vez esté en operación este modulo se volverá a revisar el tema y de ser necesario se realizarán mesas con el DAFP para la correcta definición y registro en el SUIT.), amanera de contextualización, con el fin de identificar la aplicabilidad de las consultas de accesos a la información en la UPME. En ese sentido, se prevé la posibilidad que con la puesta en producción del modulo de Incentivos Tributarios de Bizagi (propuesta en la estrategia de racionalización 2024), se pueda implementar una consulta de acceso a la información pública, para los certificados que son el producto de estos trámites. En ese sentido, una vez esté en operación este modulo se volverá a revisar el tema y de ser necesario se realizarán mesas con el DAFP para la correcta definición y registro en el SUIT. | BF22: =SUM(Q22:Y22)*($N$20/12) -> 0.01666666667 | BG22: Ejecutada | BH22: =BD22*($N$20/12) -> 0.01666666667 | BI22: 1 | BJ22: Ejecutada | BK22: 1 | BL22: Ejecutada | BM22: 1 | BN22: Alcance al reporte realizado en Octubre. De acuerdo con el reporte de los radicados creados en el formulario de incentivos tributarios del año 2024 en cual contiene 13.909 registro, de las cuales el 32% que equivalen a 4.418 corresponden a solicitudes de información. Evidencia en: https://drive.google.com/drive/folders/1Ix1bE4qHrQRnW3E7hOmEKBznq1NsICjI | BO22: =SUM(Q22:AB22)*($N$20/12) -> 0.01666666667 | BP22: =IF(BQ22=BO22,"Ejecutada",IF(BQ22<BO22,"Con rezago","REVISAR")) -> Ejecutada | BQ22: =BM22*($N$20/12) -> 0.01666666667
H23: Plan Cierre Brechas MIPG | I23: 101-6 | K23: Documento con lineamientos del Decreto 088 de 2022 por implementar | L23: 1 | M23: Documento | O23: 101-3-4 | P23: Determinar los lineamientos por implementar del Decreto 088 de 2022 para la digitalización y automatización de trámites y su realización en línea en coordinación con la OTIC. | AB23: 1 | AC23: =IF(SUM(Q23:AB23)=0," ",SUM(Q23:AB23)) -> 1 | AN23: =SUM(Q23:S23)*($N$20/12) -> 0 | AO23: =IF(AL23="","",IF(AL23=SUM(V23:W23),"Al dia",IF(AL23<SUM(V23:W23),"Con Rezago",IF(AL23>SUM(V23:W23),"Sobre ejecutada","")))) ->  | AP23: =AL23*($N$20/12) -> 0 | AU23: 0 | AW23: =SUM(Q23:V23)*($N$20/12) -> 0 | AX23: Sin avance y en terminos | AY23: =AU23*($N$20/12) -> 0 | BD23: 0 | BF23: =SUM(Q23:Y23)*($N$20/12) -> 0 | BG23: Con rezago | BH23: =BD23*($N$20/12) -> 0 | BI23: 0 | BK23: 0 | BM23: 1 | BN23: Desde la OAP se realizó la consolidación de los linemianentos y requerimientos del Decreto 088 del 2022 en un matriz que fue remitida a la OTI para la respectiva evaluación de aplicabilidad y cumplimiento. En ese sentido, de los 58 lineamientos y/o requisitos identificados, son 54 los que aplican a la UPME y de los cuales se cumplen totalmente 22, parcialmente se cumplen 21 y no se cumplen 11. Evidencias en: https://drive.google.com/drive/folders/1Ti-EwxbfUP_v8zkhgeeFD0JhbRcDZJiV | BO23: =SUM(Q23:AB23)*($N$20/12) -> 0.01666666667 | BP23: =IF(BQ23=BO23,"Ejecutada",IF(BQ23<BO23,"Con rezago","REVISAR")) -> Ejecutada | BQ23: =BM23*($N$20/12) -> 0.01666666667
H24: Plan Cierre Brechas MIPG | I24: 101-7 | K24: Estrategia de racionalización de trámites elaborada | L24: 1 | M24: Estrategia | O24: 101-3-5 | P24: Elaborar la estrategia de racionalización de trámites incluyendo la reducción de costos, requisitos y/o documentos, si aplica para los trámites de la entidad. | Q24: 1 | AC24: =IF(SUM(Q24:AB24)=0," ",SUM(Q24:AB24)) -> 1 | AH24: 1 | AI24: Con el apoyo de la Oficina Asesora de Planeación, la Subdirección de Demanda, formuló la estrategia de racionalización de trámites 2024, la cual se asocia con los siguientes trámites: Incentivos tributarios por Gestión Eficiente de Energía (GEE), Incentivos tributarios a proyectos de generación de energía eléctrica a partir de fuentes no convencionales de energía -FNCE e Incentivos tributarios para proyectos a partir de hidrógeno verde o azul. Esta estrategia propone acciones de racionalización de tipo Tecnológico y Administrativas que consisten en la implementación de un módulo en el Sistema Único de Usuarios SUU de la UPME, que permitirá por un lado que el trámite se realice en línea, y por otro lado, mejora el procedimiento interno que se lleva a cabo para emitir los conceptos de incentivos tributarios. Esta estrategia fue debidamente registrada en el SUIT. | AJ24: 1 | AK24: Ejecutada | AL24: 1 | AM24: Ejecutada | AN24: =SUM(Q24:S24)*($N$20/12) -> 0.01666666667 | AO24: Ejecutada | AP24: =AL24*($N$20/12) -> 0.01666666667 | AU24: 1 | AV24: Ejecutada | AW24: =SUM(Q24:V24)*($N$20/12) -> 0.01666666667 | AX24: Ejecutada | AY24: =AU24*($N$20/12) -> 0.01666666667 | AZ24: 1 | BA24: Ejecutada | BB24: 1 | BC24: Ejecutada | BD24: 1 | BE24: Ejecutada | BF24: =SUM(Q24:Y24)*($N$20/12) -> 0.01666666667 | BG24: Ejecutada | BH24: =BD24*($N$20/12) -> 0.01666666667 | BI24: 1 | BJ24: Ejecutada | BK24: 1 | BL24: Ejecutada | BM24: 1 | BN24: Ejecutada | BO24: =SUM(Q24:AB24)*($N$20/12) -> 0.01666666667 | BP24: =IF(BQ24=BO24,"Ejecutada",IF(BQ24<BO24,"Con rezago","REVISAR")) -> Ejecutada | BQ24: =BM24*($N$20/12) -> 0.01666666667
H25: Plan Cierre Brechas MIPG | I25: 101-8 | K25: 3 Seguimientos registrados en el SUIT | L25: 3 | M25: Informes | O25: 101-3-6 | P25: Realizar seguimientos cuatrimestrales a la ejecución de la estrategia de racionalización de trámites 2023 | T25: 0.33 | X25: 0.33 | AB25: 0.34 | AC25: =IF(SUM(Q25:AB25)=0," ",SUM(Q25:AB25)) -> 1 | AN25: =SUM(Q25:S25)*($N$20/12) -> 0 | AO25: =IF(AL25="","",IF(AL25=SUM(V25:W25),"Al dia",IF(AL25<SUM(V25:W25),"Con Rezago",IF(AL25>SUM(V25:W25),"Sobre ejecutada","")))) ->  | AP25: =AL25*($N$20/12) -> 0 | AQ25: 0.33 | AR25: El 25 de abril, se realizó reunión virtual con la coordinadora del GIT de Incentivos (Ingrid Gissella Quiroga), con el fin de hacer el seguimento a los avances de la estrategia de racionalización y a la vez registrarlo en el SUIT. El reporte fue el siguiente: "Al primer cuatrimestre del 2024, con el nuevo contratista que inició en marzo se están realizando ajustes al módulo. El avance en la subsanación de los hallazgos a la fecha es del 65%." En el archivo descargado del SUIT, se debe revisar lo registrado en la sección de "Monitoreo": https://drive.google.com/drive/folders/1w3Wqb74sVQSWIggk8xNiZffVddQ9PBsz | AU25: 0.33 | AV25: Continua con el mismo avance abril | AW25: =SUM(Q25:V25)*($N$20/12) -> 0.0055 | AX25: Con avance y en terminos | AY25: =AU25*($N$20/12) -> 0.0055 | BB25: 0.66 | BC25: Se realizó el seguimiento a la estrategia de racionalización durante reunión realizada el 16 de agosto. Esta reunión se realizó con el coordinador del grupo de incentivos de la Subdirección de Demanda, quienes informaron del estado del módulo y que se entraría a producción entre septiembre y octubre. Se anexa a la carpeta la evidencia del registro en el SUIT de la estrategia y la invitación realizada para la reunón de seguimiento. | BD25: 0.66 | BE25: Continua con el mismo avance de agosto | BF25: =SUM(Q25:Y25)*($N$20/12) -> 0.011 | BG25: Con avance y en terminos | BH25: =BD25*($N$20/12) -> 0.011 | BI25: 0.66 | BK25: 0.66 | BM25: 1 | BN25: Se realizó el ultimo seguimiento a la Estrategia de racionalización con la información y evidencias suministradas por la subdirección de Demanda. Evidencias: Reporte del SUIT donde se puede evidenciar que la estrategia está ejecutada y pantallazos de la plataforma implementada. | BO25: =SUM(Q25:AB25)*($N$20/12) -> 0.01666666667 | BP25: =IF(BQ25=BO25,"Ejecutada",IF(BQ25<BO25,"Con rezago","REVISAR")) -> Ejecutada | BQ25: =BM25*($N$20/12) -> 0.01666666667
H26: Plan Cierre Brechas MIPG | I26: 101-9 | K26: Informe elaborado y difundido | L26: 1 | M26: Informe | O26: 101-3-7 | P26: Elaborar y difundir un informe de la estrategia de simplificación, racionalización y estandarización, que incluya lecciones aprendidas y experiencias que generan valor. | AA26: 1 | AC26: =IF(SUM(Q26:AB26)=0," ",SUM(Q26:AB26)) -> 1 | AN26: =SUM(Q26:S26)*($N$20/12) -> 0 | AO26: =IF(AL26="","",IF(AL26=SUM(V26:W26),"Al dia",IF(AL26<SUM(V26:W26),"Con Rezago",IF(AL26>SUM(V26:W26),"Sobre ejecutada","")))) ->  | AP26: =AL26*($N$20/12) -> 0 | AU26: 0 | AW26: =SUM(Q26:V26)*($N$20/12) -> 0 | AX26: Sin avance y en terminos | AY26: =AU26*($N$20/12) -> 0 | BD26: 0 | BF26: =SUM(Q26:Y26)*($N$20/12) -> 0 | BG26: Sin avance y en terminos | BH26: =BD26*($N$20/12) -> 0 | BI26: 0 | BK26: 0 | BM26: 1 | BN26: Se elaboró el informe de la estrategia de racionalización donde se describe las etapas que se surtieron, logros y lecciones aprendidas, este mismo se remitió al jfe de la OAP para su conocimiento. | BO26: =SUM(Q26:AB26)*($N$20/12) -> 0.01666666667 | BP26: =IF(BQ26=BO26,"Ejecutada",IF(BQ26<BO26,"Con rezago","REVISAR")) -> Ejecutada | BQ26: =BM26*($N$20/12) -> 0.01666666667
H27: Plan Cierre Brechas MIPG | I27: 101-10 | K27: Indicadores de gestión | L27: 1 | M27: Hojas de vida de indicadores | O27: 101-3-8 | P27: Identificar y formular los indicadores de gestión | U27: 1 | AC27: =IF(SUM(Q27:AB27)=0," ",SUM(Q27:AB27)) -> 1 | AE27: 101-6 | AF27: POL-14 Seguimiento y Evaluación del Desempeño Institucional | AJ27: 0.3 | AK27: Se realiza la consolidación de los resultados de los indicadores formulados por los procesos de la entidad para la vigencia 2023, con el propósito de evaluar el desempeño del Sistema de Gestión Institucional. Los resultados de este ejercicio, serán presentados en el Comité de Gestión y Desempeño de marzo 2024, el cual fue reprogramado por la Dirección para el 18 de marzo. A partir de los resultados y diagnóstico realizado a la estructura de los indicadores, se tiene previsto desarrollar espacios de trabajo con los líderes de procesos y sus equipos para determinar cuáles instrumentos se mantienen y cuáles serán ajustados o eliminados para 2024. Se cuenta con la confirmación de algunos de los líderes frente a los instrumentos a mantener. | AL27: 0.3 | AM27: Continua con el mismo porcentaje de avace de febrero. 10/04/2024: Se cuenta con propuesta inicial de los procesos de los indicadores que se desean conservar y los cambios a implementar para 2024 de acuerdo con la dinámica de operación actual. Debido a compromisos prioritarios de la OAP, específicamente del equipo de la MIPG, relacionados con la consolidación del equipo para gestionar los frentes de trabajo, se ha tenido que postergar esta actividad; sin embargo se ha priorizado para abril la formulacion y reporte de la primera medición de los indicadores de gestión cuya frecuencia de medición corresponda a: Mensual, bimestral, trilesmtral y cuatrimestral, para la vigencia 2024. En el Comité Institucional de Gestión y Desempeño a desarrollar en abril (6 de mayo) se solicitará ampliación de fecha de estas actividades, considerando el periodo de ejecución real en mayo, con el propósito de asegurar el cumplimiento del ciclo de gestión de los instrumentos de medición. | AN27: =SUM(Q27:S27)*($N$20/12) -> 0 | AO27: Con rezago | AP27: =AL27*($N$20/12) -> 0.005 | AS27: 0.9 | AT27: Se consolida el tablero con los indicadores de gestión de los procesos para la vigencia 2024, con 72 indicadores de Gestión de los cuales (56) están en la tipología de eficacia, (14) son de eficiencia y (2) de efectividad. De los (21) procesos del Sistema de Gestión Institucional, se encuentra pendiente la definición por parte de los procesos de: Información Sectorial y Divulgación de Información Minero - Energética. El equipo MIPG de la Oficina Asesora de Planeación ha desarrollado espacios de trabajo con el equipo de la Subdirección de Gestión de la Información; sin embargo, no se ha recibido la confirmación de los insdicadores. A la espera de respuesta por parte de la Líder del Proceso, Johanna Castellanos. Los indicadores de los siguienes procesos están pendientes de confirmación de datos o variables para su establecimiento en firme dentro del módulo de indicadores del sistema SÍGUEME: * Planeación Integral de Energía Eléctrica - "Costo de Obras Identificadas Plan de Expansión de Generación Transmisión". * Planeación Integral de Hidrocarburos "Cumplimiento en la emisión de conceptos técnicos emitidos por la Subdirección de Hidrocarburos" y "Cumplimiento en la elaboración de planes del sector", línea base y responsable de calcular y analizar. * Comunicación Estratégica - "Cumplimiento del PECO" * Direccionamiento Estratégico - "Nivel de avance en el cumplimiento de los objetivos Institucionales y del Plan Estratégico Institucional (PEI)" * Evaluación y Control - "Programa de Auditoria Interna Independiente - PAAI de la Unidad de Planeación Minero energética - UPME", Línea Base. * Gestión TICS - "Materialización de incidentes", meta y "Gestión de solicitudes de Sistemas de Información", tendencia. En general para todos: responsable de calcular y analizar. * Gestión de Talento Humano - "Oportunidad en el tramite de quejas", Eliminación. * Servicio al Ciudaddno PQR - "Satisfacción del cliente en la oportunidad de atención" y "Satisfacción del cliente en cuanto a la eficacia de la información" Se adjunta como evidencia el tablero consolidado de los indicadores de los proceso del SGI - 2024. | AU27: 1 | AV27: Se consolida el tablero de indicadores de gestión para la vigencia 2024 de los 21 procesos del Sistema de Gestión Institucional, correspondientes a 63. De los cuales, 49 se encuentran dentro de la tipología de eficacia, 12 a eficiencia y 2 a efectividad. En Paralelo se registraron los reportes de medición delas mediciones de los indicadores cuya frecuencia se encuentra dentro del primer semestre de 2024 (mensual, bimestral, trimestral, cuatrimestral y semestral). Se realiza la parametrización de los mismos en el módulo de indicadores del sistema SÍGUEME, incluyendo reportes de medición (cuantitativos y cualitativos) reportados por los Líderes y equipo de enlaces MIPG de los procesos. | AW27: =SUM(Q27:V27)*($N$20/12) -> 0.01666666667 | AX27: Ejecutada | AY27: =AU27*($N$20/12) -> 0.01666666667 | AZ27: 1 | BA27: Ejecutada | BB27: 1 | BC27: Ejecutada | BD27: 1 | BE27: Ejecutada | BF27: =SUM(Q27:Y27)*($N$20/12) -> 0.01666666667 | BG27: Ejecutada | BH27: =BD27*($N$20/12) -> 0.01666666667 | BI27: 1 | BJ27: Ejecutada | BK27: 1 | BL27: Ejecutada | BM27: 1 | BN27: Ejecutada | BO27: =SUM(Q27:AB27)*($N$20/12) -> 0.01666666667 | BP27: =IF(BQ27=BO27,"Ejecutada",IF(BQ27<BO27,"Con rezago","REVISAR")) -> Ejecutada | BQ27: =BM27*($N$20/12) -> 0.01666666667
H28: Plan Cierre Brechas MIPG | I28: 101-11 | K28: Reporte de indicadores extraído de la herramienta SÍGUEME | L28: 1 | M28: Reporte | O28: 101-3-9 | P28: Implementar módulo de indicadores de SIGUEME | V28: 0.7 | X28: 0.3 | AC28: =IF(SUM(Q28:AB28)=0," ",SUM(Q28:AB28)) -> 1 | AE28: 101-6, 101-7, 101-8, | AG28: POL-07 Gobierno Digital | AJ28: 0.3 | AK28: En febrero se desarrollaron pruebas piloto al módulo de indicadores con los correspondientes al proceso de mejora continua y Direccionamiento Estratégico y se escaló al proveedor ITS, la novedad relacionada con la aprobación de la plantilla a través del flujo de trabajo en el sistema. Una vez se cuente con la confirmación y aval de los líderes de proceso sobre las fichas técnicas de indicadores 2024, se procederá con el registro de estas en el módulo de SÍGUEME y habilitarán los accesos a los líderes para el registro de las mediciones respectivas, previo desarrollo de espacios de capacitación. | AL28: 0.3 | AM28: Continua con el mismo porcentaje de avace de febrero. 10/04/2024: Se cuenta con propuesta inicial de los procesos de los indicadores que desean conservar y los cambios a implementar para 2024 de acuerdo con la dinámica de operación actual. Debido a compromisos prioritarios de la OAP, específicamente del equipo de la MIPG, relacionados con la consolidación del equipo para gestionar los frentes de trabajo, se ha tenido que postergar esta actividad; sin embargo se ha priorizado para abril la formulacion y reporte de la primera medición de los indicadores de gestión para la vigencia 2024. En el Comité Institucional de Gestión y Desempeño a desarrollar en abril (6 de mayo) se solicitará ampliación de fecha de estas actividades, considerando el periodo de ejecución real, con el propósito de asegurar el cumplimiento del ciclo de gestión de los instrumentos de medición, a su vez se solicitará la distribución de cumplimiento de esta actividad 90% en mayo y 10% agosto. Se proyecta que en mayo el módulo de indicadores de SÍGUEME empiece en operación con el registro de las fichas técnicas y primeras mediciones de forma simultánea. | AN28: =SUM(Q28:S28)*($N$20/12) -> 0 | AO28: Con rezago | AP28: =AL28*($N$20/12) -> 0.005 | AU28: 0.7 | AV28: Se realiza la parametrización de las fichas técnicas de los indicadores de gestión de los procesos que a la fecha han confirmado dichos instrumentos para la vigencia 2024, en el módulo de indicadores del Sistema de Gestión Único Estratégico de Mejoramiento – SIGUEME. Se desarollan pruebas de los rangos de aceptación y criterios de medición. El 13 de junio se realiza espacio de trabajo con el proveedor ITS Soluciones, para validar aspectos funcionales del módulo de indicadores y recibir orientaciones frente a la parametrización, a su vez se escalan requerimientos de configuración técnica, tales como periodos de reporte y resultados acumulados. Como resultado ede este esapcio se identifican elementos adicionales de parametrización, tales como calendario de reporte, condiciones para formulación de planes de mejoramiento y reporte de cumplimiento por objetivo estratégico. | AW28: =SUM(Q28:V28)*($N$20/12) -> 0.01166666667 | AX28: Con avance y en terminos | AY28: =AU28*($N$20/12) -> 0.01166666667 | AZ28: 0.7 | BA28: Continua con el mismo avance de junio | BB28: 0.7 | BC28: Continua con el mismo avance de junio | BD28: 0.7 | BE28: Continua con el mismo avance de junio | BF28: =SUM(Q28:Y28)*($N$20/12) -> 0.01666666667 | BG28: Con rezago | BH28: =BD28*($N$20/12) -> 0.01166666667 | BI28: 0.7 | BJ28: Pendiente por reportar | BK28: 0.7 | BM28: 1 | BN28: Se escalan requerimientos y realizan pruebas con el proveedor del SIGUEME para habilitar los componentes adicionales identificados como mejora en el módulo de indicadores para completar actividades de parametrización y asegurar su normal funcionamiento. A lo largo del segundo semestre se valida el correcto funcionamiento de las reglas definidas, escalando las novedades identificadas o errores asociados. Se confirma implementación total del módulo en 2024. Se comparten evidencias y trazabilidad de los casos reportados. Sin embargo, es importante considerar que en la vigencia 2025 se hará una transición progresiva para la implementación del módulo de indicadores del nuevo Sistema de Información que soporta al Sistema de Gestión Institucional adquirido por la Entidad (ISOLUCION). | BO28: =SUM(Q28:AB28)*($N$20/12) -> 0.01666666667 | BP28: =IF(BQ28=BO28,"Ejecutada",IF(BQ28<BO28,"Con rezago","REVISAR")) -> Ejecutada | BQ28: =BM28*($N$20/12) -> 0.01666666667
H29: Plan Cierre Brechas MIPG | I29: 101-12 | K29: Piezas gráficas con los resultados de los indicadores | L29: 2 | M29: Piezas | O29: 101-3-10 | P29: Divulgar los resultados de los indicadores a los grupos de interés | W29: 0.5 | Z29: 0.5 | AC29: =IF(SUM(Q29:AB29)=0," ",SUM(Q29:AB29)) -> 1 | AE29: 101-6, 101-7, 101-8, | AG29: POL-15 Transparencia, Acceso a la Inf. y lucha contra la Corrupción | AJ29: 0.2 | AK29: En primera instancia, se presentarán en el segundo Comité de Gestión y Desempeño del año, los resultados de la medición de los indicadores para la vigencia 2023 y el plan de trabajo para la definición, registro y seguimiento de los que se establezcan para 2024. | AL29: 0.2 | AM29: Continua con el mismo porcentaje de avace de febrero. 10/04/2024: Se cuenta con propuesta inicial de los procesos de los indicadores que desean conservar y los cambios a implementar para 2024 de acuerdo con la dinámica de operación actual. Debido a compromisos prioritarios de la OAP, específicamente del equipo de la MIPG, relacionados con la consolidación del equipo para gestionar los frentes de trabajo, se ha tenido que postergar esta actividad; sin embargo se ha priorizado para abril la formulacion y reporte de la primera medición de los indicadores de gestión para la vigencia 2024. En el Comité Institucional de Gestión y Desempeño a desarrollar en abril (mayo 6) se solicitará ampliación de fecha de estas actividades para mayo, considerando el periodo de ejecución real, con el propósito de asegurar el cumplimiento del ciclo de gestión de los instrumentos de medición. De forma excepcional para el primer momento de medición de los indicadores con frecuencia (mensual, bimestral, trimestral y cuatrimestral) se reportaran resultados de medición a los grupos de interés desde la OAP en espacio diferente al Comité Institucional de Gestión y Desempeño, para los demás periodos se espera normalizar el reporte de medición y socializar los resultados en los espacios del Comité 2024. | AN29: =SUM(Q29:S29)*($N$20/12) -> 0 | AO29: Con avance y en términos | AP29: =AL29*($N$20/12) -> 0.003333333333 | AU29: 0.2 | AV29: Continua con el mismo porcentaje de avace de febrero. | AW29: =SUM(Q29:V29)*($N$20/12) -> 0 | AX29: Con avance y en terminos | AY29: =AU29*($N$20/12) -> 0.003333333333 | AZ29: 0.5 | BA29: En el Comité Institucional de Gestión y Desempeño del mes julio, se presenta el reporte de los resultados y nivel de desempeño alcanzado en el Sistema de Gestión Institucional con corte al primer semestre de 2024. | BB29: 0.5 | BC29: Continua con el mismo avance de julio | BD29: 0.5 | BE29: Continua con el mismo avance de julio | BF29: =SUM(Q29:Y29)*($N$20/12) -> 0.008333333333 | BG29: Con avance y en terminos | BH29: =BD29*($N$20/12) -> 0.008333333333 | BI29: 0.5 | BJ29: En el comité Institucional de Gestión y Desempeño de Julio se realizó la socialización de los resultados alcanzados en los indicadores de gestión en el primer semestre del año. Se elaboró informe semestral consolidado para conocimiento y consulta de los grupos de valor. Durante el segundo semestre, con frecuencia mensual, el equipo del Sistema de Gestión Institucional de la Oficina Asesora de Planeación realizó seguimiento al reporte de medición de los indicadores que deben reportarse en el mes, de acuerdo con la frecuencia definida. Se valida el cumplimiento en tiempo y la consistencia de los datos. El estado actual de medición de los indicadores se encuentra en el Sistema de Gestión Único Estratégico de Mejoramiento - SIGUEME. En el Comité de Gestión y Desempeño realizado en octubre se priorizaron temas de aprobación, razón por la cual, se programó la presentación de los avances el segundo semestre en el primer comité de la vigencia 2025. Considerando que los reportes de medición se realizan mes vencido los resultados finales de gestión correspondientes al 2024-2 se consolidan para eleborar informe de desempeño, la primera semana de febfrero de 2025. | BK29: 0.5 | BM29: 0.9 | BN29: Para socializar los resultados de los indicadores del segundo semestre de 2024 se requiere el reporte de las mediciones por parte de los procesos, considerando que esta actividad se realiza periodo vencido, las información del último periodo (diciembre, segundo semestre, tercer cuatrimestre, cuarto trimestre) está habilitado para reportar al 30 de enero de 2025. A partir de esta información desde la Oficina Asesora de Planeación se realizará la consolidación de los datos y reportarán los resultados a las partes interesadas pertinentes. Razón por la cual, esta actividad se mantiene rezagada y tendrá cierre en la primera semana de febrero de 2025. Se cuentan con los reportes parciales de los procesos disponibles para consulta general en SIGUEME con corte a noviembre para los periodos mensuales, tercer trimestre, primer semestre, segundo cuatrimestre, pero los resultados finales con la valoración del desempeño del Sistema de Gestión Institucional a ser socializados se tendran al cierre del periodo de enero habilitado para los reportes en SIGUEME. | BO29: =SUM(Q29:AB29)*($N$20/12) -> 0.01666666667 | BP29: =IF(BQ29=BO29,"Ejecutada",IF(BQ29<BO29,"Con rezago","REVISAR")) -> Con rezago | BQ29: =BM29*($N$20/12) -> 0.015
H30: Plan Cierre Brechas MIPG | I30: 101-13 | K30: Soportes de Capacitación sobre indicadores de gestión realizada | L30: 1 | M30: Presentación y Lista de asistencia | O30: 101-3-11 | P30: Desarrollar una capacitación sobre la gestión de indicadores. | V30: 0.5 | W30: 0.5 | AC30: =IF(SUM(Q30:AB30)=0," ",SUM(Q30:AB30)) -> 1 | AE30: 101-6 | AN30: =SUM(Q30:S30)*($N$20/12) -> 0 | AO30: =IF(AL30="","",IF(AL30=SUM(V30:W30),"Al dia",IF(AL30<SUM(V30:W30),"Con Rezago",IF(AL30>SUM(V30:W30),"Sobre ejecutada","")))) ->  | AP30: =AL30*($N$20/12) -> 0 | AR30: Esta actvidad está alineada y es codependiente de la ejecución de la actividad anterior. Razón por la cual se proyecta su cumplimiento entre mayo y junio de 2024, y se solicitará formalmente su reprogramación en el Comité Institucional de Gestión y Desempeño prevista para abril 2024 (6 de mayo). | AU30: 0 | AV30: Esta actvidad está alineada y es codependiente de la ejecución de la actividad 101-3-9. Se están realizando ajustes de parametrización de tal forma que sea posible habilitar visualizaicón del usuario funcional para la preparación de los espacios de capacitación con los equipos de enlace de MIPG de los procesos. Se proyecta ejecución y cumplimeinto a julio. Como medida de contigencia el reporte de los resultados se cargó directamente con la parametrización de las fichas técnicas. | AW30: =SUM(Q30:V30)*($N$20/12) -> 0.008333333333 | AX30: Con rezago | AY30: =AU30*($N$20/12) -> 0 | AZ30: 1 | BA30: Se realiza espacio de capacitación con el equipo de enlaces de MIPG de los procesos de la Entidad para clarificar elementos metodológicos de estos instrumentos de seguimiento y medición, y para brindar orientación en el acceso, reportes y funcionalidades del módulo de indicadores del Sistema de Gestión Único Estratégico de Mejoramiento - SÍGUEME. A lo largo del segundo semestre, se enviaran contenidos y piezas informativas relacionados con indicadores para reforzar metodología y apropiación en el uso del módulo habilitado en el sistema SÍGUEME. | BB30: 1 | BC30: Ejecutada | BD30: 1 | BE30: Ejecutada | BF30: =SUM(Q30:Y30)*($N$20/12) -> 0.01666666667 | BG30: Ejecutada | BH30: =BD30*($N$20/12) -> 0.01666666667 | BI30: 1 | BJ30: Ejecutada | BK30: 1 | BL30: Ejecutada | BM30: 1 | BN30: Ejecutada | BO30: =SUM(Q30:AB30)*($N$20/12) -> 0.01666666667 | BP30: =IF(BQ30=BO30,"Ejecutada",IF(BQ30<BO30,"Con rezago","REVISAR")) -> Ejecutada | BQ30: =BM30*($N$20/12) -> 0.01666666667
H31: Plan Cierre Brechas MIPG | I31: 101-14 | K31: Procedimiento aprobado | L31: 1 | M31: Documento aprobado / oficializado | O31: 101-3-12 | P31: Ajustar y actualizar el procedimiento de acuerdo con la metodología para la gestión de indicadores | U31: 0.5 | V31: 0.5 | AC31: =IF(SUM(Q31:AB31)=0," ",SUM(Q31:AB31)) -> 1 | AN31: =SUM(Q31:S31)*($N$20/12) -> 0 | AO31: =IF(AL31="","",IF(AL31=SUM(V31:W31),"Al dia",IF(AL31<SUM(V31:W31),"Con Rezago",IF(AL31>SUM(V31:W31),"Sobre ejecutada","")))) ->  | AP31: =AL31*($N$20/12) -> 0 | AR31: Esta actividad está prevista ejecutar de forma paralela a la formulacion y reporte de la primera medición de los indicadores de gestión de la entidad que se definan para la vigencia 2024. se solicitará formalmente su reprogramación para mayo - junio, en el Comité Institucional de Gestión y Desempeño de abril 2024 (6 de mayo). | AT31: La actualización del documento se realiza en articulación con las definiciones metodológicas en cuanto a criterios y variables determinados para las fichas técnicas de los indicadores y aspectos adicionales para esta vigencia. | AU31: 0.7 | AV31: Se realizan ajustes a la versión 1 del procedimento P-DE-015 Formulación, reporte, seguimiento y evaluación de los indicadores de gestión, en alineación con las disposiciones del MIPG y los aspectos configurados en el módulo de indicadores en el Sistema de Gestión Único Estratégico de Mejoramiento – SIGUEME. Se marcan los ajustes identifcados a través de la herramienta de control de cambios de Word. Se está a la espera de confirmación de aspectos de parametrización en SÍGUEME, para que se describan, aclaren y referencien como generalidades en el numeral 5. Lineamientos o políticas de operación y control del procedimiento. Se proyecta la presentación del documento en la primera semana de julio, para revisión del Jefe de la Oficina Asesora de Planeación. | AW31: =SUM(Q31:V31)*($N$20/12) -> 0.01666666667 | AX31: Con rezago | AY31: =AU31*($N$20/12) -> 0.01166666667 | AZ31: 0.7 | BA31: Continua con el mismo avance de junio | BB31: 0.7 | BC31: Continua con el mismo avance de junio | BD31: 0.7 | BE31: Continua con el mismo avance de junio | BF31: =SUM(Q31:Y31)*($N$20/12) -> 0.01666666667 | BG31: Con rezago | BH31: =BD31*($N$20/12) -> 0.01166666667 | BI31: 0.7 | BK31: 0.7 | BM31: 1 | BN31: Se actualiza y publica el procedimiento P-DE-015 Formulación, Reporte, Seguimiento y Evaluación de Indicadores de Gestión en el SIGUEME, en el siguiente enlace: https://sigueme.upme.gov.co/sigueme/index.php?op=2&sop=2.14.3.1&opcion_regreso=0&proceso=1. Desde la Oficina Asesora de Planeación desde la cuenta de correo sistema.gestion@upme.gov.co, se remite pieza gráfica con la confirmación de actualización del documento mediante correo electrónico masivo. | BO31: =SUM(Q31:AB31)*($N$20/12) -> 0.01666666667 | BP31: =IF(BQ31=BO31,"Ejecutada",IF(BQ31<BO31,"Con rezago","REVISAR")) -> Ejecutada | BQ31: =BM31*($N$20/12) -> 0.01666666667
B32: 4. Internacionalización, transformación productiva para la vida y acción climática | C32: 2. Desarrollo económico a partir de eficiencia energética, nuevos energéticos y minerales estratégicos para la transición. | H32: Plan Anticorrupción y de Atención al Ciudadano | I32: 101-15 | K32: Política aprobada | L32: 1 | M32: Documento aprobado / oficializado | N32: 0.2 | O32: 101-4-1 | P32: Actualizar la política de gestión de riesgos con base en la normatividad y lineamientos vigentes | V32: 1 | AC32: =IF(SUM(Q32:AB32)=0," ",SUM(Q32:AB32)) -> 1 | AD32: Fortalecimiento de la percepción de la ciudadanía frente a los productos y servicios prestados por la UPME nacional | AE32: 101-4 | AF32: POL-03 Planeación Institucional | AG32: POL-15 Transparencia, Acceso a la Inf. y lucha contra la Corrupción | AN32: =SUM(Q32:S32)*($N$32/12) -> 0 | AO32: =IF(AL32="","",IF(AL32=SUM(V32:W32),"Al dia",IF(AL32<SUM(V32:W32),"Con Rezago",IF(AL32>SUM(V32:W32),"Sobre ejecutada","")))) ->  | AP32: =AL32*($N$32/12) -> 0 | AU32: 0.8 | AV32: Se define borrador de la L-DE-01_V2 Política gestión integral del riesgo en sesiones realizadas con el Equipo de MIPG y el Jefe de la Oficina Asesora de Planeación, la cual fue socializada a todos los Lideres de Procesos para su revisión y retroalimentación, adicionalmente se presentó en el Comité Institucional de Coordinación de Control Interno en donde se concluyó como compromiso recibir observaciones de esta hasta el día viernes 28 de junio. Por el momento se han recibidos observaciones de Control Interno las cuales fueron revisadas y fueron efectuadas algunas complementaciones a la política. Es necesario indicar que en el mes de julio se adelantará una reunión con Control Interno para definir sus observaciones y una vez concluida, generar su aprobación en el Comité Institucional de Coordinación de Control Interno, además de su formalización y socialización. | AW32: =SUM(Q32:V32)*($N$32/12) -> 0.01666666667 | AX32: Con rezago | AY32: =AU32*($N$32/12) -> 0.01333333333 | AZ32: 1 | BA32: En el Comité de Coordinación Institucional de Control Interno del 5 de agosto del 2024 se realiza la aprobación de la Política Integral de Administración de Riesgos. La Política fue formalizada en el Sistema de Gestión Único Estratégico de Mejoramiento – SIGUEME el 8 de agosto del 2024 y su socialización se realizo el 9 de agosto del 2024. | BB32: 1 | BC32: Ejecutada | BD32: 1 | BE32: Ejecutada | BF32: =SUM(Q32:Y32)*($N$32/12) -> 0.01666666667 | BG32: Ejecutada | BH32: =BD32*($N$32/12) -> 0.01666666667 | BI32: 1 | BJ32: Ejecutada | BK32: 1 | BL32: Ejecutada | BM32: 1 | BN32: Ejecutada | BO32: =SUM(Q32:AB32)*($N$32/12) -> 0.01666666667 | BP32: =IF(BQ32=BO32,"Ejecutada",IF(BQ32<BO32,"Con rezago","REVISAR")) -> Ejecutada | BQ32: =BM32*($N$32/12) -> 0.01666666667
H33: Plan Anticorrupción y de Atención al Ciudadano | I33: 101-16 | K33: Matriz de riesgos de corrupción actualizada | L33: 1 | M33: Matriz | O33: 101-4-2 | P33: Actualizar los riesgos de corrupción en el respectivo módulo de la herramienta SÍGUEME | Q33: 1 | AC33: =IF(SUM(Q33:AB33)=0," ",SUM(Q33:AB33)) -> 1 | AE33: 101-6 | AF33: POL-03 Planeación Institucional | AG33: POL-15 Transparencia, Acceso a la Inf. y lucha contra la Corrupción | AH33: 1 | AI33: Se realizó la actualización de los riesgos de corrupción de la entidad, quedaron publicados en la página web el 31 de enero del 2024. | AJ33: 1 | AK33: Ejecutada | AL33: 1 | AM33: Ejecutada | AN33: =SUM(Q33:S33)*($N$32/12) -> 0.01666666667 | AO33: Ejecutada | AP33: =AL33*($N$32/12) -> 0.01666666667 | AQ33: 1 | AR33: Ejecutada | AS33: 1 | AT33: Ejecutada | AU33: 1 | AV33: Ejecutada | AW33: =SUM(Q33:V33)*($N$32/12) -> 0.01666666667 | AX33: Ejecutada | AY33: =AU33*($N$32/12) -> 0.01666666667 | AZ33: 1 | BA33: Ejecutada | BB33: 1 | BC33: Ejecutada | BD33: 1 | BE33: Ejecutada | BF33: =SUM(Q33:Y33)*($N$32/12) -> 0.01666666667 | BG33: Ejecutada | BH33: =BD33*($N$32/12) -> 0.01666666667 | BI33: 1 | BJ33: Ejecutada | BK33: 1 | BL33: Ejecutada | BM33: 1 | BN33: Ejecutada | BO33: =SUM(Q33:AB33)*($N$32/12) -> 0.01666666667 | BP33: =IF(BQ33=BO33,"Ejecutada",IF(BQ33<BO33,"Con rezago","REVISAR")) -> Ejecutada | BQ33: =BM33*($N$32/12) -> 0.01666666667
H34: Plan Anticorrupción y de Atención al Ciudadano | I34: 101-17 | K34: Mapa de riesgos de corrupción publicado para consulta pública | L34: 1 | M34: Aviso o noticia en página web | O34: 101-4-3 | P34: Poner en consulta pública el mapa de riesgos actualizado. | Q34: 1 | AC34: =IF(SUM(Q34:AB34)=0," ",SUM(Q34:AB34)) -> 1 | AE34: 101-6 | AF34: POL-03 Planeación Institucional | AG34: POL-15 Transparencia, Acceso a la Inf. y lucha contra la Corrupción | AH34: 1 | AI34: Se pone en consulta pública los riesgos de corrupción identificados para la vigencia 2024, a través de la página web de la entidad en el espacio de novedades desde el 25 de marzo hasta el 05 de abril de 2024. Se valida con el equipo de correspondencia las comunicaciones relacionadas a este tema, quienes manifiestan que no se presentó ningún comunicado. | AL34: 1 | AM34: Ejecutada | AN34: =SUM(Q34:S34)*($N$32/12) -> 0.01666666667 | AO34: Ejecutada | AP34: =AL34*($N$32/12) -> 0.01666666667 | AQ34: 1 | AR34: Ejecutada | AS34: 1 | AT34: Ejecutada | AU34: 1 | AV34: Ejecutada | AW34: =SUM(Q34:V34)*($N$32/12) -> 0.01666666667 | AX34: Ejecutada | AY34: =AU34*($N$32/12) -> 0.01666666667 | AZ34: 1 | BA34: Ejecutada | BB34: 1 | BC34: Ejecutada | BD34: 1 | BE34: Ejecutada | BF34: =SUM(Q34:Y34)*($N$32/12) -> 0.01666666667 | BG34: Ejecutada | BH34: =BD34*($N$32/12) -> 0.01666666667 | BI34: 1 | BJ34: Ejecutada | BK34: 1 | BL34: Ejecutada | BM34: 1 | BN34: Ejecutada | BO34: =SUM(Q34:AB34)*($N$32/12) -> 0.01666666667 | BP34: =IF(BQ34=BO34,"Ejecutada",IF(BQ34<BO34,"Con rezago","REVISAR")) -> Ejecutada | BQ34: =BM34*($N$32/12) -> 0.01666666667
H35: Plan Anticorrupción y de Atención al Ciudadano | I35: 101-18 | K35: Reporte de seguimiento elaborado | L35: 2 | M35: Reporte | O35: 101-4-4 | P35: Realizar dos seguimientos a los riesgos de corrupción para presentación al Comité Institucional de Gestión y Desempeño | U35: 0.5 | Y35: 0.5 | AC35: =IF(SUM(Q35:AB35)=0," ",SUM(Q35:AB35)) -> 1 | AE35: 101-6 | AF35: POL-03 Planeación Institucional | AG35: POL-15 Transparencia, Acceso a la Inf. y lucha contra la Corrupción | AN35: =SUM(Q35:S35)*($N$32/12) -> 0 | AO35: =IF(AL35="","",IF(AL35=SUM(V35:W35),"Al dia",IF(AL35<SUM(V35:W35),"Con Rezago",IF(AL35>SUM(V35:W35),"Sobre ejecutada","")))) ->  | AP35: =AL35*($N$32/12) -> 0 | AS35: 1 | AT35: Durante la tercera y cuarta semana de abril se desarrollaron espacios de trabajo y orientación metodológica con los líderes y equipos de enlaces de los procesos para realizar y registrar en SÍGUEME, los monitoreos a los riesgos de corrupción definidos por la entidad para la vigencia 2024. Finalizan las sesiones y registro en la primera semana de mayo y se proyecta el informe detallado para el cierre de este mismo mes. | AU35: 1 | AV35: Ejecutada | AW35: =SUM(Q35:V35)*($N$32/12) -> 0.008333333333 | AX35: Ejecutada | AY35: =AU35*($N$32/12) -> 0.01666666667 | AZ35: 1 | BA35: Ejecutada | BB35: 1 | BC35: Ejecutada | BD35: 1 | BE35: Ejecutada | BF35: =SUM(Q35:Y35)*($N$32/12) -> 0.01666666667 | BG35: Ejecutada | BH35: =BD35*($N$32/12) -> 0.01666666667 | BI35: 1 | BJ35: Ejecutada | BK35: 1 | BL35: Ejecutada | BM35: 1 | BN35: Ejecutada | BO35: =SUM(Q35:AB35)*($N$32/12) -> 0.01666666667 | BP35: =IF(BQ35=BO35,"Ejecutada",IF(BQ35<BO35,"Con rezago","REVISAR")) -> Ejecutada | BQ35: =BM35*($N$32/12) -> 0.01666666667
H36: Plan Anticorrupción y de Atención al Ciudadano | I36: 101-19 | K36: Informe de gestión publicado | L36: 1 | M36: Informe | O36: 101-4-5 | P36: Elaborar y publicar informe consolidado de gestión 2023 - 2024 de la UPME previo a la audiencia pública. | AB36: 1 | AC36: =IF(SUM(Q36:AB36)=0," ",SUM(Q36:AB36)) -> 1 | AE36: 101-4 | AF36: POL-13 Participación Ciudadana en la Gestión Pública | AG36: POL-15 Transparencia, Acceso a la Inf. y lucha contra la Corrupción | AN36: =SUM(Q36:S36)*($N$32/12) -> 0 | AO36: =IF(AL36="","",IF(AL36=SUM(V36:W36),"Al dia",IF(AL36<SUM(V36:W36),"Con Rezago",IF(AL36>SUM(V36:W36),"Sobre ejecutada","")))) ->  | AP36: =AL36*($N$32/12) -> 0 | AU36: 0 | AW36: =SUM(Q36:V36)*($N$32/12) -> 0 | AX36: Sin avance y en terminos | AY36: =AU36*($N$32/12) -> 0 | AZ36: 0 | BB36: 0 | BD36: 0 | BF36: =SUM(Q36:Y36)*($N$32/12) -> 0 | BG36: Sin avance y en terminos | BH36: =BD36*($N$32/12) -> 0 | BI36: 0 | BK36: 0 | BM36: 1 | BN36: A 31 de octubre de 2024, se elaboró y publicó el informe de gestión 2023 - 2024 previo a la audiencia de rendición de cuentas realizada por el sector de Minas y Energía, ejercicio que fue realizado igualmente por la UPME. El informe se encuentra publicado en el siguiente enlace: https://www1.upme.gov.co/Participa/RendicionCuentas/Informe_de_gestion_30_09_2024_consulta_v2.pdf | BO36: =SUM(Q36:AB36)*($N$32/12) -> 0.01666666667 | BP36: =IF(BQ36=BO36,"Ejecutada",IF(BQ36<BO36,"Con rezago","REVISAR")) -> Ejecutada | BQ36: =BM36*($N$32/12) -> 0.01666666667
H37: Plan Anticorrupción y de Atención al Ciudadano | I37: 101-20 | K37: Reportes de seguimiento de la estrategia de rendición de Cuentas | L37: 1 | M37: Audiencia | O37: 101-4-6 | P37: Participar en el desarrollo de la audiencia pública de rendición de cuentas a la ciudadanía | AA37: 1 | AC37: =IF(SUM(Q37:AB37)=0," ",SUM(Q37:AB37)) -> 1 | AE37: 101-4 | AF37: POL-13 Participación Ciudadana en la Gestión Pública | AG37: POL-15 Transparencia, Acceso a la Inf. y lucha contra la Corrupción | AN37: =SUM(Q37:S37)*($N$32/12) -> 0 | AO37: =IF(AL37="","",IF(AL37=SUM(V37:W37),"Al dia",IF(AL37<SUM(V37:W37),"Con Rezago",IF(AL37>SUM(V37:W37),"Sobre ejecutada","")))) ->  | AP37: =AL37*($N$32/12) -> 0 | AU37: 0 | AW37: =SUM(Q37:V37)*($N$32/12) -> 0 | AX37: Sin avance y en terminos | AY37: =AU37*($N$32/12) -> 0 | AZ37: 0 | BB37: 0 | BD37: 0 | BF37: =SUM(Q37:Y37)*($N$32/12) -> 0 | BG37: Sin avance y en terminos | BH37: =BD37*($N$32/12) -> 0 | BI37: 0 | BK37: 0 | BM37: 1 | BN37: Se realizaron dos ejercicios de rendición de cuentas: el primero realizado el 4 de diciembre en el departamento de la Guajira, en coordinación con el sector Minero Energético, estuvo dirigido a la ciudadanía, cuyo video se puede consultar en el siguiente enlace: https://www.youtube.com/embed/7ZhIpbJ9vsU y el segundo ejercicio, lo realizó directamente la UPME el 20 de diciembre de 2024 vía streaming que se evidencia en el siguiente enlace: https://www.youtube.com/watch?v=1mBMg2ZuGCw&t=19s. El informe se encuentra publicado en el siguiente enlace: https://www1.upme.gov.co/Participa/RendicionCuentas/Informe_rendicion_cuentas_2024.pdf | BO37: =SUM(Q37:AB37)*($N$32/12) -> 0.01666666667 | BP37: =IF(BQ37=BO37,"Ejecutada",IF(BQ37<BO37,"Con rezago","REVISAR")) -> Ejecutada | BQ37: =BM37*($N$32/12) -> 0.01666666667
H38: Plan Anticorrupción y de Atención al Ciudadano | I38: 101-21 | K38: Encuesta aplicada | L38: 1 | M38: Encuesta | O38: 101-4-7 | P38: Aplicar encuesta de evaluación y retroalimentación sobre informes de rendición de cuentas a todos los grupos de valor. | AA38: 1 | AC38: =IF(SUM(Q38:AB38)=0," ",SUM(Q38:AB38)) -> 1 | AE38: 101-4 | AF38: POL-13 Participación Ciudadana en la Gestión Pública | AG38: POL-15 Transparencia, Acceso a la Inf. y lucha contra la Corrupción | AN38: =SUM(Q38:S38)*($N$32/12) -> 0 | AO38: =IF(AL38="","",IF(AL38=SUM(V38:W38),"Al dia",IF(AL38<SUM(V38:W38),"Con Rezago",IF(AL38>SUM(V38:W38),"Sobre ejecutada","")))) ->  | AP38: =AL38*($N$32/12) -> 0 | AU38: 0 | AW38: =SUM(Q38:V38)*($N$32/12) -> 0 | AX38: Sin avance y en terminos | AY38: =AU38*($N$32/12) -> 0 | AZ38: 0 | BB38: 0 | BD38: 0 | BF38: =SUM(Q38:Y38)*($N$32/12) -> 0 | BG38: Sin avance y en terminos | BH38: =BD38*($N$32/12) -> 0 | BI38: 0 | BK38: 0 | BM38: 1 | BN38: Al finalizar el evento de rendición de cuentas organizado por el sector Minero - energético, se aplicó una encuesta a los participantes cuyos resultados se presentan en el informe con el título "Informe de Medición de la Satisfacción y Caracterización de Grupos de Valor", asimismo, al finalizar la audiencia de rendición de cuentas organizada por la UPME realizada el 20 de diciembre vía streaming, se publicó una encuesta para evaluar la satisfacción del ejercicio realizado y la información brindada por la entidad. En la carpeta se incluyen los informes de las encuestas aplicadas. | BO38: =SUM(Q38:AB38)*($N$32/12) -> 0.01666666667 | BP38: =IF(BQ38=BO38,"Ejecutada",IF(BQ38<BO38,"Con rezago","REVISAR")) -> Ejecutada | BQ38: =BM38*($N$32/12) -> 0.01666666667
H39: Plan Anticorrupción y de Atención al Ciudadano | I39: 101-22 | K39: Respuesta al 100% de las observaciones y/o preguntas | L39: 1 | M39: Informe | O39: 101-4-8 | P39: Responder a las observaciones y/o preguntas planteadas en la audiencia de rendición de cuentas asignadas a la oficina de planeación. | AB39: 1 | AC39: =IF(SUM(Q39:AB39)=0," ",SUM(Q39:AB39)) -> 1 | AE39: 101-4 | AF39: POL-13 Participación Ciudadana en la Gestión Pública | AG39: POL-15 Transparencia, Acceso a la Inf. y lucha contra la Corrupción | AN39: =SUM(Q39:S39)*($N$32/12) -> 0 | AO39: =IF(AL39="","",IF(AL39=SUM(V39:W39),"Al dia",IF(AL39<SUM(V39:W39),"Con Rezago",IF(AL39>SUM(V39:W39),"Sobre ejecutada","")))) ->  | AP39: =AL39*($N$32/12) -> 0 | AU39: 0 | AW39: =SUM(Q39:V39)*($N$32/12) -> 0 | AX39: Sin avance y en terminos | AY39: =AU39*($N$32/12) -> 0 | AZ39: 0 | BB39: 0 | BD39: 0 | BF39: =SUM(Q39:Y39)*($N$32/12) -> 0 | BG39: Sin avance y en terminos | BH39: =BD39*($N$32/12) -> 0 | BI39: 0 | BK39: 0 | BM39: 1 | BN39: Durante la Audiencia Pública de Rendición de Cuentas a la Ciudadanía realizada por la UPME vía streaming el día 20 de diciembre de 2024 se dió un espacio para responder a las preguntas de los participantes como se evidencia a partir del minuto 100 (1 h 40 min) del video de este ejercicio que se puede observar en el siguiente enlace: https://www.youtube.com/watch?v=1mBMg2ZuGCw&t=19s | BO39: =SUM(Q39:AB39)*($N$32/12) -> 0.01666666667 | BP39: =IF(BQ39=BO39,"Ejecutada",IF(BQ39<BO39,"Con rezago","REVISAR")) -> Ejecutada | BQ39: =BM39*($N$32/12) -> 0.01666666667
H40: Plan Anticorrupción y de Atención al Ciudadano | I40: 101-23 | K40: Matriz de evaluación ITA diligenciada | L40: 1 | M40: Matriz | O40: 101-4-9 | P40: Realizar la autoevaluación previa de la matriz de cumplimiento del Índice de Transparencia Activa | T40: 1 | AC40: =IF(SUM(Q40:AB40)=0," ",SUM(Q40:AB40)) -> 1 | AE40: 101-5 | AF40: POL-15 Transparencia, Acceso a la Inf. y lucha contra la Corrupción | AN40: =SUM(Q40:S40)*($N$32/12) -> 0 | AO40: =IF(AL40="","",IF(AL40=SUM(V40:W40),"Al dia",IF(AL40<SUM(V40:W40),"Con Rezago",IF(AL40>SUM(V40:W40),"Sobre ejecutada","")))) ->  | AP40: =AL40*($N$32/12) -> 0 | AQ40: 1 | AR40: Se reliza seguimiento a la matriz ITA, esta evaluación abarca varias secciones críticas como accesibilidad web, identidad visual, transparencia, contratación, planificación, entre otros. En general, se observa un alto grado de cumplimiento en la mayoría de los ítems evaluados. Áreas de Mejora: Se identifican varias áreas específicas para la mejora, incluida la necesidad de actualizar información desactualizada, mejorar la participación ciudadana, y asegurar la actualización y cumplimiento en secciones como la rendición de cuentas y el seguimiento a los planes y proyectos de inversión.Es particularmente notable la necesidad de fortalecer el contenido del menú participa y la atención y servicios a la ciudadanía, donde se sugiere revisar la estrategia de participación ciudadana. EVIDENCIA. Informe correo electronico | AS40: 1 | AT40: Ejecutada | AU40: 1 | AV40: Ejecutada | AW40: =SUM(Q40:V40)*($N$32/12) -> 0.01666666667 | AX40: Ejecutada | AY40: =AU40*($N$32/12) -> 0.01666666667 | AZ40: 1 | BA40: Ejecutada | BB40: 1 | BC40: Ejecutada | BD40: 1 | BE40: Ejecutada | BF40: =SUM(Q40:Y40)*($N$32/12) -> 0.01666666667 | BG40: Ejecutada | BH40: =BD40*($N$32/12) -> 0.01666666667 | BI40: 1 | BJ40: Ejecutada | BK40: 1 | BL40: Ejecutada | BM40: 1 | BN40: Ejecutada | BO40: =SUM(Q40:AB40)*($N$32/12) -> 0.01666666667 | BP40: =IF(BQ40=BO40,"Ejecutada",IF(BQ40<BO40,"Con rezago","REVISAR")) -> Ejecutada | BQ40: =BM40*($N$32/12) -> 0.01666666667
H41: Plan Anticorrupción y de Atención al Ciudadano | K41: Matriz de evaluación ITA diligenciada | L41: 1 | M41: Plan | O41: 101-4-10 | P41: Elaborar un plan de acción para el cumplimiento de los requerimientos de información de los anexos de la Resolución 1519 de 2020 | U41: 1 | AC41: =IF(SUM(Q41:AB41)=0," ",SUM(Q41:AB41)) -> 1 | AE41: 101-5 | AF41: POL-15 Transparencia, Acceso a la Inf. y lucha contra la Corrupción | AN41: =SUM(Q41:S41)*($N$32/12) -> 0 | AO41: =IF(AL41="","",IF(AL41=SUM(V41:W41),"Al dia",IF(AL41<SUM(V41:W41),"Con Rezago",IF(AL41>SUM(V41:W41),"Sobre ejecutada","")))) ->  | AP41: =AL41*($N$32/12) -> 0 | AS41: 1 | AT41: Se elaboró el plan de acción con los temas que faltan por implementar en el portal web de acuerdo a la autoevaluación de la matriz ITA. De igual manera, se realizó una reunión entre la Subdirección de Información, el GIT Administrativo y Servicio al Ciudadano, y la Oficina de Planeación para determinar los tiempos de ejecución de las actividades pendientes. Debido a que el portal web está en proceso de actualización, se planteó que algunas actividades se llevarán a cabo en el portal actual, mientras que las otras actividades que requieren un desarrollo más complejo se realizarán en la actualización del portal web. Se adjunta el cronograma de actividades con un seguimiento preliminar. | AU41: 1 | AV41: Ejecutada | AW41: =SUM(Q41:V41)*($N$32/12) -> 0.01666666667 | AX41: Ejecutada | AY41: =AU41*($N$32/12) -> 0.01666666667 | AZ41: 1 | BA41: Ejecutada | BB41: 1 | BC41: Ejecutada | BD41: 1 | BE41: Ejecutada | BF41: =SUM(Q41:Y41)*($N$32/12) -> 0.01666666667 | BG41: Ejecutada | BH41: =BD41*($N$32/12) -> 0.01666666667 | BI41: 1 | BJ41: Ejecutada | BK41: 1 | BL41: Ejecutada | BM41: 1 | BN41: Ejecutada | BO41: =SUM(Q41:AB41)*($N$32/12) -> 0.01666666667 | BP41: =IF(BQ41=BO41,"Ejecutada",IF(BQ41<BO41,"Con rezago","REVISAR")) -> Ejecutada | BQ41: =BM41*($N$32/12) -> 0.01666666667
H42: Plan Anticorrupción y de Atención al Ciudadano | K42: Matriz de evaluación ITA diligenciada | L42: 1 | M42: Matriz | O42: 101-4-11 | P42: Realizar el autodiagnóstico del ITA en el Sistema de Información para el Registro, Seguimiento, Monitoreo y Generación del Índice de Cumplimiento (ITA) de los Sujetos Obligados en la Ley 1712 de 2014 dispuesto por la PGN. | X42: 1 | AC42: =IF(SUM(Q42:AB42)=0," ",SUM(Q42:AB42)) -> 1 | AE42: 101-5 | AF42: POL-15 Transparencia, Acceso a la Inf. y lucha contra la Corrupción | AN42: =SUM(Q42:S42)*($N$32/12) -> 0 | AO42: =IF(AL42="","",IF(AL42=SUM(V42:W42),"Al dia",IF(AL42<SUM(V42:W42),"Con Rezago",IF(AL42>SUM(V42:W42),"Sobre ejecutada","")))) ->  | AP42: =AL42*($N$32/12) -> 0 | AU42: 0 | AW42: =SUM(Q42:V42)*($N$32/12) -> 0 | AX42: Sin avance y en terminos | AY42: =AU42*($N$32/12) -> 0 | AZ42: 0 | BB42: 0 | BD42: 1 | BE42: El autodiagnóstico se realizó a principios de año, evaluando el cumplimiento de los lineamientos establecidos. Se identificaron debilidades en relación con el cumplimiento del ITA, por lo que se diseñó un plan de trabajo que ha venido siendo implementado por el área de Servicio al Ciudadano, la Subdirección de Información y la Oficina Asesora de Planeación." | BF42: =SUM(Q42:Y42)*($N$32/12) -> 0.01666666667 | BG42: Ejecutada | BH42: =BD42*($N$32/12) -> 0.01666666667 | BI42: 1 | BJ42: Ejecutada | BK42: 1 | BL42: Ejecutada | BM42: 1 | BN42: Ejecutada | BO42: =SUM(Q42:AB42)*($N$32/12) -> 0.01666666667 | BP42: =IF(BQ42=BO42,"Ejecutada",IF(BQ42<BO42,"Con rezago","REVISAR")) -> Ejecutada | BQ42: =BM42*($N$32/12) -> 0.01666666667
H43: Plan Anticorrupción y de Atención al Ciudadano | I43: 101-24 | K43: Micrositio de cooperación internacional publicado en la página WEB institucional | L43: 1 | M43: Micrositio en Página web | O43: 101-4-12 | P43: Realizar las acciones necesarias para agregar un micrositio en página web con el fin de hacer la publicación de la gestión de cooperación internacional de la entidad | Z43: 1 | AC43: =IF(SUM(Q43:AB43)=0," ",SUM(Q43:AB43)) -> 1 | AD43: Fortalecimiento del levantamiento, gestión y apropiación de la información para la planeación del sector minero energético con enfoque territorial nacional | AE43: 100-35 | AF43: POL-15 Transparencia, Acceso a la Inf. y lucha contra la Corrupción | AG43: POL-07 Gobierno Digital | AN43: =SUM(Q43:S43)*($N$32/12) -> 0 | AO43: =IF(AL43="","",IF(AL43=SUM(V43:W43),"Al dia",IF(AL43<SUM(V43:W43),"Con Rezago",IF(AL43>SUM(V43:W43),"Sobre ejecutada","")))) ->  | AP43: =AL43*($N$32/12) -> 0 | AU43: 0 | AW43: =SUM(Q43:V43)*($N$32/12) -> 0 | AX43: Sin avance y en terminos | AY43: =AU43*($N$32/12) -> 0 | AZ43: 0 | BB43: 0 | BD43: 0 | BF43: =SUM(Q43:Y43)*($N$32/12) -> 0 | BG43: Ejecutada | BH43: =BD43*($N$32/12) -> 0 | BI43: 1 | BJ43: Se creó el botón de cooperación internacionacional en la pagina web de la UPME. El contenido que pueden encontrar en este espacio es (1) Estrategia Institucional de Cooperación Internacional (2) Iniciativas de cooperación finalizadas con los documentos finales (3) Demanda de Cooperación (4) Oferta de Cooperación. Este fue un trabajo articulado con la Subdirección de Gestión de Información y el Grupo de Comunicaciones. El URL donde se puede consultar es: https://www1.upme.gov.co/Paginas/Cooperacion-internacional.aspx | BK43: 1 | BL43: Ejecutada | BM43: 1 | BN43: Ejecutada | BO43: =SUM(Q43:AB43)*($N$32/12) -> 0.01666666667 | BP43: =IF(BQ43=BO43,"Ejecutada",IF(BQ43<BO43,"Con rezago","REVISAR")) -> Ejecutada | BQ43: =BM43*($N$32/12) -> 0.01666666667
B44: 4. Internacionalización, transformación productiva para la vida y acción climática | C44: 4. Internacionalización, transformación productiva para la vida y acción climática | E44: 1.Fortalecer la planeación y la investigación con estándares científicos, integrando los componentes social, ambiental, de cambio climático, territorial, étnico, de género, diferencial desde una mirada interseccional para la Transición Energética Justa. | F44: 8.Implementar mecanismos de cooperación para intercambio y generación de conocimiento técnico científico a través de alianzas estratégicas con cooperantes nacionales e internacionales. | G44: Formular e implementar la estrategia institucional de cooperación internacional de la UPME | I44: 101-25 | J44: Estrategia de cooperación internacional formulada e implementada | L44: 1 | M44: Estrategia | N44: 0.2 | O44: 101-5-1 | P44: Formulación de la Estrategia Institucional de Cooperación Internacional 2024 - 2026 de la UPME | S44: 0.5 | V44: 0.5 | AC44: =IF(SUM(Q44:AB44)=0," ",SUM(Q44:AB44)) -> 1 | AE44: 100-35 | AF44: POL-03 Planeación Institucional | AL44: 0.5 | AM44: Durante el primer trimestre de 2024, se avanzó en el documento de la Estrategia Institucional de Cooperación Internacional este primer borrador indica la estructura que va a tener el documento, el cual debe contener resumen, introducción, marco legal, marco conceptual, marco de referencia, objetivos y líneas de acción (oferta y demanda) e instrumentos de cooperación internacional. Igualmente se adelantó el resumen; el marco legal teniendo en cuenta las normativas a nivel nacional que aplican al sector minero energético; el marco conceptual teniendo en cuenta las definiciones de APC Colombia indicando cuáles son las modalidades de cooperación y los tipos de cooperación existentes y que aplican para los objetivos y líneas de acción que se implementarán en la UPME y el marco de referencia teniendo en cuenta los objetivos planteados en los Objetivos de Desarrollo Sostenible, el Plan Nacional de Desarrollo (2022 - 2026), el Plan Estratégico Institucional UPME (2023 - 2026), la Estrategia Nacional de Cooperación Internacional (2023 - 2026). Este primer documento se remitió el 26 de marzo al jefe de la Oficina Asesora de Planeación a través de correo electrónico. | AN44: =SUM(Q44:S44)*($N$32/3) -> 0.03333333333 | AO44: Con avance y en términos | AP44: =AL44*($N$44/3) -> 0.03333333333 | AU44: 1 | AV44: Para la formulación de la Estrategia Institucional de Cooperación Internacional 2024-2026 y específicamente para el desarrollo del capítulo objetivo y líneas de acción de cooperación internacional se realizaron varios talleres y reuniones: (1) Se realizaron talleres los días 22 y 25 de abril con los delegados de cada subdirección y oficina para identificar la línea de acción, las necesidades de cooperación para la vigencia 2024-2026 y los temas en donde la UPME es referente para poder mostrar a otros países (2) Entre el 20 y 24 de mayo se realizaron reuniones con los jefes y subdirectores para socializar el ejercicio realizado en los talleres del mes de abril, espacio donde realizaron ajustes a las líneas de acción, la oferta y la demanda de cooperación (3) El 20 de junio se socializa el ejercicio con el Director General, en donde solicitó ajustes y fusión de temas con algunas oficinas y subdirecciones (4) El 21 y 22 de junio se realizaron reuniones con las subdirecciones y oficinas para trabajar en los ajustes correspondientes a los diferentes temas (5) El 26 de junio se presentaron las líneas de acción modificadas junto con las necesidades y oferta al Director General. En este espacio se avaló la EICI de la UPME (6) Una vez avalada la EICI por el Director General se socializa en la mesa directiva del 02 de julio de 2024. El documento final de la EICI se encuentra en la siguiente ruta: https://docs.google.com/document/d/1vWgDgpyIMLURDZ7qefXOfapjj8vYc75P/edit?usp=drive_link&ouid=118333254584625367507&rtpof=true&sd=true | AW44: =SUM(Q44:V44)*($N$32/3) -> 0.06666666667 | AX44: Ejecutada | AY44: =AU44*($N$44/3) -> 0.06666666667 | AZ44: 1 | BA44: Ejecutada | BB44: 1 | BC44: Ejecutada | BD44: 1 | BE44: Ejecutada | BF44: =SUM(Q44:Y44)*($N$44/3) -> 0.06666666667 | BG44: Ejecutada | BH44: =BD44*($N$44/3) -> 0.06666666667 | BI44: 1 | BJ44: Ejecutada | BK44: 1 | BL44: Ejecutada | BM44: 1 | BN44: Ejecutada | BO44: =SUM(Q44:AB44)*($N$44/3) -> 0.06666666667 | BP44: =IF(BQ44=BO44,"Ejecutada",IF(BQ44<BO44,"Con rezago","REVISAR")) -> Ejecutada | BQ44: =BM44*($N$44/3) -> 0.06666666667
E45: 1.Fortalecer la planeación y la investigación con estándares científicos, integrando los componentes social, ambiental, de cambio climático, territorial, étnico, de género, diferencial desde una mirada interseccional para la Transición Energética Justa. | F45: 8.Implementar mecanismos de cooperación para intercambio y generación de conocimiento técnico científico a través de alianzas estratégicas con cooperantes nacionales e internacionales. | G45: Formular e implementar la estrategia institucional de cooperación internacional de la UPME | J45: Estrategia de cooperación internacional formulada e implementada | L45: 1 | M45: Presentación | O45: 101-5-2 | P45: Socialización de la Estrategia Institucional al interior de la entidad | Y45: 1 | AC45: =IF(SUM(Q45:AB45)=0," ",SUM(Q45:AB45)) -> 1 | AF45: POL-03 Planeación Institucional | AN45: =SUM(Q45:S45)*($N$32/3) -> 0 | AO45: =IF(AL45="","",IF(AL45=SUM(V45:W45),"Al dia",IF(AL45<SUM(V45:W45),"Con Rezago",IF(AL45>SUM(V45:W45),"Sobre ejecutada","")))) ->  | AP45: =AL45*($N$44/3) -> 0 | AU45: 0 | AW45: =SUM(Q45:V45)*($N$32/3) -> 0 | AX45: Sin avance y en terminos | AY45: =AU45*($N$44/3) -> 0 | AZ45: 0 | BB45: 0 | BD45: 1 | BE45: La socialización de la Estrategia Institucional de Cooperación Internacional 2024-2026, se realizó mediante diferentes herramientas: (1) el 19 de septiembre se remitió la comunicación a través del mailing (UPME Oficial) de la entidad a todos los funcionarios y contratistas con el enlace donde podían consultar el documento (2) se publicó el documento en las redes sociales que maneja la entidad (Instagram y Linkedin) (3) se creó un enlace en el botón de cooperación con el documento de la estrategia de cooperación. Ruta donde se encuentran las evidencias: https://drive.google.com/drive/folders/1WiVpVbAublXctOkwETzzsPsRiBYdFNPk?usp=drive_link | BF45: =SUM(Q45:Y45)*($N$44/3) -> 0.06666666667 | BG45: Ejecutada | BH45: =BD45*($N$44/3) -> 0.06666666667 | BI45: 1 | BJ45: Ejecutada | BK45: 1 | BL45: Ejecutada | BM45: 1 | BN45: Ejecutada | BO45: =SUM(Q45:AB45)*($N$44/3) -> 0.06666666667 | BP45: =IF(BQ45=BO45,"Ejecutada",IF(BQ45<BO45,"Con rezago","REVISAR")) -> Ejecutada | BQ45: =BM45*($N$44/3) -> 0.06666666667
E46: 1.Fortalecer la planeación y la investigación con estándares científicos, integrando los componentes social, ambiental, de cambio climático, territorial, étnico, de género, diferencial desde una mirada interseccional para la Transición Energética Justa. | F46: 8.Implementar mecanismos de cooperación para intercambio y generación de conocimiento técnico científico a través de alianzas estratégicas con cooperantes nacionales e internacionales. | G46: Formular e implementar la estrategia institucional de cooperación internacional de la UPME | J46: Estrategia de cooperación internacional formulada e implementada | L46: 1 | M46: Informe | O46: 101-5-3 | P46: Informe que presentará los avances del año con los resultados alcanzados en la implementación de la EICI. | AB46: 1 | AC46: =IF(SUM(Q46:AB46)=0," ",SUM(Q46:AB46)) -> 1 | AF46: POL-03 Planeación Institucional | AG46: POL-15 Transparencia, Acceso a la Inf. y lucha contra la Corrupción | AN46: =SUM(Q46:S46)*($N$32/3) -> 0 | AO46: =IF(AL46="","",IF(AL46=SUM(V46:W46),"Al dia",IF(AL46<SUM(V46:W46),"Con Rezago",IF(AL46>SUM(V46:W46),"Sobre ejecutada","")))) ->  | AP46: =AL46*($N$44/3) -> 0 | AU46: 0 | AW46: =SUM(Q46:V46)*($N$32/3) -> 0 | AX46: Sin avance y en terminos | AY46: =AU46*($N$44/3) -> 0 | AZ46: 0 | BB46: 0 | BD46: 0 | BF46: =SUM(Q46:Y46)*($N$44/3) -> 0 | BG46: Sin avance y en terminos | BH46: =BD46*($N$44/3) -> 0 | BI46: 0 | BK46: 0 | BM46: 1 | BN46: En el mes de diciembre, se generó el informe con los avances de la implementación de la EICI durante el 2024, en el cual las acciones de cooperación se alinearon con las lineas de acción establecidas en la EICI, presentando los avances en las iniciativas de cooperación, la participación en escenarios internacionales y el apalancamiento de recursos, este documento se remitió al Director General. | BO46: =SUM(Q46:AB46)*($N$44/3) -> 0.06666666667 | BP46: =IF(BQ46=BO46,"Ejecutada",IF(BQ46<BO46,"Con rezago","REVISAR")) -> Ejecutada | BQ46: =BM46*($N$44/3) -> 0.06666666667
B47: 4. Internacionalización, transformación productiva para la vida y acción climática | C47: 4. Internacionalización, transformación productiva para la vida y acción climática | H47: Plan Anticorrupción y de Atención al Ciudadano - Componente iniciativas adicionales | I47: 101-26 | J47: Estrategia de participación ciudadana formulada e implementada | L47: 1 | M47: Estrategia | N47: 0.1 | O47: 101-6-1 | P47: Coordinar la construcción de la estrategia de participación ciudadana. | S47: 1 | AC47: =IF(SUM(Q47:AB47)=0," ",SUM(Q47:AB47)) -> 1 | AD47: Fortalecimiento de la percepción de la ciudadanía frente a los productos y servicios prestados por la UPME nacional | AE47: 101-4 | AF47: POL-13 Participación Ciudadana en la Gestión Pública | AG47: POL-03 Planeación Institucional | AL47: 1 | AM47: Se realizaron las siguientes actividades: 1. Elaboración de presentación con el contexto y lineamientos de la Participación Ciudadana en el marco de MIPG. 2. Reunión virtual con la Secretaría General y el GIT de Talento Humano y Servicio al Ciudadano para concertar el alcance y la metodología para la formulación de la estrategia, previa presentación del contexto y los lineamientos respectivos 3. Reunión virtual con el GIT de Talento Humano y Servicio al Ciudadano para definir la fuente de información de las actividades participativas, el formato y el plazo. 4. Elaboración del formato para la formulación de la estrategia de Participación Ciudadana y 5. Producto de las mesas de trabajo, la Secretaría General emitió la Circular 024 del 27 de marzo de 2024 con los lineamientos para la formulación de la Estrategia de Participación Ciudadana. | AN47: =SUM(Q47:S47)*($N$47/3) -> 0.03333333333 | AO47: Ejecutada | AP47: =AL47*($N$47/3) -> 0.03333333333 | AQ47: 1 | AR47: Ejecutada | AS47: 1 | AT47: Ejecutada | AU47: 1 | AV47: Ejecutada | AW47: =SUM(Q47:V47)*($N$47) -> 0.1 | AX47: Ejecutada | AY47: =AU47*($N$47) -> 0.1 | AZ47: 1 | BA47: Ejecutada | BB47: 1 | BC47: Ejecutada | BD47: 1 | BE47: Ejecutada | BF47: =SUM(Q47:Y47)*($N$47) -> 0.1 | BG47: Ejecutada | BH47: =BD47*($N$47) -> 0.1 | BI47: 1 | BJ47: Ejecutada | BK47: 1 | BL47: Ejecutada | BM47: 1 | BN47: Ejecutada | BO47: =SUM(Q47:AB47)*($N$47) -> 0.1 | BP47: =IF(BQ47=BO47,"Ejecutada",IF(BQ47<BO47,"Con rezago","REVISAR")) -> Ejecutada | BQ47: =BM47*($N$47) -> 0.1
N48: =SUM(N13:N47) -> 1 | AM48: Avance al Trimestre I | AN48: =SUM(AN13:AN47) -> 0.121 | AP48: =SUM(AP13:AP47) -> 0.1343333333 | AV48: Avance al Trimestre I | AW48: =SUM(AW13:AW47) -> 0.4088333333 | AY48: =SUM(AY13:AY47) -> 0.4157083333 | BF48: =SUM(BF13:BF47) -> 0.7045833333 | BH48: =SUM(BH13:BH47) -> 0.6964583333 | BO48: =SUM(BO13:BO47) -> 1 | BQ48: =SUM(BQ13:BQ47) -> 0.9964583333
AN49: Ejecutada | AO49: =COUNTIF($AX$13:$AX$47,AN49) -> 10
AN50: Con avance y en terminos | AO50: =COUNTIF($AX$13:$AX$47,AN50) -> 6 | AW50: Ejecutada | AX50: =COUNTIF($AX$13:$AX$47,AW50) -> 10 | BF50: Ejecutada | BG50: =COUNTIF($BG$13:$BG$47,BF50) -> 20 | BO50: Ejecutada | BP50: =COUNTIF($BP$13:$BP$47,BO50) -> 33
AN51: Con rezago | AO51: =COUNTIF($AX$13:$AX$47,AN51) -> 4 | AW51: Con avance y en terminos | AX51: =COUNTIF($AX$13:$AX$47,AW51) -> 6 | BF51: Con avance y en terminos | BG51: =COUNTIF($BG$13:$BG$47,BF51) -> 3 | BO51: Con avance y en terminos | BP51: =COUNTIF($BP$13:$BP$47,BO51) -> 0
AN52: Sin avance y en terminos | AO52: =COUNTIF($AX$13:$AX$47,AN52) -> 15 | AW52: Con rezago | AX52: =COUNTIF($AX$13:$AX$47,AW52) -> 4 | BF52: Con rezago | BG52: =COUNTIF($BG$13:$BG$47,BF52) -> 4 | BO52: Con rezago | BP52: =COUNTIF($BP$13:$BP$47,BO52) -> 2
AN53: Total Actividades | AO53: =SUM(AO49:AO52) -> 35 | AW53: Sin avance y en terminos | AX53: =COUNTIF($AX$13:$AX$47,AX45) -> 15 | BF53: Sin avance y en terminos | BG53: =COUNTIF($BG$13:$BG$47,BF53) -> 8 | BO53: Sin avance y en terminos | BP53: =COUNTIF($BP$13:$BP$47,BO53) -> 0
AW54: Total Actividades | AX54: =SUM(AX50:AX53) -> 35 | BF54: Total Actividades | BG54: =SUM(BG50:BG53) -> 35 | BO54: Total Actividades | BP54: =SUM(BP50:BP53) -> 35

Sheet OGPF
C2: FORMATO FORMULACIÓN Y REPORTE DE AVANCES DEL PLAN DE ACCIÓN UNIDAD DE PLANEACIÓN MINERO ENERGÉTICA - UPME | AG2: Código: F-DE-09
AG4: Versión No. 01
D7: DEPENDENCIA FORMULADORA | E7: Oficina de Gestión de Proyectos de Fondos
B9: ARTICULACIÓN CON PND 2022 - 2026 | D9: PLAN ESTRATÉGICO SECTORIAL-PES | E9: ASOCIACIÓN CON LA PLANEACIÓN ESTRATÉGICA INSTITUCIONAL -PEI | H9: 5. OTROS PLANES | I9: 3. FORMULACIÓN DE PLAN DE ACCIÓN | Q9: PROGRAMACIÓN DE LA EJECUCIÓN DE LA ACTIVIDAD | AC9: VALIDACIÓN DE LA PROGRAMACIÓN | AD9: 4. FINANCIACIÓN | AF9: ASOCIACIÓN CON LAS POLÍTICAS DE MIPG | AH9: REPORTE MENSUAL DE AVANCES
Q11: TRIMESTRE I | T11: TRIMESTRE Il | W11: TRIMESTRE Ill | Z11: TRIMESTRE IV | AH11: ENERO | AJ11: FEBRERO | AL11: MARZO | AO11: AVANCE | AQ11: ABRIL | AS11: MAYO | AU11: JUNIO | AX11: AVANCE | AZ11: JULIO | BB11: AGOSTO | BD11: SEPTIEMBRE | BG11: AVANCE | BI11: OCTUBRE | BK11: NOVIEMBRE | BM11: DICIEMBRE | BP11: AVANCE
B12: TRANSFORMACIÓN | C12: CATALIZADOR | D12: COMPROMISO PES | E12: OBJETIVO ESTRATÉGICO INSTITUCIONAL | F12: ESTRATEGIA PEI | G12: COMPROMISO PEI | H12: PLAN INSTITUCIONAL RELACIONADO (Decreto 612 del 2018) | I12: ID del Entregable | J12: ENTREGABLE | K12: ENTREGABLES "OTROS PLANES" | L12: META | M12: UNIDAD DE MEDIDA O CARÁCTERÍSTICA | N12: PONDERACIÓN DEL ENTREGABLE | O12: ID de la Actividad | P12: ACTIVIDADES CLAVE PARA MATERIALIZAR DEL PRODUCTO | Q12: ENE | R12: FEB | S12: MAR | T12: ABR | U12: MAY | V12: JUN | W12: JUL | X12: AGO | Y12: SEP | Z12: OCT | AA12: NOV | AB12: DIC | AC12: VALIDACIÓN DE LA PROGRAMACIÓN | AD12: PROYECTOS DE INVERSIÓN ASOCIADO - LISTADO | AE12: ÍTEM(S) DEL PAA ASOCIADOS | AF12: 1ª POLÍTICA MIPG | AG12: 2ª POLÍTICA MIPG | AH12: PORCENTAJE DE AVANCE | AI12: DESCRIPCIÓN DEL AVANCE | AJ12: PORCENTAJE DE AVANCE (Acumulado) | AK12: DESCRIPCIÓN DEL AVANCE | AL12: PORCENTAJE DE AVANCE (Acumulado) | AM12: DESCRIPCIÓN DEL AVANCE | AN12: Proyectado ponderado | AO12: Avance TRIMESTRE I | AP12: Ejecutado ponderado | AQ12: PORCENTAJE DE AVANCE (Acumulado) | AR12: DESCRIPCIÓN DEL AVANCE | AS12: PORCENTAJE DE AVANCE (Acumulado) | AT12: DESCRIPCIÓN DEL AVANCE | AU12: PORCENTAJE DE AVANCE (Acumulado a Junio) | AV12: DESCRIPCIÓN DEL AVANCE (Acumulado a Junio) | AW12: Proyectado ponderado | AX12: TRIM. II | AY12: Ejecutado ponderado | AZ12: PORCENTAJE DE AVANCE (Acumulado a Julio) | BA12: DESCRIPCIÓN DEL AVANCE (Acumulado a Julio) | BB12: PORCENTAJE DE AVANCE (Acumulado a Agosto) | BC12: DESCRIPCIÓN DEL AVANCE (Acumulado a Agosto) | BD12: PORCENTAJE DE AVANCE (Acumulado a Septiembre) | BE12: DESCRIPCIÓN DEL AVANCE (Acumulado a Septiembre) | BF12: Proyectado ponderado | BG12: TRIM. III | BH12: Ejecutado ponderado | BI12: PORCENTAJE DE AVANCE (Acumulado a Octubre) | BJ12: DESCRIPCIÓN DEL AVANCE (Acumulado a Octubre) | BK12: PORCENTAJE DE AVANCE (Acumulado a Noviembre) | BL12: DESCRIPCIÓN DEL AVANCE (Acumulado a Noviembre) | BM12: PORCENTAJE DE AVANCE (Acumulado a Diciembre) | BN12: DESCRIPCIÓN DEL AVANCE (Acumulado a Diciembre) | BO12: Proyectado ponderado | BP12: TRIM. IV | BQ12: Ejecutado ponderado
B13: 4. Internacionalización, transformación productiva para la vida y acción climática | C13: 4. Ciudades y hábitats resilientes | D13: Fortalecimiento del Sistema Eléctrico para la TEJ | E13: 1.Fortalecer la planeación y la investigación con estándares científicos, integrando los componentes social, ambiental, de cambio climático, territorial, étnico, de género, diferencial desde una mirada interseccional para la Transición Energética Justa. | F13: 1.Generar nuevas metodologías, modelos de optimización y adopción de tecnologías adecuados a la realidad del país, en términos de normatividad, regulación, operación del sistema energético y necesidades de señales de política energética. | G13: Mejorar el proceso de evaluación de los proyectos del sector minero energético que requieren concepto para ser financiados con recursos de fondos y mecanismos de financiación | I13: 180-1 | J13: Conceptos de evaluación técnica y financiera para proyectos que solicitan recursos de los diferentes fondos y mecanismos de financiación emitidos. (Según Demanda) | L13: 0.95 | M13: Documento aprobado / oficializado | N13: 0.5 | O13: 180-1-1 | P13: Evaluar técnica y financieramente los proyectos de energía eléctrica y gas combustible presentados a los mecanismos y fondos de apoyo financiero | Q13: 0.08333333333 | R13: 0.08333333333 | S13: 0.08333333333 | T13: 0.08333333333 | U13: 0.08333333333 | V13: 0.08333333333 | W13: 0.08333333333 | X13: 0.08333333333 | Y13: 0.08333333333 | Z13: 0.08333333333 | AA13: 0.08333333333 | AB13: 0.08333333333 | AC13: 1 | AD13: Mejoramiento de la participación ciudadana en el modelo energético y de infraestructura energética, en el marco de la transición energética justa a nivel nacional | AE13: 180-01, 180-02, 180-03, 180-05, 180-06, 180-08, 180-09, 180-10, 180-11, 180-12 | AF13: POL-06 Fortalecimiento Organizacional y Simplificación de Procesos | AG13: No Aplica | AH13: 0.083 | AI13: Para el mes de ENERO se recibieron 6 y se emitieron 5 conceptos distribuidos de la siguiente manera: *FAER: Recibio 1 solicitudes de emisión de concepto.Para FAER se emitieron 1 conceptos. *Sistema General de Regalias: Recibio 5 solicitudes de emisión de concepto.Para Sistema General de Regalias se emitieron 4 conceptos. | AJ13: 0.166 | AK13: Para el mes de FEBRERO se recibieron 20 y se emitieron 12 conceptos distribuidos de la siguiente manera: *FAER: Recibio 1 solicitudes de emisión de concepto.Para FAER se emitieron 9 conceptos. *Sistema General de Regalias: Recibio 11 solicitudes de emisión de concepto. *Obras por impuestos: Recibio 2 solicitudes de emisión de concepto.Para Obras por impuestos se emitieron 2 conceptos. *Programa de GLP - PGLP: Recibio 4 solicitudes de emisión de concepto. *Plan Todos Somos Pazcifico: Recibio 2 solicitudes de emisión de concepto.Para Plan Todos Somos Pazcifico se emitieron 1 conceptos. | AL13: 0.249 | AM13: Para el mes de MARZO se recibieron 6 y se emitieron 9 conceptos distribuidos de la siguiente manera: *FAER: Recibio 1 solicitudes de emisión de concepto.Para FAER se emitieron 1 conceptos. *Sistema General de Regalias: Recibio 4 solicitudes de emisión de concepto.Para Sistema General de Regalias se emitieron 4 conceptos. *Programa de GLP - PGLP: Recibio 1 solicitudes de emisión de concepto.Para Programa de GLP - PGLP se emitieron 3 conceptos. Para Plan Todos Somos Pazcifico se emitieron 1 conceptos. | AN13: =SUM(Q13:S13)*($N$13/2) -> 0.0625 | AO13: Con avance y en terminos | AP13: =AL13*($N$13/2) -> 0.06225 | AQ13: =AL13+AH13 -> 0.332 | AR13: Para el mes de ABRIL se recibieron 16 y se emitieron 18 conceptos distribuidos de la siguiente manera: *FAER: Recibio 8 solicitudes de emisión de concepto.Para FAER se emitieron 7 conceptos. *Sistema General de Regalias: Recibio 6 solicitudes de emisión de concepto.Para Sistema General de Regalias se emitieron 5 conceptos. *Obras por impuestos: Recibio 2 solicitudes de emisión de concepto.Para Obras por impuestos se emitieron 2 conceptos. Para Fondo Cuota de Fomento - FECF se emitieron 1 conceptos. Para Programa de GLP - PGLP se emitieron 3 conceptos. | AS13: =AQ13+AH13 -> 0.415 | AT13: Para el mes de MAYO se recibieron 21 y se emitieron 18 conceptos distribuidos de la siguiente manera: *FAER: Recibio 6 solicitudes de emisión de concepto.Para FAER se emitieron 6 conceptos. *Sistema General de Regalias: Recibio 9 solicitudes de emisión de concepto.Para Sistema General de Regalias se emitieron 10 conceptos. *Obras por impuestos: Recibio 1 solicitudes de emisión de concepto.Para Obras por impuestos se emitieron 1 conceptos. *Fondo Cuota de Fomento - FECF: Recibio 3 solicitudes de emisión de concepto. *Programa de GLP - PGLP: Recibio 2 solicitudes de emisión de concepto.Para Programa de GLP - PGLP se emitieron 1 concepto | AU13: =AS13+AH13 -> 0.498 | AV13: Para el mes de JUNIO se recibieron 21 y se emitieron 14 conceptos distribuidos de la siguiente manera: *FAER: Recibio 8 solicitudes de emisión de concepto.Para FAER se emitieron 4 conceptos. *Sistema General de Regalias: Recibio 10 solicitudes de emisión de concepto.Para Sistema General de Regalias se emitieron 6 conceptos. *FINDETER: Recibio 1 solicitudes de emisión de concepto. *Programa de GLP - PGLP: Recibio 1 solicitudes de emisión de concepto.Para Programa de GLP - PGLP se emitieron 3 conceptos. *Plan Todos Somos Pazcifico: Recibio 1 solicitudes de emisión de concepto.Para Plan Todos Somos Pazcifico se emitieron 1 conceptos. | AW13: =SUM(Q13:V13)*($N$13/2) -> 0.125 | AX13: Con avance y en terminos | AY13: =AU13*($N$13/2) -> 0.1245 | AZ13: =AU13+AH13 -> 0.581 | BA13: Para el mes de JULIO se recibieron 37 y se emitieron 45 conceptos distribuidos de la siguiente manera: *FAER: Recibio 12 solicitudes de emisión de concepto.Para FAER se emitieron 16 conceptos. *Sistema General de Regalias: Recibio 20 solicitudes de emisión de concepto.Para Sistema General de Regalias se emitieron 16 conceptos. *Obras por impuestos: Recibio 5 solicitudes de emisión de concepto.Para Obras por impuestos se emitieron 4 conceptos. Para FINDETER se emitieron 1 conceptos. Para Plan Todos Somos Pazcifico se emitieron 1 conceptos. Para PSL se emitieron 7 conceptos. | BB13: =AZ13+X13 -> 0.6643333333 | BC13: Para el mes de AGOSTO se recibieron 9 versiones de proyectos y se emitieron 30 conceptos distribuidos de la siguiente manera: 1- FAER; Se recibio 1 solicitud de emisión de concepto y Se emitieron 4 conceptos asociados a proyectos 2- PTSP; No se recibieron ni emitieron conceptos 3- FINDETER; Se recibieron 2 solicitudes de emisión de concepto y Se emitieron 2 conceptos asociados a proyectos 4- FENOGE; No se recibieron ni emitieron conceptos 5- SISTEMA GENERAL DE REGALIAS (SGR); Se recibieron 6 solicitudes de emisión de concepto y Se emitieron 14 conceptos asociados a proyectos 6- OBRAS POR IMPUESTO (OxI); Se emitio 1 concepto asociados a proyectos 7- PGLP; Se emitio 1 concepto asociados a proyectos 8- FECF; Se emitio 1 concepto asociados a proyectos 9- PSL; Se emitieron 7 conceptos asociados a proyectos | BD13: 0.75 | BE13: Para el mes de SEPTIEMBRE se recibieron 14 versiones de proyectos y se emitieron 36 conceptos distribuidos de la siguiente manera: 1- FAER; Se recibieron 2 solicitudes de emisión de concepto y Se emitieron 5 conceptos asociados a proyectos 2- PTSP; No se recibieron ni emitieron conceptos . 3- FINDETER; Se emitieron 3 conceptos asociados a proyectos 4- FENOGE; No se recibieron ni emitieron conceptos. 5- SISTEMA GENERAL DE REGALIAS (SGR); Se recibieron 12 solicitudes de emisión de concepto y Se emitieron 18 conceptos asociados a proyectos 6- OBRAS POR IMPUESTO (OxI); No se recibieron ni emitieron conceptos. 7- PGLP; No se recibieron ni emitieron conceptos 8- FECF; Se emitieron 4 conceptos asociados a proyectos 9- PSL; Se emitieron 6 conceptos asociados a proyectos | BF13: =SUM(Q13:Y13)*(50%/2) -> 0.1875 | BG13: Con avance y en terminos | BH13: =BD13*(50%/2) -> 0.1875 | BI13: =BD13+Z13 -> 0.8333333333 | BJ13: Para el mes de OCTUBRE se recibieron 11 versiones de proyectos y se emitieron 28 conceptos distribuidos de la siguiente manera: 1- FAER; Se recibió 1 solicitud de emisión de concepto y Se emitieron 2 conceptos asociados a proyectos 2- PTSP; Se emitió 1 concepto asociado a proyectos 3- FINDETER; Se recibieron 2 solicitudes de emisión de concepto y Se emitieron 3 conceptos asociados a proyectos 4- FENOGE; No se recibieron ni emitieron conceptos 5- SISTEMA GENERAL DE REGALIAS (SGR); Se recibieron 8 solicitudes de emisión de concepto y Se emitieron 20 conceptos asociados a proyectos 6- OBRAS POR IMPUESTO (OxI); No se recibieron ni emitieron conceptos 7- PGLP; No se recibieron ni emitieron conceptos para el mes 8- FECF; Se emitieron 1 conceptos asociados a proyectos 9- PSL; Se emitieron 1 conceptos asociados a proyectos | BK13: =BI13+AA13 -> 0.9166666667 | BL13: Para el mes de NOVIEMBRE se recibieron 16 versiones de proyectos y se emitieron 49 conceptos distribuidos de la siguiente manera: 1- FAER; No se recibieron solicitudes de emisión de concepto y Se emitieron 4 conceptos asociados a proyectos 2- PTSP; Se recibió 1 solicitud de emisión de concepto y Se emitió 1 concepto asociados a proyectos 3- FINDETER; Se recibieron 3 solicitudes de emisión de concepto y Se emitieron 4 conceptos asociados a proyectos 4- FENOGE; No se recibieron ni emitieron conceptos para el mes de NOVIEMBRE 5- SISTEMA GENERAL DE REGALIAS (SGR); Se recibieron 11 solicitudes de emisión de concepto y Se emitieron 26 conceptos asociados a proyectos 6- OBRAS POR IMPUESTO (OxI); Se recibió 1 solicitud de emisión de concepto y Se emitieron 2 conceptos asociados a proyectos 7- PGLP; No se recibieron solicitudes de emisión de concepto y Se emitió 1 concepto asociado a proyectos 8- FECF; No se recibieron solicitudes de emisión de concepto y Se emitiieron 10 conceptos asociado a proyectos 9- PSL; No se recibieron solicitudes de emisión de concepto y Se emitió 1 concepto asociado a proyectos | BM13: =BK13+AB13 -> 1 | BN13: Para el mes de DICIEMBRE se recibieron 14 versiones de proyectos y se emitieron 47 conceptos distribuidos de la siguiente manera: 1- FAER; Se recibió 1 solicitud de emisión de concepto y Se emitieron 6 conceptos asociados a proyectos 2- PTSP; No se recibieron solicitudes de emisión de concepto y No se emitieron conceptos asociados a proyectos 3- FINDETER; No se recibieron solicitudes de emisión de concepto y Se emitieron 2 conceptos asociados a proyectos 4- FENOGE; No se recibieron ni emitieron conceptos para el mes de DICIEMBRE 5- SISTEMA GENERAL DE REGALIAS (SGR); Se recibieron 3 solicitudes de emisión de concepto y Se emitieron 18 conceptos asociados a proyectos 6- OBRAS POR IMPUESTO (OxI); No se recibieron solicitudes de emisión de concepto y Se emitieron 2 conceptos asociados a proyectos 7- PGLP; No se recibieron solicitudes de emisión de concepto y No se emitieron conceptos asociados a proyectos 8- FECF; Se recibieron 7 solicitud de emisión de concepto y Se emitieron 16 conceptos asociado a proyectos 9- PSL; Se recibieron 3 solicitud de emisión de concepto y Se emitieron 3 conceptos asociado a proyectos | BO13: =SUM(Q13:AB13)*(50%/2) -> 0.25 | BP13: Ejecutada | BQ13: =BM13*(50%/2) -> 0.25
D14: Fortalecimiento del Sistema Eléctrico para la TEJ | E14: 1.Fortalecer la planeación y la investigación con estándares científicos, integrando los componentes social, ambiental, de cambio climático, territorial, étnico, de género, diferencial desde una mirada interseccional para la Transición Energética Justa. | F14: 1.Generar nuevas metodologías, modelos de optimización y adopción de tecnologías adecuados a la realidad del país, en términos de normatividad, regulación, operación del sistema energético y necesidades de señales de política energética. | G14: Mejorar el proceso de evaluación de los proyectos del sector minero energético que requieren concepto para ser financiados con recursos de fondos y mecanismos de financiación | J14: Conceptos de evaluación técnica y financiera para proyectos que solicitan recursos de los diferentes fondos y mecanismos de financiación emitidos. (Según Demanda) | L14: 4 | M14: Informe | O14: 180-1-2 | P14: Elaborar y publicar informe trimestral de gestión de proyectos con reportes. | S14: 0.25 | V14: 0.25 | Y14: 0.25 | AB14: 0.25 | AC14: 1 | AL14: 0.25 | AM14: De acuerdo a la consolidación de la herramienta de seguimiento de proyectos, se consolido el archivo en Tableau hasta el mes de marzo de todo el seguimiento de proyectos que buscan a cceso a recursos por fondos o mecanismos de apoyo financiero evaluados por la UPME. | AN14: =SUM(Q14:S14)*($N$13/2) -> 0.0625 | AO14: Con avance y en terminos | AP14: =AL14*($N$13/2) -> 0.0625 | AU14: 0.5 | AV14: De acuerdo a la consolidación de la herramienta de seguimiento de proyectos, se consolido el archivo en Tableau hasta el mes de Junio de todo el seguimiento de proyectos que buscan acceso a recursos por fondos o mecanismos de apoyo financiero evaluados por la UPME. | AW14: =SUM(Q14:V14)*($N$13/2) -> 0.125 | AX14: Con avance y en terminos | AY14: =AU14*($N$13/2) -> 0.125 | AZ14: 0.5 | BA14: Continua con el mismo avace reportado a Junio | BB14: 0.5 | BC14: Observación: Se realiza el seguimiento mensual. En el corte correspondiente del informe de gestion se estara reportando y publicando en la pagina de la UPME. No hay avance frente a junio. | BD14: =BB14+Y14 -> 0.75 | BE14: De acuerdo a la consolidación de la herramienta de seguimiento de proyectos, se consolido el archivo en Tableau hasta el mes de SEPTIEMBRE de todo el seguimiento de proyectos que buscan acceso a recursos por fondos o mecanismos de apoyo financiero evaluados por la UPME. | BF14: =SUM(Q14:Y14)*(50%/2) -> 0.1875 | BG14: Con avance y en terminos | BH14: =BD14*(50%/2) -> 0.1875 | BI14: 0.75 | BK14: 0.75 | BM14: =BK14+AB14 -> 1 | BN14: De acuerdo a la consolidación de la herramienta de seguimiento de proyectos, se envía enlace del informe de gestión hasta el mes de DICIEMBRRE de todo el seguimiento de proyectos. https://app.powerbi.com/view?r=eyJrIjoiODZjOTE3MzItYTlhOS00MGUyLWE2ZGEtMjUwZjIwNGFlOWFiIiwidCI6IjMzZWYwNmM5LTBiNjMtNDg3MC1hNTY1LWIzYzc5NWIxNmE1MyIsImMiOjR9 | BO14: =SUM(Q14:AB14)*(50%/2) -> 0.25 | BP14: Ejecutada | BQ14: =BM14*(50%/2) -> 0.25
B15: 4. Internacionalización, transformación productiva para la vida y acción climática | C15: 4. Ciudades y hábitats resilientes | D15: Fortalecimiento del Sistema Eléctrico para la TEJ | E15: 1.Fortalecer la planeación y la investigación con estándares científicos, integrando los componentes social, ambiental, de cambio climático, territorial, étnico, de género, diferencial desde una mirada interseccional para la Transición Energética Justa. | F15: 1.Generar nuevas metodologías, modelos de optimización y adopción de tecnologías adecuados a la realidad del país, en términos de normatividad, regulación, operación del sistema energético y necesidades de señales de política energética. | G15: Mejorar el proceso de evaluación de los proyectos del sector minero energético que requieren concepto para ser financiados con recursos de fondos y mecanismos de financiación | I15: 180-2 | J15: Metodología de evaluación de proyectos propuesta | L15: 2 | M15: Documento | N15: 0.1 | O15: 180-2-1 | P15: Realizar la revisión de las metodologías de evaluación vigentes y publicadas. | Q15: 0.25 | R15: 0.25 | W15: 0.25 | X15: 0.25 | AC15: =IF(SUM(Q15:AB15)=0," ",SUM(Q15:AB15)) -> 1 | AF15: No Aplica | AG15: No Aplica | AJ15: 0.4 | AK15: Se realizo la revisón de procedimientos presentes para la actualización e inicio de actualización del Sistema General de Regalias | AL15: 0.5 | AM15: Revisión completa de la metodologia actual publicada por los fondos de energia electrica | AN15: =SUM(Q15:S15)*($N$15/4) -> 0.0125 | AO15: Con avance y en terminos | AP15: =AL15*($N$15/4) -> 0.0125 | AU15: 0.5 | AV15: Continua con el mismo avace reportado a marzo | AW15: =SUM(Q15:V15)*($N$15/4) -> 0.0125 | AX15: Con avance y en terminos | AY15: =AU15*($N$15/4) -> 0.0125 | AZ15: 0.5 | BA15: Continua con el mismo avace reportado a Junio | BB15: =AZ15 -> 0.5 | BC15: Continua con el mismo avance reportado a Junio. | BD15: =BB15+W15 -> 0.75 | BE15: Se realiza revision de otras metodologias vigentes, del area de transmisión de la entidad. | BF15: =SUM(Q15:Y15)*($N$15/4) -> 0.025 | BG15: Con rezago | BH15: =BD15*($N$15/4) -> 0.01875 | BI15: =BD15 -> 0.75 | BJ15: Continúa con el mismo avance reportado a Septiembre. | BK15: 0.9 | BL15: En unificacion de criterios se revisaron parametros para soluciones SFV | BM15: 1 | BN15: Se efectuo reunion de Unificación de criterios de la OGPF y en carpeta se evidencia soporte de acta de la reunion | BO15: =SUM(Q15:AB15)*($N$15/4) -> 0.025 | BP15: Ejecutada | BQ15: =BM15*($N$15/4) -> 0.025
D16: Fortalecimiento del Sistema Eléctrico para la TEJ | E16: 1.Fortalecer la planeación y la investigación con estándares científicos, integrando los componentes social, ambiental, de cambio climático, territorial, étnico, de género, diferencial desde una mirada interseccional para la Transición Energética Justa. | F16: 1.Generar nuevas metodologías, modelos de optimización y adopción de tecnologías adecuados a la realidad del país, en términos de normatividad, regulación, operación del sistema energético y necesidades de señales de política energética. | G16: Mejorar el proceso de evaluación de los proyectos del sector minero energético que requieren concepto para ser financiados con recursos de fondos y mecanismos de financiación | J16: Metodología de evaluación de proyectos propuesta | O16: 180-2-2 | P16: Verificar los cambios en los procesos metodológicos actuales de acuerdo a los cambios normativos y regulatorios de los fondos o mecanismos de apoyo financiero. | R16: 0.25 | S16: 0.25 | X16: 0.25 | Y16: 0.25 | AC16: =IF(SUM(Q16:AB16)=0," ",SUM(Q16:AB16)) -> 1 | AJ16: 0 | AK16: Esta actividad no se realiza en el presente periodo | AL16: 0.3 | AM16: Envió para comentarios por parte de evaluadores y demas lideres de fondo la metodologia de eveluación de energia electrica por parte del sistema general de regalias, en espera del proceso de de verificación y ajuste de FAER y Plan todos somos Pazcifico | AN16: =SUM(Q16:S16)*($N$15/4) -> 0.0125 | AO16: Con avance y en terminos | AP16: =AL16*($N$15/4) -> 0.0075 | AQ16: 0.5 | AR16: Verificación normativa de los fondos principales de proyetos de redes de distribución en energia electrica FAER y el Sitema General de Regalias | AU16: 0.5 | AV16: Continua con el mismo avace reportado al mes de abril | AW16: =SUM(Q16:V16)*($N$15/4) -> 0.0125 | AX16: Con avance y en terminos | AY16: =AU16*($N$15/4) -> 0.0125 | AZ16: =AU16 -> 0.5 | BA16: Continua con el mismo avace reportado a Junio | BB16: =AZ16+X16 -> 0.75 | BC16: Se realizaron los cambios en la hoja Tarifas de las herramientas de FAER y SGR, actualizando los componentes de los costos unitarios (CU) de todos los Operadores de Red conforme a las tarifas de julio de 2024. | BD16: =BB16+Y16 -> 1 | BE16: Se han verificado los cambios normativos propuestos, por ello frente a documentos puestos a comentarios en la pagina del MME, caso de FONENERGIA se han realizado comentarios u observaciones por parte de la oficina de fondos | BF16: =SUM(Q16:Y16)*($N$15/4) -> 0.025 | BG16: Ejecutada | BH16: =BD16*($N$15/4) -> 0.025 | BI16: 1 | BJ16: Ejecutada. El mes anterior (septiembre) se alcanzó el 100% de Avance | BK16: 1 | BL16: Ejecutada. En septiembre se alcanzó el 100% de Avance | BM16: =BK16 -> 1 | BN16: Ejecutada. En septiembre se alcanzó el 100% de Avance | BO16: =SUM(Q16:AB16)*($N$15/4) -> 0.025 | BP16: Ejecutada | BQ16: =BM16*($N$15/4) -> 0.025
D17: Fortalecimiento del Sistema Eléctrico para la TEJ | E17: 1.Fortalecer la planeación y la investigación con estándares científicos, integrando los componentes social, ambiental, de cambio climático, territorial, étnico, de género, diferencial desde una mirada interseccional para la Transición Energética Justa. | F17: 1.Generar nuevas metodologías, modelos de optimización y adopción de tecnologías adecuados a la realidad del país, en términos de normatividad, regulación, operación del sistema energético y necesidades de señales de política energética. | G17: Mejorar el proceso de evaluación de los proyectos del sector minero energético que requieren concepto para ser financiados con recursos de fondos y mecanismos de financiación | J17: Metodología de evaluación de proyectos propuesta | O17: 180-2-3 | P17: Consolidar la información y proyectar el documento de metodología de evaluación de proyectos. | T17: 0.25 | U17: 0.25 | Z17: 0.25 | AA17: 0.25 | AC17: =IF(SUM(Q17:AB17)=0," ",SUM(Q17:AB17)) -> 1 | AN17: =SUM(Q17:S17)*($N$15/4) -> 0 | AO17: =IF(AL17="","",IF(AL17=SUM(V17:W17),"Al dia",IF(AL17<SUM(V17:W17),"Con Rezago",IF(AL17>SUM(V17:W17),"Sobre ejecutada","")))) ->  | AP17: =AL17*($N$15/4) -> 0 | AQ17: 0.3 | AR17: Proyección y consolidación de la metodologia de evaluación de FAER y el sistema general de regalias | AS17: =40% -> 0.4 | AT17: Se inició la reorganización del documento teniendo en cuenta las recomendaciones de la Metodología de Gas Combustible que se prepara en paralelo. Se trabajará en un formato plano (Sin diseño) hasta completar la revisión y consolidación de la información del documento. | AU17: 0.4 | AV17: Esta actividad no se realiza en el presente periodo. Continua con el mismo avance a mayo | AW17: =SUM(Q17:V17)*($N$15/4) -> 0.0125 | AX17: Con avance y en terminos | AY17: =AU17*($N$15/4) -> 0.01 | AZ17: 0.4 | BA17: Continua con el mismo avace reportado a Junio | BB17: 0.4 | BC17: Esta actividad no se realiza en el presente periodo | BD17: =BB17+10% -> 0.5 | BE17: Se ha venido consolidando la informacion de fondos en el documento, y se ha efectuado una revisión del contenido con el grupo en diferente reuniones. | BF17: =SUM(Q17:Y17)*($N$15/4) -> 0.0125 | BG17: Con avance y en terminos | BH17: =BD17*($N$15/4) -> 0.0125 | BI17: =BD17+10% -> 0.6 | BJ17: Se ha venido consolidando la informacion de fondos en el documento, y se ha efectuado una revisión del contenido con el grupo en diferente reuniones. | BK17: 0.8 | BL17: Se efectuaron ajustes al documento metodologico, para lo cual se tuvieron en cuenta las recomendaciones de los funcionarios y profesionales del area. | BM17: 1 | BN17: Se efectuaron los ajustes al documento metodologico, para lo cual se tuvieron en cuenta las recomendaciones de los funcionarios y profesionales del area. Se adjunta en la carpeta de evidencias el documento consolidado en word | BO17: =SUM(Q17:AB17)*($N$15/4) -> 0.025 | BP17: Ejecutada | BQ17: =BM17*($N$15/4) -> 0.025
D18: Fortalecimiento del Sistema Eléctrico para la TEJ | E18: 1.Fortalecer la planeación y la investigación con estándares científicos, integrando los componentes social, ambiental, de cambio climático, territorial, étnico, de género, diferencial desde una mirada interseccional para la Transición Energética Justa. | F18: 1.Generar nuevas metodologías, modelos de optimización y adopción de tecnologías adecuados a la realidad del país, en términos de normatividad, regulación, operación del sistema energético y necesidades de señales de política energética. | G18: Mejorar el proceso de evaluación de los proyectos del sector minero energético que requieren concepto para ser financiados con recursos de fondos y mecanismos de financiación | J18: Metodología de evaluación de proyectos propuesta | O18: 180-2-4 | P18: Entregar a la oficina de comunicaciones el documento de metodología de evaluación de proyectos de diagramación. | V18: 0.5 | AB18: 0.5 | AC18: =IF(SUM(Q18:AB18)=0," ",SUM(Q18:AB18)) -> 1 | AN18: =SUM(Q18:S18)*($N$15/4) -> 0 | AO18: =IF(AL18="","",IF(AL18=SUM(V18:W18),"Al dia",IF(AL18<SUM(V18:W18),"Con Rezago",IF(AL18>SUM(V18:W18),"Sobre ejecutada","")))) ->  | AP18: =AL18*($N$15/4) -> 0 | AS18: 0.4 | AT18: Se inició la reorganización del documento teniendo en cuenta las recomendaciones de la Metodología de Gas Combustible que se prepara en paralelo. Se trabajará en un formato plano (Sin diseño) hasta completar la revisión y consolidación de la información del documento. | AU18: 0.4 | AV18: Esta actividad no se realiza en el presente periodo. Continua con el avance reportado a mayo | AW18: =SUM(Q18:V18)*($N$15/4) -> 0.0125 | AX18: Con avance y en terminos | AY18: =AU18*($N$15/4) -> 0.01 | AZ18: 0.4 | BA18: Continua con el mismo avance reportado a Junio | BB18: 0.4 | BC18: Continua con el avance reportado a mayo Esta actividad no se realiza en el presente periodo | BD18: =BB18 -> 0.4 | BE18: Continua con el avance reportado a mayo. Se manifiesta que se sigue en el avance de revisión y actualización del documento. Se hace observación frente a que ha habido rotacion de los profesionales del equipo de la oficina a otras areas, lo que ha afectado el avance en esta actividad. | BF18: =SUM(Q18:Y18)*($N$15/4) -> 0.0125 | BG18: Con rezago | BH18: =BD18*($N$15/4) -> 0.01 | BI18: =BD18+10% -> 0.5 | BJ18: Se manifiesta que se sigue en el avance de revisión y actualización del documento. | BK18: 0.6 | BL18: Se han realizado ajustes en el documento considerando los comentarios señalados por los profesionales del area. https://drive.google.com/file/d/1ycTF-D5hk-Agpe2HOjUyLkMo_c621bJB/view | BM18: 1 | BN18: Se remitieron los documentos metodologicos al area de comunicaciones de la UPME, para efectos de diagramación. | BO18: =SUM(Q18:AB18)*($N$15/4) -> 0.025 | BP18: Ejecutada | BQ18: =BM18*($N$15/4) -> 0.025
B19: 4. Internacionalización, transformación productiva para la vida y acción climática | C19: 4. Ciudades y hábitats resilientes | D19: Fortalecimiento del Sistema Eléctrico para la TEJ | E19: 1.Fortalecer la planeación y la investigación con estándares científicos, integrando los componentes social, ambiental, de cambio climático, territorial, étnico, de género, diferencial desde una mirada interseccional para la Transición Energética Justa. | F19: 3.Definir e implementar herramientas de diálogo y apropiación social de conocimiento científico. (Obj. 1 y 3) | G19: Mejorar la capacidad de los interesados en formular proyectos de inversión en el sector energético. | I19: 180-3 | J19: Asistencias Técnicas (capacitaciones, talleres y/o mesas técnicas) | L19: 56 | M19: Actas para mesas técnicas Informes y/o Listas de asistencia para capacitaciones y/o Talleres | N19: 0.4 | O19: 180-3-1 | P19: Atender las mesas técnicas y realizar las asistencias, capacitaciones y/o talleres a las partes interesadas para solución de observaciones de los conceptos emitidos por la oficina como el incentivo para la presentación de proyectos a los fondos y mecanismos de apoyo financiero para ampliación de cobertura de energía eléctrica y gas combustible. | Q19: 0.083 | R19: 0.083 | S19: 0.084 | T19: 0.083 | U19: 0.083 | V19: 0.084 | W19: 0.083 | X19: 0.083 | Y19: 0.084 | Z19: 0.083 | AA19: 0.083 | AB19: 0.084 | AC19: =IF(SUM(Q19:AB19)=0," ",SUM(Q19:AB19)) -> 1 | AD19: Mejoramiento de la participación ciudadana en el modelo energético y de infraestructura energética, en el marco de la transición energética justa a nivel nacional | AE19: 180-17 | AF19: No Aplica | AG19: No Aplica | AH19: 0.083 | AI19: Para el mes de ENERO se atendieron 4 mesas tecnicas y se ofrecieron 3 asistencias y/o capacitaciones distribuidos de la siguiente manera: *Sistema General de Regalias: Recibio 4 solicitudes de atención de mesas tecnicas. Se ofrecieron 1 asistencias o capacitaciones enfocadas al acceso de recursos del FINDETER Se ofrecieron 2 asistencias o capacitaciones enfocadas al acceso de recursos del Fondo Cuota de Fomento - FECF | AJ19: 0.166 | AK19: Para el mes de FEBRERO se atendieron 3 mesas tecnicas y se ofrecieron 4 asistencias y/o capacitaciones distribuidos de la siguiente manera: *FAER: Recibio 1 solicitudes de atención de mesas tecnicas. *Sistema General de Regalias: Recibio 2 solicitudes de atención de mesas tecnicas. Se ofrecieron 1 asistencias o capacitaciones enfocadas al acceso de recursos del Sistema General de Regalias Se ofrecieron 1 asistencias o capacitaciones enfocadas al acceso de recursos del Obras por impuestos Se ofrecieron 2 asistencias o capacitaciones enfocadas al acceso de recursos del Fondo Cuota de Fomento - FECF | AL19: 0.249 | AM19: Para el mes de MARZO se atendieron 2 mesas tecnicas y se ofrecieron 5 asistencias y/o capacitaciones distribuidos de la siguiente manera: *Sistema General de Regalias: Recibio 2 solicitudes de atención de mesas tecnicas. Se ofrecieron 1 asistencias o capacitaciones enfocadas al acceso de recursos del Sistema General de Regalias *Se ofrecieron 4 asistencias o capacitaciones enfocadas al acceso de recursos del Programa de GLP - PGLP | AN19: =SUM(Q19:S19)*($N$19) -> 0.1 | AO19: Con avance y en terminos | AP19: =AL19*($N$19) -> 0.0996 | AQ19: =AL19+AH19 -> 0.332 | AR19: Para el mes de ABRIL se atendieron 3 mesas tecnicas y se ofrecieron 4 asistencias y/o capacitaciones distribuidos de la siguiente manera: *FAER: Recibio 2 solicitudes de atención de mesas tecnicas. *Sistema General de Regalias: Recibio 1 solicitudes de atención de mesas tecnicas. Se ofrecieron 2 asistencias o capacitaciones enfocadas al acceso de recursos del Obras por impuestos Se ofrecieron 2 asistencias o capacitaciones enfocadas al acceso de recursos del Programa de GLP - PGLP | AS19: =AQ19+AH19 -> 0.415 | AT19: Para el mes de MAYO se atendieron 2 mesas tecnicas y se ofrecieron 0 asistencias y/o capacitaciones distribuidos de la siguiente manera: *FAER: Recibio 2 solicitudes de atención de mesas tecnicas. | AU19: =AS19+AH19 -> 0.498 | AV19: Para el mes de JUNIO se atendieron 4 mesas tecnicas y se ofrecieron 1 asistencias y/o capacitaciones distribuidos de la siguiente manera: *FAER: Recibio 2 solicitudes de atención de mesas tecnicas. *Sistema General de Regalias: Recibio 2 solicitudes de atención de mesas tecnicas. Se ofrecieron 1 asistencias o capacitaciones enfocadas al acceso de recursos del Sistema General de Regalias | AW19: =SUM(Q19:V19)*($N$19) -> 0.2 | AX19: Con avance y en terminos | AY19: =AU19*($N$19) -> 0.1992 | AZ19: =AU19+AH19 -> 0.581 | BA19: Para el mes de JULIO se atendieron 1 mesas tecnicas y se ofrecieron 1 asistencias y/o capacitaciones distribuidos de la siguiente manera: *FAER: Recibio 1 solicitudes de atención de mesas tecnicas. Se ofrecieron 1 asistencias o capacitaciones enfocadas al acceso de recursos del FINDETER | BB19: =AZ19+X19 -> 0.664 | BC19: Se ofrecieron 4 asistencias o capacitaciones enfocadas al acceso de recursos del Fondo Cuota de Fomento - FECF. Se vinculan cuatro (4)capacitaciones de fondos realizadas en las ciudades de Florencia Caqueta y Neiva Huila, asi como en Villavicencio y La Mesa. | BD19: =BB19+Y19 -> 0.748 | BE19: Para el mes de septiembre se atendieron 3 mesas tecnicas y se ofrecieron 3 asistencias y 3 capacitaciones distribuidas de la siguiente manera: *SGR: Recibio 3 solicitudes de atención de mesas tecnicas. *TRES( 3) asistencias tecnicas y tres(3) capacitaciones. Las asistencias se enfocaron en aspectos del programa de sustitución leña, y asistencia en proyecto de MinTransporte. Las capacitaciones se dieron con relación a los fondos de financiación y el mercado de energia y gas, en municipios como Girardot, Corozal y Cucuta | BF19: =SUM(Z19:AE19)*($N$19) -> 0.5 | BG19: Con rezago | BH19: =BD19*($N$19) -> 0.2992 | BI19: =BD19+Z19 -> 0.831 | BJ19: Para el mes de octubre se atendieron 4 mesas tecnicas y se ofrecieron 1 asistencias y 3 capacitaciones distribuidas de la siguiente manera: *SGR: Recibio 4 solicitudes de atención de mesas tecnicas. *Una (1) asistencia tecnica para el proyecto FAER 1519. Las capacitaciones se dieron con relación a los fondos y mecanismos para ampliar la cobertura del servicio de energía eléctrica y gas combustible en las ciudades de Pasto (Nariño) y Quibdó (Chocó) y tratar asuntos relacionados con tarifas de energía, generalidades sobre la estructura del mercado de energía eléctrica y de gas combustible, y socialización de la oferta de los fondos de apoyo financiero del Ministerio de Minas y Energía (MME) | BK19: =BI19+AA19 -> 0.914 | BL19: Para el mes de noviembre se atendieron 7 mesas tecnicas y se ofrecieron 2 asistencias y/o capacitaciones distribuidas de la siguiente manera: *SGR: Recibió 7 solicitudes de atención de mesas tecnicas. *Dos (2) asistencias técnicas, cada una centradas en FECF y OXI. | BM19: 1 | BN19: En total para el año, se atendieron 75 mesas y asistencias tecnicas y capacitaciones conforme al reporte señalado mes a mes. Para el mes de diciembre se atendieron 5 mesas tecnicas distribuidas de la siguiente manera: *PSL: Recibió 2 solicitud de atención de mesas tecnicas. *SGR: Recibió 3 solicitudes de atención de mesas tecnicas. | BO19: =SUM(Q19:AB19)*($N$19) -> 0.4 | BP19: Ejecutada | BQ19: =BM19*($N$19) -> 0.4
I20: Eliminado | N20: =SUM(N13:N19) -> 1 | O20: Eliminado | AM20: Avance al Trimestre I | AN20: =SUM(AN13:AN19) -> 0.25 | AP20: =SUM(AP13:AP19) -> 0.24435 | AV20: Avance al Trimestre II | AW20: =SUM(AW13:AW19) -> 0.5 | AY20: =SUM(AY13:AY19) -> 0.4937 | BF20: =SUM(BF13:BF19) -> 0.95 | BH20: =SUM(BH13:BH19) -> 0.74045 | BO20: =SUM(BO13:BO19) -> 1 | BQ20: =SUM(BQ13:BQ19) -> 1
AN22: Ejecutada | AO22: 0 | AW22: Ejecutada | AX22: =COUNTIF($AX$13:$AX$19,AW22) -> 0 | BF22: Ejecutada | BG22: =COUNTIF($BG$13:$BG$19,BF22) -> 1 | BO22: Ejecutada | BP22: =COUNTIF($BP$13:$BP$19,BO22) -> 7
AN23: Con avance | AO23: 6 | AW23: Con avance y en terminos | AX23: =COUNTIF($AX$13:$AX$19,AW23) -> 7 | BF23: Con avance y en terminos | BG23: =COUNTIF($BG$13:$BG$19,BF23) -> 3 | BO23: Con avance y en terminos | BP23: =COUNTIF($BP$13:$BP$19,BO23) -> 0
AN24: Con Rezago | AO24: 2 | AW24: Con rezago | AX24: =COUNTIF($AX$13:$AX$19,AW24) -> 0 | BF24: Con rezago | BG24: =COUNTIF($BG$13:$BG$19,BF24) -> 3 | BO24: Con rezago | BP24: =COUNTIF($BP$13:$BP$19,BO24) -> 0
AW25: Sin avance y en terminos | AX25: =COUNTIF($AX$13:$AX$19,AW25) -> 0 | BF25: Sin avance y en terminos | BG25: =COUNTIF($BG$13:$BG$19,BF25) -> 0 | BO25: Sin avance y en terminos | BP25: =COUNTIF($BP$13:$BP$19,BO25) -> 0
AW26: Total Actividades | AX26: =SUM(AX22:AX25) -> 7 | BF26: Total Actividades | BG26: =SUM(BG22:BG25) -> 7 | BO26: Total Actividades | BP26: =SUM(BP22:BP25) -> 7

Sheet OTI
C2: FORMATO FORMULACIÓN Y REPORTE DE AVANCES DEL PLAN DE ACCIÓN UNIDAD DE PLANEACIÓN MINERO ENERGÉTICA - UPME | AG2: Código: F-DE-09
AG4: Versión No. 01
D7: DEPENDENCIA FORMULADORA | E7: Oficina de Tecnologías de la Información - OTIC
B9: ARTICULACIÓN CON PND 2022 - 2026 | D9: PLAN ESTRATÉGICO SECTORIAL-PES | E9: ASOCIACIÓN CON LA PLANEACIÓN ESTRATÉGICA INSTITUCIONAL -PEI | H9: 5. OTROS PLANES | I9: 3. FORMULACIÓN DE PLAN DE ACCIÓN | Q9: PROGRAMACIÓN DE LA EJECUCIÓN DE LA ACTIVIDAD | AC9: VALIDACIÓN DE LA PROGRAMACIÓN | AD9: 4. FINANCIACIÓN | AF9: ASOCIACIÓN CON LAS POLÍTICAS DE MIPG | AH9: REPORTE MENSUAL DE AVANCES
Q11: TRIMESTRE I | T11: TRIMESTRE Il | W11: TRIMESTRE Ill | Z11: TRIMESTRE IV | AH11: ENERO | AJ11: FEBRERO | AL11: MARZO | AO11: AVANCE | AQ11: ABRIL | AS11: MAYO | AU11: JUNIO | AX11: AVANCE | AZ11: JULIO | BB11: AGOSTO | BD11: SEPTIEMBRE | BG11: AVANCE | BI11: OCTUBRE | BK11: NOVIEMBRE | BM11: DICIEMBRE | BP11: AVANCE
B12: TRANSFORMACIÓN | C12: CATALIZADOR | D12: COMPROMISO PES | E12: OBJETIVO ESTRATÉGICO INSTITUCIONAL | F12: ESTRATEGIA PEI | G12: COMPROMISO PEI | H12: PLAN INSTITUCIONAL RELACIONADO (Decreto 612 del 2018) | I12: ID del Entregable | J12: ENTREGABLE | K12: ENTREGABLES "OTROS PLANES" | L12: META | M12: UNIDAD DE MEDIDA O CARÁCTERÍSTICA | N12: PONDERACIÓN DEL ENTREGABLE | O12: ID de la Actividad | P12: ACTIVIDADES CLAVE PARA MATERIALIZAR DEL PRODUCTO | Q12: ENE | R12: FEB | S12: MAR | T12: ABR | U12: MAY | V12: JUN | W12: JUL | X12: AGO | Y12: SEP | Z12: OCT | AA12: NOV | AB12: DIC | AC12: VALIDACIÓN DE LA PROGRAMACIÓN | AD12: PROYECTOS DE INVERSIÓN ASOCIADO - LISTADO | AE12: ÍTEM(S) DEL PAA ASOCIADOS | AF12: 1ª POLÍTICA MIPG | AG12: 2ª POLÍTICA MIPG | AH12: PORCENTAJE DE AVANCE | AI12: DESCRIPCIÓN DEL AVANCE | AJ12: PORCENTAJE DE AVANCE (Acumulado) | AK12: DESCRIPCIÓN DEL AVANCE | AL12: PORCENTAJE DE AVANCE (Acumulado) | AM12: DESCRIPCIÓN DEL AVANCE | AN12: Proyectado ponderado | AO12: Avance TRIMESTRE I | AP12: Ejecutado ponderado | AQ12: PORCENTAJE DE AVANCE (Acumulado) | AR12: DESCRIPCIÓN DEL AVANCE | AS12: PORCENTAJE DE AVANCE (Acumulado) | AT12: DESCRIPCIÓN DEL AVANCE | AU12: PORCENTAJE DE AVANCE (Acumulado a Junio) | AV12: DESCRIPCIÓN DEL AVANCE (Acumulado a Junio) | AW12: Proyectado ponderado | AX12: TRIM. II | AY12: Ejecutado ponderado | AZ12: PORCENTAJE DE AVANCE (Acumulado a Julio) | BA12: DESCRIPCIÓN DEL AVANCE (Acumulado a Julio) | BB12: PORCENTAJE DE AVANCE (Acumulado a Agosto) | BC12: DESCRIPCIÓN DEL AVANCE (Acumulado a Agosto) | BD12: PORCENTAJE DE AVANCE (Acumulado a Septiembre) | BE12: DESCRIPCIÓN DEL AVANCE (Acumulado a Septiembre) | BF12: Proyectado ponderado | BG12: TRIM. III | BH12: Ejecutado ponderado | BI12: PORCENTAJE DE AVANCE (Acumulado a Octubre) | BJ12: DESCRIPCIÓN DEL AVANCE (Acumulado a Octubre) | BK12: PORCENTAJE DE AVANCE (Acumulado a Noviembre) | BL12: DESCRIPCIÓN DEL AVANCE (Acumulado a Noviembre) | BM12: PORCENTAJE DE AVANCE (Acumulado a Diciembre) | BN12: DESCRIPCIÓN DEL AVANCE (Acumulado a Diciembre) | BO12: Proyectado ponderado | BP12: TRIM. IV | BQ12: Ejecutado ponderado
B13: 4. Internacionalización, transformación productiva para la vida y acción climática | C13: 2. Desarrollo económico a partir de eficiencia energética, nuevos energéticos y minerales estratégicos para la transición. | E13: 2.Consolidar la modernización de la entidad para fortalecer la planeación minero energética del país y el rol como el CIO del sector. | F13: 5.Fortalecer la gobernanza de la información, mediante la adopción de herramientas tecnológicas que faciliten la gestión adecuada de los datos e información para la planeación y la investigación. (Obj. 1, 2 y 3) | G13: Fortalecer el canal de seguridad con el SOC completo para la infraestructura de la UPME | H13: Plan de Seguridad y Privacidad de la Información | I13: 130-1 | J13: SOC (Centro de Operaciones de Seguridad) implementado | L13: 0.5 | M13: Herramienta | N13: 0.1 | O13: 130-1-1 | P13: Mejorar los servicios del Centro de Operaciones de Seguridad SOC, el cual realiza la gestión y el monitoreo de la infraestructura tecnológica y la gestión de eventos e incidentes de seguridad, con el fin de proteger la plataforma de TI de la Entidad | T13: 0.05 | U13: 0.05 | V13: 0.2 | W13: 0.25 | X13: 0.15 | Y13: 0.15 | Z13: 0.1 | AA13: 0.05 | AC13: =IF(SUM(Q13:AB13)=0," ",SUM(Q13:AB13)) -> 1 | AD13: Fortalecimiento de los servicios digitales aumentando la capacidad para la transformación digital e interacción con el ciudadano | AE13: 130-2 130-4 130-30 | AF13: POL-08 Seguridad Digital | AG13: No Aplica | AQ13: 0.05 | AR13: Se presentaron los estudios previos en Contratación (para revisión) de los procesos que soportan el servicio del Centro de Operaciones de Seguridad SOC, los cuales ya se encuentra en solicitud de CDP, y fueron actualizados debido a que se surtieron algunos cambios en el tiempo y en los objetos de contratación. | AS13: =AQ13+5% -> 0.1 | AT13: Contratos aceptados y firmados en Secop, esta pendiente la generación de las polizas de los contratos No. CO1.PCCNTR.6373171 y CO1.PCCNTR.6373715 por parte del proveedor Redes Tercer Milenio. | AU13: =AS13+20% -> 0.3 | AV13: Contratos aceptados y firmados en Secop, No. CO1.PCCNTR.6373171 y CO1.PCCNTR.6373715 por parte del proveedor Redes Tercer Milenio, y se anexa reporte de análisis de eventos sophos del mes de junio. | AW13: =SUM(Q13:V13)*$N$13 -> 0.03 | AX13: Con avance y en terminos | AY13: =AU13*N13 -> 0.03 | AZ13: =AU13+30% -> 0.6 | BA13: Ya se tramito pago del contrato CO1.PCCNTR.6373715 y está pendiente que se genere el pago del contrato No. CO1.PCCNTR.6373171, Se anexa reporte de análisis de eventos sophos del mes de julio. | BB13: 0.6 | BC13: Ya se generó el pago del contrato CO1.PCCNTR.6373171, Se anexa reporte de análisis de eventos de sophos para el mes de Agosto. Y estan en construcción los documentos de estudios previos y estudio del sector del proceso de contratación directa para Adquirir un Certificado Digital SSL Wildcard para los servidores Web de la UPME. | BD13: 0.8 | BE13: Se anexa reporte de análisis de eventos de Sophos para el mes de Septiembre. El proceso de contratación directa para Adquirir un Certificado Digital SSL Wildcard para los servidores Web de la UPME, ya se encuentra publicado en SECOP, y está pendiente que se genere la solicitud del certificado al Ente certificador | BF13: =SUM(Q13:Y13)*N13 -> 0.085 | BG13: Con rezago | BH13: =BD13*N13 -> 0.08 | BI13: 0.85 | BJ13: Se anexa reporte de análisis de eventos de Sophos para el mes de Octubre. Se realizo la implementación y actualización del certificado wildcard para el portal y subportales web de la UPME. | BK13: 0.95 | BL13: Se anexa reporte de análisis de eventos de Sophos para el mes de Noviembre. Se tramito proceso de adición Modificatorio No. 1 contrato CO1.PCCNTR.6373171 y sobre el cual se van a adicionar 40 licencias de Sophos email protection. Por otra parte se realizo el proceso de contratación para Adquirir una herramienta integral para la gestión, análisis y parcheo de vulnerabilidades asi como el proceso para adquirir el servicio de firmado digital incluyendo certificados de firma digital en el sistema de gestión documental de la UPME y los de función pública SIIF Nación (token) y un certificado de firma digital de persona jurídica para facturación electrónica. | BM13: 1 | BN13: Se anexa reporte de análisis de eventos de Sophos para el mes de Diciembre. Se tramito pago de adición Modificatorio No. 1 contrato CO1.PCCNTR.6373171 y cargaron las 40 licencias de Sophos email protection. Por otra parte se realizo el proceso tramite de pago del Contrato CO1.PCCNTR,7098721 Vicarius cuyo objeto es Adquirir una herramienta integral para la gestión, análisis y parcheo de vulnerabilidades asi como el tramite de pago del contrato CO1.PCCNTR,7115792 cuyo objeto era adquirir el servicio de firmado digital incluyendo certificados de firma digital en el sistema de gestión documental de la UPME y los de función pública SIIF Nación (token) y un certificado de firma digital de persona jurídica para facturación electrónica. | BO13: =SUM(Q13:AB13)*N13 -> 0.1 | BP13: =IF(BQ13=BO13,"Ejecutada",IF(BQ13<BO13,"Con rezago","REVISAR")) -> Ejecutada | BQ13: =BM13*N13 -> 0.1
B14: 4. Internacionalización, transformación productiva para la vida y acción climática | C14: 2. Desarrollo económico a partir de eficiencia energética, nuevos energéticos y minerales estratégicos para la transición. | E14: 2.Consolidar la modernización de la entidad para fortalecer la planeación minero energética del país y el rol como el CIO del sector. | F14: 5.Fortalecer la gobernanza de la información, mediante la adopción de herramientas tecnológicas que faciliten la gestión adecuada de los datos e información para la planeación y la investigación. (Obj. 1, 2 y 3) | G14: Fortalecer la infraestructura tecnológica | H14: Plan de Seguridad y Privacidad de la Información | I14: 130-2 | J14: DRP de Infraestructura en nube | L14: 0.1 | M14: Herramienta | N14: 0.1 | O14: 130-2-1 | P14: Iniciar el proceso de análisis de servicios, requerimientos y condiciones de respaldo y restauración de cara a la implementación de un DRP en la nube, de acuerdo con los recursos disponibles para el efecto. | T14: 0.1 | U14: 0.1 | V14: 0.1 | W14: 0.1 | X14: 0.1 | Y14: 0.2 | Z14: 0.2 | AA14: 0.1 | AC14: 1 | AD14: Fortalecimiento de los servicios digitales aumentando la capacidad para la transformación digital e interacción con el ciudadano | AE14: 130-23 | AF14: POL-07 Gobierno Digital | AG14: POL-08 Seguridad Digital | AQ14: 0.1 | AR14: Preliminarmente se han revisado alternativas tecnológicas a través de acercamientos con los proveedores de este tipo de soluciones. Oracle, con quien actualmente se tiene backup en nube, presentó alternativa de DRP. Se han identificado algunos servicios críticos que podrían preliminarmente estar en el alcance del DRP, éstos son: Portal, ARGO , KACTUS y convocatorias. Frente a este tema hay diferentes alternativas arquitectónicas. Se continuará revisando el tema. Este análisis será el contexto inicial del DRP. | AS14: =AQ14+10% -> 0.2 | AT14: Se realizaron revisiones con proveedores de nube, haciendo el dimensionamiento del proyecto y se creo la version inicial del DRP. | AU14: =AS14+25% -> 0.45 | AV14: Se Realiza preliminar del plan de continuidad e negocio donde esta incluido el plan de recuperación de desastres. Pendiente avances por el grupo de infraestructura para realizar la documentación respectiva. | AW14: =SUM(Q14:V14)*$N$14 -> 0.03 | AX14: Con avance y en terminos | AY14: 0.045 | AZ14: =AU14+5% -> 0.5 | BA14: Se esta en espera de las reuniones tecnicas por parte del equipo de infraestructura para dar el avance respectivo de la solición | BB14: 0.5 | BC14: El proyecto de DRP aún está en curso por parte del equipo de infraestructura. Desde el área de seguridad de la información, ya tenemos preparado el documento base para realizar las pruebas respectivas y medir los tiempos y características del DRP una vez esté listo. | BD14: 0.55 | BE14: Se inicia proceso precontractual con ORACLE para dimensionamiento del DRP | BF14: 0.07 | BG14: Con rezago | BH14: 0.055 | BI14: 0.7 | BJ14: Se adelanto el evento de cotizacion del servicio de nube para almacenamiento de los respaldos y se va a inciar proceso de replicacion de maquinas al DRP | BK14: 0.75 | BL14: Se inicia proyecto de DRP en nube de Oracle con la firma Bmind SAS. Se realizan reuniones iniciales de entendimiento de requerimientos. | BM14: 1 | BN14: Se completó el análisis de servicios, requerimientos y condiciones de respaldo y restauración, priorizando los servicios clave: BIZAGI, Argo, Convocatorias, Kactus, Página Web y Directorio Activo. Este análisis permitió definir los elementos considerados para garantizar la continuidad de estos servicios críticos. | BO14: 0.1 | BP14: Ejecutada | BQ14: 0.1
B15: 4. Internacionalización, transformación productiva para la vida y acción climática | C15: 2. Desarrollo económico a partir de eficiencia energética, nuevos energéticos y minerales estratégicos para la transición. | E15: 2.Consolidar la modernización de la entidad para fortalecer la planeación minero energética del país y el rol como el CIO del sector. | F15: 5.Fortalecer la gobernanza de la información, mediante la adopción de herramientas tecnológicas que faciliten la gestión adecuada de los datos e información para la planeación y la investigación. (Obj. 1, 2 y 3) | G15: Fortalecer la infraestructura tecnológica | H15: Plan Estratégico de Tecnologías de la Información y las Comunicaciones PETI | I15: 130-3 | J15: Hiperconvergencia ampliada y actualizada | L15: 0.1 | M15: Herramienta | N15: 0.1 | O15: 130-3-1 | P15: Mantener la operación de la infraestructura de hiperconvergencia, de acuerdo con los requerimientos y restricciones existentes para su ejecución. | W15: 0.1 | X15: 0.2 | Y15: 0.3 | Z15: 0.2 | AA15: 0.2 | AC15: 1 | AD15: Fortalecimiento de los servicios digitales aumentando la capacidad para la transformación digital e interacción con el ciudadano | AE15: 130-15 | AF15: POL-07 Gobierno Digital | AG15: POL-07 Gobierno Digital | AU15: 0 | AW15: =SUM(Q15:V15)*$N$15 -> 0 | AX15: Sin avance y en terminos | AY15: 0 | AZ15: =AU15+10% -> 0.1 | BA15: O​btención de información por parte de los proveedores para determinar la solución requerida por la UPME y completar la definición del presupuesto requerido, avances en la actualizaicón de precios, pendiente otra oferta para tener comparación precios soporte Dell | BB15: 0.1 | BC15: Se termino exploración de precios de mercado y se consolidaron los documentos de estudio del sector y estudio previo a fin de contratar el soporte y mantenimiento y dar continuidad a la plataforma. | BD15: 0.4 | BE15: Se encuentra en la etapa final para la contratación del servicio de Soporte de la solución de Backup. | BF15: 0.06 | BG15: Con rezago | BH15: 0.04 | BI15: 0.8 | BJ15: Se contrata el servicio de backup asi como el soporte a la infraestructura hiperconvergente la cual opera sin fallas - DELL - VMWARE | BK15: 1 | BL15: Se inician los servicios de soporte de VMware y de los servidores DELL. Se realiza la actualización de versión de VMware de 7 a 8. Se inicia contrato de soporte de Commvault. | BM15: 1 | BN15: No se reporta, actividad tiene el cumplimiento del 100% | BO15: 0.1 | BP15: Ejecutada | BQ15: 0.1
B16: 4. Internacionalización, transformación productiva para la vida y acción climática | C16: 2. Desarrollo económico a partir de eficiencia energética, nuevos energéticos y minerales estratégicos para la transición. | E16: 2.Consolidar la modernización de la entidad para fortalecer la planeación minero energética del país y el rol como el CIO del sector. | F16: 5.Fortalecer la gobernanza de la información, mediante la adopción de herramientas tecnológicas que faciliten la gestión adecuada de los datos e información para la planeación y la investigación. (Obj. 1, 2 y 3) | G16: Fortalecer los 5 dominios de Arquitectura empresarial como gestión de proyectos TI | H16: Plan Estratégico de Tecnologías de la Información y las Comunicaciones PETI | I16: 130-4 | J16: Plan Estratégico de Tecnologías de la Información - PETI, implementado | L16: 1 | M16: Actividades del proyecto ejecutadas | N16: 0.05 | O16: 130-4-1 | P16: Adelantar acciones que permitan avanzar en la transformación digital de la Entidad a través de la ejecución del proyecto: "1. Fortalecimiento de los procesos que realizan las áreas de la Entidad a través de la automatización, digitalización o sistemación de sus procesos, de acuerdo con los recursos disponibles y el alcance que se defina para cada año de los que componen el horizonte del PETI" formulado en el PETI 2024-2026, de acuerdo con el alcance que se defina para el 2024, en la fase de inicio y planeación del mismo. | T16: 0.03 | U16: 0.05 | V16: 0.05 | W16: 0.15 | X16: 0.15 | Y16: 0.15 | Z16: 0.15 | AA16: 0.15 | AB16: 0.12 | AC16: 1 | AD16: Fortalecimiento de los servicios digitales aumentando la capacidad para la transformación digital e interacción con el ciudadano | AE16: 130-1 130-2 130-4 | AF16: POL-07 Gobierno Digital | AG16: POL-08 Seguridad Digital | AQ16: 0.03 | AR16: A esta línea del PETI se asocian 4 iniciativas en ejecución: 1)Implementación Plataforma Moodle 2) Repositorio Transportadores 2.0. los cuales formalizaron su inicio a través del Acta de Constitución de Proyectos documento que presenta a alto nivel los objetivos, el alcance, productos, la justificación, los recursos requeridos, las restricciones, productos, y riesgos del proyecto, es una guía interna para el equipo del proyecto y sirve de instrumento de comunicación del alcance a las partes interesadas. Por su parte los proyectos 3)Automatización Procesos Gestión Eficiente de la Energía 4) Automatización Precio Base de Minería formalizaron su plan de trabajo y se encuentran en ejecución. | AS16: =AQ16+30% -> 0.33 | AT16: "A esta línea del PETI se asocian 4 iniciativas en ejecución y 2 que se encuentran en etapa de incio: 1)Implementación Plataforma Moodle 2) Repositorio Transportadores 2.0. en los cuales se estableció el alcance del proyecto con la definición de un plan de trabajo para el desarrollo de cada uno de los productos Por su parte los proyectos 3)Automatización Procesos Gestión Eficiente de la Energía 4) Automatización Precio Base de Minería se encuentran en ejecución con un avance que supera el 50% Los proyectos 5) Automatización Conexiones y 6)Automatización de Fondos se encuentran en etapa de inicio, por ende los avances y sus repectivos soportes se verán reflejados a partor del siguiente mes | AU16: =AS16+7% -> 0.4 | AV16: A esta línea del PETI se asocian 4 iniciativas en ejecución y 2 que se encuentran en etapa de inicio: 1) Implementación Plataforma Moodle 2) Repositorio Transportadores 2.0. 3)Automatización Procesos Gestión Eficiente de la Energía 4) Automatización Precio Base de Minería los mencionados proyectos superaron satisfactoriamente las etapas de inicio y planeación y se encuentran en la etapa de desarrollo de productos con los siguientes avances: Moodle: acciones para disponer de la infraestructura tecnológica requerida y habilitar los accesos del proveedor a los servidores de la UPME, (en proceso). Envíos al proveedor de la información de imagen y política de imagen corporativa, en maquetización en el ambiente de pruebas de Moodle primer curso de inducción y reinducción Transportadores: análisis y entendimiento de las necesidades del cliente, estimaciones para el desarrollo del software. Se priorizaron los procesos y productos, y se levantaron y validaron los requerimientos funcionales y no funcionales. La arquitectura de la aplicación fue diseñada y se llevaron a cabo reuniones de inicio con todos los involucrados. Se completó el diseño del modelo de datos y la arquitectura de infraestructura, y se avanzó en el desarrollo de la capa de presentación y controladores, alcanzando un 15% de progreso en esta última actividad. Automatización Procesos Gestión Eficiente de la Energía (incentivos): estimación de actividades), desarrollo de productos (Corrección de incidencias y certificación de los procesos para paso a producción), Cierre (Inicio de capacitación a usuarios internos, alistamiento de paso a producción) Automatización Precio Base de Minería actividades de despliegue del proceso de Minera en ambiente de producción, así como los precios de níquel. Despliegue de los ajustes (requerimientos) mineral metálico. Despliegue ambiente UAT. Inicio pruebas mineral Metálicos. Respecto al proyecto Automatización de conexión se realizaron las actividades de inicio (acta de constitución del proyecto y está en consolidación el plan de trabajo, el proyecto automatización de Fondos se encuentra en proceso de consolidación el talento humano necesario para su ejecución | AW16: =SUM(Q16:V16)*N16 -> 0.0065 | AX16: Con avance y en terminos | AY16: 0.02 | AZ16: =AU16+5% -> 0.45 | BA16: A esta línea del PETI se asocian 4 iniciativas en ejecución y 2 que se encuentran en etapa de inicio: 1) Implementación Plataforma Moodle: Maquetación del Primer curso (inducción, Personalización de Moodle) y se inicia la etapa de desarrollo e implementación de la plataforma. 2) Repositorio Transportadores 2.0. Se avanza en el desarrollo y mejoras de los módulos Transportadores y Transformadores 3) Automatización Procesos Gestión Eficiente de la Energía (incentivos): Se realizaron capacitaciones a usuarios internos y externos, se socializaron nuevos requerimientos los cuales tienen una estimación y están siendo analizados para dar prioridad y definir cuál será el orden de implementación. También se gestionó el despliegue de la herramienta en ambiente productivo y se ha gestionado la estabilización de este según pruebas y reportes por parte del área de la subdirección. 4) Automatización Precio Base de Minería: Se realizan ajustes solicitados por el área de jurídica para todos los minerales. Despliegue Producción. Despliegue ambiente UAT. Proyectos en inicio: Proyecto Conexiones continúa en consolidación el plan de trabajo, Proyecto automatización de Fondos se encuentra en proceso de definición el talento humano necesario para su ejecución. | BB16: 0.45 | BC16: A esta línea del PETI se asocian 5 iniciativas en ejecución y 1 que se encuentran en etapa de inicio: 1) Implementación Plataforma Moodle: Se inicio la configuración de la plataforma en el servidor de la UPME y la estructura del Moodle, 2) Repositorio Transportadores 2.0. Se avanzó en el desarrollo de la versión 2 del módulo de transportadores y del módulo 3 de transformadores (este último con mejoras pendientes, 3) Automatización Procesos Gestión Eficiente de la Energía (incentivos): se ajustó el cronograma y actividades inicialmente propuestas dado que se ejecutará la implementación de nuevos requerimientos (mejoras), estos ya iniciaron su implementación. 4) Automatización Precio Base de Minería: Se realizan ajustes solicitados para el cálculo de precio de mineral metálicos, se realiza despliegue en ambiente de producción. 5)Proyecto Conexiones Se cuenta con plan de trabajo(se evidencian avances en desarrollo que se reportaran en el siguiente mes), se incluye dentro del portafolio del PETI el proyecto Notificaciones Administrativas Recursos Reposición el cual cuenta con acta de constitución y en construcción plan de Trabajo plan de trabajo. Este último proyecto sustituye al Proyecto Automatización de Fondos el cual se encuentra suspendido hasta tanto no se cuente con talento humano para su ejecución. | BD16: 0.71 | BE16: A esta línea del PETI se asocian 6 iniciativas en ejecución 1) Implementación Plataforma Moodle: Se avanzó en la configuración de la plataforma en modo desarrollo, específicamente en la configuración del LDAP. Así mismo, realizó la transferencia de conocimiento para la administración y parametrización de la plataforma. 2) Repositorio Transportadores 2.0. Para el presente mes el proyecto no presenta avances 3) Automatización Procesos Gestión Eficiente de la Energía (incentivos): Se avanza en la implementación de las mejoras identificadas las cuales se desarrollaron y se dispusieron para pruebas. Adicionalmente, se identifican nuevas mejoras por parte del Grupo de Gestión Administrativa . 4) Automatización Precio Base de Minería: Se realizan ajustes solicitados para el cálculo de precio de mineral metálicos, se realiza despliegue en ambiente de producción. Se inician ajustes en el proceso para implementar los cambios solicitados por minería y jurídica para la implementación de la circular externa con las respectivas aprobaciones y firma del director.5)Proyecto Conexiones Avances en el 60% del plan de mejoras identificadas sobre módulos nuevos. Transferencia de conocimientos sobre solicitud de promotor y comentarios de transportadores, Módulos nuevos avances significativos en cambio de titular y visitas técnicas. 6) Notificaciones Administrativas Recursos Reposición Se avanzó en el desarrollo del formulario de solicitud de recurso de reposición, se desarrollaron ajustes solicitados por la dirección. Se realizó despliegue al ambiente de UAT. Inició el desarrollo del formulario de respuesta del recurso de reposición. | BF16: 0.029 | BG16: Con avance y en terminos | BH16: 0.0355 | BI16: 0.77 | BJ16: A esta línea del PETI se asocian 6 iniciativas en ejecución 1) Implementación Plataforma Moodle: 88% avance La plataforma se ha configurado en su totalidad, se han realizado todas las pruebas descritas den el plan de pruebas entregado y se han realizado las jornadas de transferencia de conocimiento 2) Repositorio Transportadores 2.0. Para el presente mes el proyecto no presenta avances 3) Automatización Procesos Gestión Eficiente de la Energía (incentivos): 97% Se realizan ajustes para integración con Argo según se solicitó, sin embargo, en las pruebas se detectó fallo con Orfeo los cuales fueron reportados al proveedor. 4) Automatización Precio Base de Minería: 89% Finalizan los desarrollos con las mejoras al proceso para las revisiones y aprobaciones de las circulares y resolución. Se libera para pruebas. No se inician pruebas ya que está en revisión el procedimiento el cual puede afectar el flujo de proceso. 5)Proyecto Conexiones Avances 62% Se realizaron modificaciones solicitadas por los usuarios al módulo cambio de titular, finalizó el desarrollo de la mejora de actualización de estados en el módulo de solicitud de conexión y la construcción del módulo de actualización de información de los proyectos, se continúan con las sesiones de construcción de plan de trabajo para el desarrollo de la base de datos del proceso de energía y dasbhoard.6) Notificaciones Administrativas Recursos Reposición Avance acumulado del 83%. Se desarrollaron ajustes solicitados por la dirección. Se realizó despliegue al ambiente de UAT. Se continua con el desarrollo del Formulario de Respuesta de Recurso de Reposición. | BK16: 0.84 | BL16: A esta línea del PETI se asocian 6 iniciativas en ejecución 1) Implementación Plataforma Moodle: 91% avance La Solución se ha entregado al 100% pendiente actividades de cierre final del proyecto.2) Repositorio Transportadores 69% 2.0. Se reactivó el proyecto Transportadores el día 11 de noviembre es este periodo se logró avanzar en la creación del módulo de Líneas y módulo de Transformadores 3) Automatización Procesos Gestión Eficiente de la Energía (incentivos): 98% Se realiza ajustes en formatos, reglas, formas, integraciones con Argo, pruebas de aceptación de usuario y ajuste de hallazgos, adicionalmente se obtiene correo de certificación y por ende se realiza solicitud de despliegue a producción. 4) Automatización Precio Base de Minería: 90% Entendimiento de la generación del memorando para los minerales e implementación en BizAgi para el memorando sea revisado y firmado con su respectivo radicado y anexo en ARGO. 5)Proyecto Conexiones Avances 69%. Se trabajó en las mejoras del proceso de solicitud de conexión, Se construyó nuevo módulo para la actualización de la información de los casos ya existentes, se trabajaron ajustes del módulo de cambio de promotor, se inició la construcción de la documentación de las mejoras y módulos nuevos construidos. 6) Notificaciones Administrativas Recursos Reposición Avance acumulado del 87%. Se realiza sesión de capacitación a los usuarios para la presentación del recurso de reposición. Se finaliza desarrollo de formulario Respuesta Recurso de Reposición. | BM16: 1 | BN16: 100% acumulado a esta línea del PETI se asocian 6 iniciativas en ejecución 1) Implementación Plataforma Moodle 2) Repositorio Transportadores 3) Automatización Procesos Gestión Eficiente de la Energía (incentivos) 4) Automatización Precio Base de Minería 5)Proyecto Conexiones 6) Notificaciones Administrativas Recursos Reposición Los anteriores proyectos finalizaron las actividades previstas para dar cumplimiento a la programación de la vigencia y realizaron las actividades de cierre informe final del proyecto y lecciones aprendidas | BO16: 0.05 | BP16: Ejecutada | BQ16: 0.05
E17: 2.Consolidar la modernización de la entidad para fortalecer la planeación minero energética del país y el rol como el CIO del sector. | F17: 5.Fortalecer la gobernanza de la información, mediante la adopción de herramientas tecnológicas que faciliten la gestión adecuada de los datos e información para la planeación y la investigación. (Obj. 1, 2 y 3) | G17: Fortalecer los 5 dominios de Arquitectura empresarial como gestión de proyectos TI | H17: Plan Estratégico de Tecnologías de la Información y las Comunicaciones PETI | J17: Plan Estratégico de Tecnologías de la Información - PETI, implementado | L17: 1 | M17: Actividades del proyecto ejecutadas | N17: 0.05 | O17: 130-4-2 | P17: Adelantar acciones que permitan avanzar en la transformación digital de la Entidad a través de la ejecución del proyecto: "5. Impulsar el uso y apropiación de los productos, servicios y trámites que genera y ofrece la Entidad, a través de actividades de difusión, comunicación y mejoramiento de la página web de la Entidad.", formulado en el PETI 2024-2026, de acuerdo con el alcance que se defina para el 2024, en la fase de inicio y planeación del mismo. | T17: 0.03 | U17: 0.05 | V17: 0.05 | W17: 0.15 | X17: 0.15 | Y17: 0.15 | Z17: 0.15 | AA17: 0.15 | AB17: 0.12 | AC17: 1 | AD17: Fortalecimiento de los servicios digitales aumentando la capacidad para la transformación digital e interacción con el ciudadano | AE17: 130-1 130-2 130-4 | AF17: POL-07 Gobierno Digital | AG17: POL-08 Seguridad Digital | AQ17: 0.03 | AR17: Esta línea del PETI integra el desarrollo de dos iniciativas en ejecución asociadas a 1) Fortalecimiento del Portal Web y 2) Fortalecimiento de la Mesa de Servicios. Respecto al proyecto 1: Se realizó investigación y análisis de los CMS más utilizados del mercado para definir la herramienta en la que se desarrollará el nuevo portal de la UPME, se entrega Documento de evaluación de CMS a la Subdirección de Gestión de información. Adicionalmente, las dos incitativas formalizaron su inicio del proyecto a través de la elaboración del Acta de Constitución de Proyectos | AS17: =AQ17+ 17% -> 0.2 | AT17: Durante el periodo del presente reporte se estableció el alcance de los proyectos asociados a esta linea con la definición de un plan de trabajo para el desarrollo de cada uno de los productos | AU17: =AS17+21% -> 0.41 | AV17: Proyecto Portal Web: finalización de los siguientes productos/ actividades: Acta de constitución, Plan de Alcance y requisitos, cronograma proyectos, Documento de diagnóstico CMS, Documento justificativo selección Wordpress como CMS, Documento línea de base diagnóstico, Guía Estratégica para el Diseño y Desarrollo, Proceso Levantamiento de requerimientos, Formato de requerimientos diligenciado / Historias de Usuario, Documento mapa de navegación propuesto y evaluación de requerimientos (sitio web de la UPME), Wireframe del home, Manual de marca nuevo branding UPME Ley chao marcas, Página actualizada con nuevo branding, y la elaboración de Mockups (home y páginas principales) Proyecto Mesa de Servicio: Finalizó las actividades de inicio y planeación, avancen en la Campaña de Comunicaciones de uso y apropiación de la mesa de servicios: principalmente en la Definición de la campaña y de mensajes estratégicos, Se identificaron los procedimientos existentes de la mesa susceptibles de actualizar contra las mejores prácticas -ITIL y se avanza en la actividad Realizar actualización, mejoras y ajustes procedimientos existentes en un 60% , así mismo se logro Aprobar y validar por parte de la Jefatura de la OTI los procedimientos diseñados y documentados a la fecha | AW17: 0.0065 | AX17: Con avance y en terminos | AY17: 0.0205 | AZ17: =AU17+8% -> 0.49 | BA17: Proyecto Portal Web 53%Se realizaron ajustes al prototipo 1 según lo solicitado por la subdirectora. Además, se insertaron nuevas páginas internas que no estaban contempladas y se añadió contenido para la presentación del prototipo durante el aniversario de los 30 años de la UPME Proyecto Mesa Servicios: 45% porcentaje acumulado Procedimiento Gestión de Incidentes y Solicitudes de Servicio​ ajustado y aprobado por la OAP. | BB17: 0.49 | BC17: Proyecto Portal Web: Avance acumulado: 58%, sustentado en la finalización de los siguientes productos/actividades: Durante este periodo, se avanzó en la creación de las plantillas base en WordPress (a nivel local), configurando elementos esenciales como el archivo CSS principal y las plantillas para el header, footer, index, y functions.php. Se realizó la maquetación de los elementos requeridos por ley, como la barra azul, el header, el footer, y el menú principal, asegurando el cumplimiento de los requisitos obligatorios establecidos por la resolución 1519 del 2020, utilizando los recursos proporcionados por gov.co y siguiendo las directrices de diseño. Posteriormente, se desarrolló la plantilla para la estructura de página en page.php y se integraron las funciones necesarias para los menús, ajustándolos conforme a los requerimientos de diseño. Sin embargo, Se esta a la espera de los plugins contemplados para la implementación de la maquetación, lo que obligó a desarrollar el código de manera nativa. Adicionalmente, se adelantó el contenido de los menús "Quiénes Somos", "PQRS", y "Transparencia", (continuan en construcción) Porcentaje de Avance Acumulado 76 %, con los siguientes avances Aprobación y publicación de los siguientes procedimientos de gestión de mesa de servicios: Gestión de Cambios, Gestión de Usuarios, Gestión de Incidentes y Solicitudes de Servicios TIC , Formato de Solicitud de Cambios RFC. Culminando el ciclo de Actualización de los procedimientos de la mesa de servicios TIC. | BD17: 0.71 | BE17: Portal Web: Durante este período, se avanzó en la creación de la página principal, el contenido de 1er y 2do nivel de los menús "UPME", "Transparencia", "Atención y servicios a la ciudadanía", "Participa", "Sala de prensa" y algunos de los menús misionales. Aún no se ha alcanzado el 10% del avance proyectado debido a la falta de los plugins contemplados para la implementación de la maquetación e implementación de desarrollo web, lo que ha hecho que algunas de las funcionalidades de esos niveles se hayan desarrollado en código nativo (javascript, css y html). Mesa de Servicio: 81% acumulado Continuidad Campaña de comunicaciones | BF17: 0.029 | BG17: Con avance y en terminos | BH17: 0.0355 | BI17: 0.75 | BJ17: Mesa de Servicio: 81% acumulado Continuidad Campaña de comunicaciones, pendiente actividades de cierre del proyecto a reportarse en los siguientes meses Portal Webb: Avance acumulado: 68%, sustentado en la finalización de los siguientes productos/actividades (7% para el mes de octubre): En octubre, se continuó con la carga de contenido en algunos de los menús pendientes, mientras la OTI entregaba el servidor de aplicaciones junto con los accesos y permisos necesarios para WordPress y la base de datos. Tras la revisión de la configuración por el equipo de portales, se inició el proceso de migración del sitio web parcialmente funcional desde el servidor local a la infraestructura on-premise de la UPME. | BK17: 0.835 | BL17: Mesa de Servicio: 81% acumulado Continuidad Campaña de Comunicaciones, pendiente actividades de cierre del proyecto a reportarse en el siguiente mes Portal Webb: Avance acumulado: 86%, sustentado en la finalización de los siguientes productos y actividades, representando un avance del 18% durante noviembre: • Finalización del proceso de migración desde el entorno local a la infraestructura de la UPME. • Ejecución de ajustes en las plantillas según el diseño proporcionado, incluyendo la carga, organización y ajuste de los contenidos migrados. • Desarrollo de código para la implementación de nuevas funcionalidades contempladas en el diseño del portal. • Levantamiento de nuevos requerimientos y ajustes a los existentes. • Maquetación y creación de bloques y plantillas necesarios para cumplir con las nuevas necesidades de estructura, disposición y diseño de la información. | BM17: 1 | BN17: 100% acumulado a esta línea del PETI se asocian 2 iniciativas en ejecución, 1) Fortalecimiento Mesa de Servicios 2) Portal Web Los anteriores proyectos finalizaron las actividades previstas para dar cumplimiento a la programación de la vigencia. | BO17: 0.05 | BP17: Ejecutada | BQ17: 0.05
E18: 2.Consolidar la modernización de la entidad para fortalecer la planeación minero energética del país y el rol como el CIO del sector. | F18: 5.Fortalecer la gobernanza de la información, mediante la adopción de herramientas tecnológicas que faciliten la gestión adecuada de los datos e información para la planeación y la investigación. (Obj. 1, 2 y 3) | G18: Fortalecer los 5 dominios de Arquitectura empresarial como gestión de proyectos TI | H18: Plan Estratégico de Tecnologías de la Información y las Comunicaciones PETI | J18: Plan Estratégico de Tecnologías de la Información - PETI, implementado | L18: 1 | M18: Actividades del proyecto ejecutadas | N18: 0.05 | O18: 130-4-3 | P18: Adelantar acciones que permitan avanzar en la transformación digital de la Entidad a través de la ejecución del proyecto: "6. Ampliar la capacidad de la infraestructura y servicios tecnológicos con el fin de atender las necesidades que se deriven de la evolución de los procesos de la Entidad.", formulado en el PETI 2024-2026, de acuerdo con el alcance que se defina para el 2024, en la fase de inicio y planeación del mismo. | T18: 0.03 | U18: 0.05 | V18: 0.05 | W18: 0.15 | X18: 0.15 | Y18: 0.15 | Z18: 0.15 | AA18: 0.15 | AB18: 0.12 | AC18: 1 | AD18: Fortalecimiento de los servicios digitales aumentando la capacidad para la transformación digital e interacción con el ciudadano | AE18: 130-1 130-2 130-4 | AF18: POL-07 Gobierno Digital | AG18: POL-08 Seguridad Digital | AQ18: 0.03 | AR18: Se formalizó el inicio del proyecto a través de la elaboración del Acta de Constitución de Proyectos documento que presenta a alto nivel los objetivos, el alcance, productos, la justificación, los recursos requeridos, las restricciones, productos, y riesgos del proyecto, es una guía interna para el equipo del proyecto y sirve de instrumento de comunicación del alcance a las partes interesadas. | AS18: 0.2 | AT18: Durante el periodo del presente reporte se estableció el alcance del proyecto con la definición de un plan de trabajo para el desarrollo de cada uno de los productos | AU18: =AS18+29.8% -> 0.498 | AV18: Porcentaje de avance acumulado del 49,8%. Finalización de las actividades de inicio y planeación del Proyecto, avances del 50% en los estudios de mercado, la construcción de los estudios previos y el estudio y selecci´pn de oferta ganadora para Renovar Soporte wmware y Hardware Dell con upgrade versión 7.0 a 8.0-. Avances en las actividades pre y contractuales para la adquisición de equipos de computo, diseño de la documentación base del DRP, avances del 50% de la implementación de la propuesta desegmentación de la red, con relación al doble factor de autenticación se realizó la configuración de proveedor Google sobre Works pace y se realizó la realizó prueba piloto OTI sobre configuración de correo Gmail, se realizó el estudio de mercado, la construcción de estudios previos y selección de oferta ganadora para la Cobertura de soporte ampliada y/o garantía sobre los equipos Ruckus. (revisar posibilidad de tener controller local de los propios equipos). Finalizaron las actividades relacionadas con el Servicio de licenciamiento de Office 365 usado en la entidad. | AW18: 0.0065 | AX18: Con avance y en terminos | AY18: 0.0249 | AZ18: =AU18+2% -> 0.518 | BA18: a. Soporte wmware y hardware Dell: obtención de información por parte de los proveedores para determinar la solución requerida por la UPME, avances en la actualización de precios, pendiente Dell b. Finalizó la compra y entrega de equipos de cómputo, c. Segmentación de la RED (LAN): Se terminó migración de los ambientes de Pruebas y Desarrollo. Se avanzó en configuración de nuevos SSIDs de acceso WiFi. d. Doble factor de autenticación: Revisión cambio de pieza gráfica para socializar el doble factor por parte de la Ofc de Comunicaciones e. Directorio activo: Se realizaron pruebas de migración con resultados satisfactorios, pendiente paso a producción, se realiza virtualización de servidor de físico a virtual, se realiza migración de servidor DigSilent f. Soporte equipos Ruckus: Se encuentra en gestión contractual, pendientes de orden de compra, pólizas y formalización contractual. g) Licenciamiento Office 365: se recibieron las últimas licencias y se tramitó el pagó | BB18: 0.52 | BC18: Avance acumulado 53,7% avances en los siguientes productos: Renovar Soporte wmware y Hardware Dell con upgrade versión 7.0 a 8.0-. Se termino exploración de precios de mercado y se consolidaron los documentos de estudio del sector y estudio previo. Segmentación de la RED (LAN) Se terminó la contextualización de nuevo gestor del Firewall. Se realizaron las actividades para lograr la redundancia del Firewall-WAF-Cores. Doble factor de autenticación en correo: Se tiene la pieza de comunicación y la parte tecnica de la mesa con los usuarios. | BD18: 0.55 | BE18: a)Hardware Dell Se publicó proceso en SECOP se recibieron y respondieron observaciones por parte de los proveedores, se ajustaron los pliegos por medio de adenda , en espera de la entrega final de ofertas b)Soporte wmware Se realizó solicitud final de ofertas para soporte y mantenimiento , se recibieron y evaluaron ofertas. c)DRP y Almacenamiento Se realizó mesa de trabajo con Oracle el 13 de septiembre para tratar temas de renovación de la nube de Oracle incluyendo DRP Segmentación Red: Se configura y deja funcional el acceso por medio del radius , se hace redificición de número de Vlans y se hace distribución final de las mismas d)Doble factor de autenticación en correo Continua la asistencia técnica a los usuarios (funcionarios) para la implementación del doble factor e)Equipos Ruckus : Se proyecta tener la orden formalizada antes de la terminación del contrato actual de soporte. Sin embargo se avanza en lo preparativos de configuración del Radius para tenerlo listo cuando inicie el nuevo contrato de soporte previsto para el mes de mes de diciembre f) Google, Finalizó estudio de mercado, se realizó estudios previos, del sector, pre término y términos definitivos | BF18: 0.029 | BG18: Con rezago | BH18: 0.0275 | BI18: 0.65 | BJ18: a) DELL: Proceso adjudicado y en proceso de formalización contractual. b) Vmware: Proceso adjudicado y con Orden de Compra. Se realiza Kickoff del Contrato, c) Se abrió proceso en la tienda virtual para el RFI d) Segmentación red: Se realizan las configuraciones de los nuevos SSID y nuevas VLANs. Se configura también en Firewall y DHCP. Avanzamos con las pruebas de acceso sobre WiFi. e) Equipos Ruckus: se avanza en los preparativos de configuración del Radius para tenerlo listo cuando inicie el nuevo contrato de soporte previsto para el mes de mes de diciembre f) Todos los funcionarios tienen configurado el doble factor de autenticación. g) Directorio activo Se realiza migración del DHCP a servidor físico de manera satisfactoria, también se realiza ampliación de disco al Controlador de dominio., se suben evidencias al repositorio destinado. Formalización del contrato Licenciamiento colaborativo en nube | BK18: 0.81 | BL18: DELL y Vmware: En ejecución de las actividades contractuales, DRP y Back up en nube: Contrato formalizado e iniciado, por formalizar pago entre la primer y segunda semana de diciembre Segmentación de la RED (LAN), En pruebas accesos WiFi. Se configuraron los nuevos SSID con las nuevas configuraciones de acceso. Doble factor de autenticación en correo, verificaciones de terceros en curso, Equipos Ruckus: Avanzan las actividades preliminares al inicio formal del soporte. Se está gestionando ajuste para poder facturar dentro de esta vigencia presupuestal. Licenciamiento de herramientas colaborativas en nube (Google) - Renovación correo y herramientas colaborativas: Pendiente formalización de Pago el cual espera sea aprobado los primeros días de diciembre Licenciamiento de herramientas de reportes y analítica - Renovación Power BI: Se realizó el sondeo de mercado, se realizará por Instrumento de Agregación de Demanda de la tienda virtual | BM18: 1 | BN18: 100% acumulado ael proyecto finalizaron las actividades previstas para dar cumplimiento a la programación de la vigencia y se realizaron las actividades de cierre (informe final del proyecto y lecciones aprendidas) | BO18: 0.05 | BP18: Ejecutada | BQ18: 0.05
E19: 2.Consolidar la modernización de la entidad para fortalecer la planeación minero energética del país y el rol como el CIO del sector. | F19: 5.Fortalecer la gobernanza de la información, mediante la adopción de herramientas tecnológicas que faciliten la gestión adecuada de los datos e información para la planeación y la investigación. (Obj. 1, 2 y 3) | G19: Fortalecer los 5 dominios de Arquitectura empresarial como gestión de proyectos TI | H19: Plan Estratégico de Tecnologías de la Información y las Comunicaciones PETI | J19: Plan Estratégico de Tecnologías de la Información - PETI, implementado | L19: 1 | M19: Actividades del proyecto ejecutadas | N19: 0.05 | O19: 130-4-4 | P19: Adelantar acciones que permitan avanzar en la transformación digital de la Entidad a través de la ejecución del proyecto: "7. Adoptar el modelo de Gestión y Gobierno de TI (MGGTI) e implementarlo en la Entidad, de acuerdo con el alcance que se establezca para cada año de los que componen el horizonte del PETI, aplicando lineamientos definidos por MinTIC", formulado en el PETI 2024-2026, de acuerdo con el alcance que se defina para el 2024, en la fase de inicio y planeación del mismo. | T19: 0.03 | U19: 0.05 | V19: 0.05 | W19: 0.15 | X19: 0.15 | Y19: 0.15 | Z19: 0.15 | AA19: 0.15 | AB19: 0.12 | AC19: 1 | AD19: Fortalecimiento de los servicios digitales aumentando la capacidad para la transformación digital e interacción con el ciudadano | AE19: 130-1 130-2 130-4 | AF19: POL-07 Gobierno Digital | AG19: POL-08 Seguridad Digital | AQ19: 0.03 | AR19: Se elabora el Acta de constitución del proyecto y se inicia la construcción del Plan de trabajo del proyecto. | AS19: 0.2 | AT19: Durante el periodo del presente reporte se estableció el alcance del proyecto con la definición de un plan de trabajo para el desarrollo de cada uno de los productos | AU19: =AS19+ 17% -> 0.37 | AV19: Porcentaje de avance total del proyecto del 37%.Se encuentran finalizadas las actividades de Inicio y planeación, avances en el diligenciamiento de la Lista de Chequeo en un 70% y la Herramienta de Diagnóstico del Nivel de Madurez en un 50% | AW19: 0.0065 | AX19: Con avance y en terminos | AY19: 0.0185 | AZ19: =AU19+8% -> 0.45 | BA19: Avance acumulado 45% Finaliza el diligenciamiento de la Lista de chequeo en un 100%, se inicia la formulación del Plan de trabajo | BB19: 0.45 | BC19: Se avanza en el diligenciamiento de la Herramienta de diagnóstico del nivel de madurez, Se avanza en la formulación del plan de trabajo y Se realiza la aceptación de entregables de parte del dominio de sistemas de información. Se tiene un avance total del proyecto del 50%. | BD19: 0.61 | BE19: Finaliza el diligenciamiento de la Herramienta de diagnóstico del nivel de madurez, y la formulación del plan de trabajo, Se elabora la matriz de seguimiento al plan de trabajo | BF19: 0.029 | BG19: Con avance y en terminos | BH19: 0.0305 | BI19: 0.71 | BJ19: Se realiza seguimiento al plan de trabajo en el mes de octubre. Se socializan entregables del dominio de SI al Jefe de la OTI para validar formalización en el SIGUEME. Avance del proyecto 71%. | BK19: 0.77 | BL19: Se realiza seguimiento al plan de trabajo en el mes de Nov, Se avanza en el cargue de documentación en el Repositorio de AE. | BM19: 1 | BN19: 100% acumulado ael proyecto finalizaron las actividades previstas para dar cumplimiento a la programación de la vigencia y se realizaron las actividades de cierre (informe final del proyecto y lecciones aprendidas) | BO19: 0.05 | BP19: Ejecutada | BQ19: 0.05
E20: 2.Consolidar la modernización de la entidad para fortalecer la planeación minero energética del país y el rol como el CIO del sector. | F20: 5.Fortalecer la gobernanza de la información, mediante la adopción de herramientas tecnológicas que faciliten la gestión adecuada de los datos e información para la planeación y la investigación. (Obj. 1, 2 y 3) | G20: Fortalecer los 5 dominios de Arquitectura empresarial como gestión de proyectos TI | H20: Plan Estratégico de Tecnologías de la Información y las Comunicaciones PETI | J20: Plan Estratégico de Tecnologías de la Información - PETI, implementado | L20: 1 | M20: Actividades del proyecto ejecutadas | N20: 0.05 | O20: 130-4-5 | P20: Adelantar acciones que permitan avanzar en la transformación digital de la Entidad a través de la ejecución del proyecto: "8. Establecer procedimientos e instrumentos básicos iniciales para la gestión de proyectos de tecnología, basados en el Modelo de Gestión de Proyectos de TI (MGPTI) definido por MinTIC", formulado en el PETI 2024-2026, de acuerdo con el alcance que se defina para el 2024, en la fase de inicio y planeación del mismo. | T20: 0.03 | U20: 0.05 | V20: 0.05 | W20: 0.15 | X20: 0.15 | Y20: 0.15 | Z20: 0.15 | AA20: 0.15 | AB20: 0.12 | AC20: 1 | AD20: Fortalecimiento de los servicios digitales aumentando la capacidad para la transformación digital e interacción con el ciudadano | AE20: 130-1 130-2 130-4 | AF20: POL-07 Gobierno Digital | AG20: POL-08 Seguridad Digital | AQ20: 0.03 | AR20: Se formalizó el inicio del proyecto a través de la elaboración del Acta de Constitución de Proyectos documento que presenta a alto nivel los objetivos, el alcance, productos, la justificación, los recursos requeridos, las restricciones, productos, y riesgos del proyecto, es una guía interna para el equipo del proyecto y sirve de instrumento de comunicación del alcance a las partes interesadas. | AS20: 0.2 | AT20: Durante el periodo del presente reporte se estableció el alcance del proyecto con la definición de un plan de trabajo para el desarrollo de cada uno de los productos | AU20: =AS20+23% -> 0.43 | AV20: Avance acumulado 43% asociado a los siguientes productos: Acta de constitución , Plan de trabajo, Tablero de Control de Proyectos, Repositorio de Proyectos, Creación de material pedagógico y asistencia tecnica a los proyectos de la OTI para la formulación del Acta de constitución y plan de trabajo de los proyectos. Creación de material pedagógico para el Dominio de Monitoreo y Control​ | AW20: 0.0065 | AX20: Con avance y en terminos | AY20: 0.0215 | AZ20: =AU20+4.6% -> 0.476 | BA20: 47,6% porcentaje acumulado Avances en a)Establecer plan de monitoreo y seguimiento del proyecto, b)realizar jornadas de entrenamiento y/o asistencia Técnica a los equipos de proyecto de la SGI para la elaboración del Acta de Constitución y Plan de Trabajo de los proyectos avance en 4 de los 8 Proyectos: PETI 15 Geoportal, PETI 05-1 Portal Web, PETI 3 Servicios de Interoperabilidad, PETI 02 Gobierno y Gestión de Datos, c)Jornada de asistencia Técnica a los equipos de proyecto de la OTI para la definición del plan de monitoreo y seguimiento a los proyectos y el uso y apropiación del tablero de control.​ d) Realizar y documentar propuesta de Modelo de Monitoreo y Seguimiento​ | BB20: 0.48 | BC20: 51,6% avance acumulado del proyecto Finaliza la construcción de documento sobre el Modelo de Seguimiento y continúan los ejercicios de entrenamiento y/o asistencia Técnica a los equipos de proyecto de la OTI para la adherencia al mencionado Modelo, se realiza asistencia Técnica al Proyecto de Notificaciones Administrativas Recursos de Reposición para la etapa de inicio y planeación. | BD20: 0.61 | BE20: Se Realizó Lista de chequeo para verificar estado del cumplimiento de los lineamientos del MGPTI y construyó instrumento Diagnóstico para medir la Madurez de la entidad respecto a los lineamientos del MGPTI | BF20: 0.029 | BG20: Con avance y en terminos | BH20: 0.0305 | BI20: 0.68 | BJ20: 1)Se remitió encuesta diagnóstica del estado de la implementación de los lineamientos del MGPTI a muestra de actores de la UPME. el 4 de octubre, Se procesó la información recolectada y elaboró informe de resultados del Diagnóstico 2) Construcción de material metodológico y pedagógico sobre lecciones aprendidas en proyectos, se realizó instrumento de captura de lecciones aprendidas para cada uno de los proyectos de la OTI y se construyo apartado en tablero de control para visualizar lo correspondiente a las lecciones aprendidas (Estas actividades harán parte del plan de fortalecimiento) | BK20: 0.78 | BL20: Se realiza y socializa documento de Plan de Implementación del MGPT a la coordinación de Arquitectura Empresarial. Para avanzar plan de difusión de los proyectos PETI se redactan párrafos sobre cada proyecto los cuales son validados por los equipos de proyecto Se ejecuta taller de lecciones aprendidas en proyectos , actividad que hace parte del plan de implementación Se construyó propuesta de informe final de proyectos y se socializó a la coordinación de Arquitectura Empresarial pendiente socialización jefatura | BM20: 1 | BN20: 100% acumulado ael proyecto finalizaron las actividades previstas para dar cumplimiento a la programación de la vigencia y se realizaron las actividades de cierre (informe final del proyecto y lecciones aprendidas) | BO20: 0.05 | BP20: Ejecutada | BQ20: 0.05
E21: 2.Consolidar la modernización de la entidad para fortalecer la planeación minero energética del país y el rol como el CIO del sector. | F21: 5.Fortalecer la gobernanza de la información, mediante la adopción de herramientas tecnológicas que faciliten la gestión adecuada de los datos e información para la planeación y la investigación. (Obj. 1, 2 y 3) | G21: Fortalecer los 5 dominios de Arquitectura empresarial como gestión de proyectos TI | H21: Plan Estratégico de Tecnologías de la Información y las Comunicaciones PETI | J21: Plan Estratégico de Tecnologías de la Información - PETI, implementado | L21: 1 | M21: Actividades del proyecto ejecutadas | N21: 0.05 | O21: 130-4-6 | P21: Adelantar acciones que permitan avanzar en la transformación digital de la Entidad a través de la ejecución del proyecto: "13 Fortalecer la implementación del Sistema de Gestión de Seguridad de la Información en la Entidad, de acuerdo con el alcance que se establezca para cada año de los que componen el horizonte del PETI. ", formulado en el PETI 2024-2026, de acuerdo con el alcance que se defina para el 2024, en la fase de inicio y planeación del mismo. | T21: 0.03 | U21: 0.05 | V21: 0.05 | W21: 0.15 | X21: 0.15 | Y21: 0.15 | Z21: 0.15 | AA21: 0.15 | AB21: 0.12 | AC21: 1 | AD21: Fortalecimiento de los servicios digitales aumentando la capacidad para la transformación digital e interacción con el ciudadano | AE21: 130-23 | AF21: POL-07 Gobierno Digital | AG21: POL-08 Seguridad Digital | AQ21: 0.03 | AR21: Se formalizó el inicio del proyecto a través de la elaboración del Acta de Constitución de Proyectos documento que presenta a alto nivel los objetivos, el alcance, productos, la justificación, los recursos requeridos, las restricciones, productos, y riesgos del proyecto, es una guía interna para el equipo del proyecto y sirve de instrumento de comunicación del alcance a las partes interesadas. | AS21: 0.2 | AT21: Durante el periodo del presente reporte se estableció el alcance del proyecto con la definición de un plan de trabajo para el desarrollo de cada uno de los productos | AU21: =AS21+9% -> 0.29 | AV21: Avance acumulado del proyecto 29% relacionado con la finalización de las actividades de inicio, planeación del proyecto y la Actualización de la Política de Seguridad y Privacidad de la Información, Revisión de los planes de capacitación y sensibilización existentes vrs los entregables y alcances del MSPI, plan de capacitación ISO 27001:2022-Ciberseguridad, Sondeos de Mercado para: Adquisición Certificados Digitales Función Pública y Certificado Digital Facturación Electrónica. EP, AGROGPL y Servicios de Firmado de Documentos. EP, Licenciamiento Solución Celiveo Enterprise, Auditoría de impresiones y escaneo de documentos. EP, Adquisición Certificado Wildcard SSL. EP, Solución Celiveo Enterprise, Auditoría de impresiones y escaneo de documentos. EP Adquisición Certificado Wildcard SSL. EP | AW21: 0.0065 | AX21: Con avance y en terminos | AY21: 0.0145 | AZ21: =AU21+18% -> 0.47 | BA21: 47%, dentro del periodo de Julio se culmino el proceso de adquicisión del servicio de ciberseguridad a través un Centro de Operaciones de Seguridad - SOC- y el licenciamiento de la solución Endpoint con la que cuenta la UPME. y a su vez la adquisición del licenciamiento de la solución con la que cuenta la UPME para la protección del correo electrónico y la red de comunicaciones, así como la integración con el Firewall Palo Alto y con la solución de Endpoint instalada en la Entidad. | BB21: 0.47 | BC21: Avance acumulado del proyecto 59%, dentro del periodo de Agosto se realizaron avances en las siguientes actividades: - Se realizo unPOC (prueba de Valor) de Solución Vicarius y la construcción del Estudio Previo de la adquisión de dicha solución. - Se realizo el sondeo de Mercado y el Estudio Previo de la Adquisición del Certificado Wildcard SSL. - Se avanzo en la construcción de algunos documentos dentro de Sistema de Gestión de Seguridad de la Información SGSI | BD21: 0.65 | BE21: Finalizó la Migración, actualización y creación de documentación existente asociada a la ISO 27001:2022, alineados al MSPI Modelo de Seguridad y Privacidad de la Información. Se continuan realizando las campañas de sensibilización de seguridad informatica a traves de pezas graficas que se divulgan por difrentes canales de comunicación. En seguridad informatica durante el mes de septiembre se adelanto el proceso de contratación del certificado wildcard SSL para el portal y subportales de la UPME. | BF21: 0.029 | BG21: Con avance y en terminos | BH21: 0.0325 | BI21: 0.68 | BJ21: En seguridad informática: Despliegue en Producción del Certificado Wildcard SSL para el portal y subportales de la UPME. Clausulado del Contrato CO1.PCCNTR.6812600. Avances en la documentación del SGSI y en la actualización de la política de seguridad y privacidad de la información actualizada la versión ISO 27001:2022 para ser presentada en el comité, así como de los planes de mejora, específicamente lo relacionado con plan de sensibilización, activos y riesgos de seguridad de la información | BK21: 0.7 | BL21: Se avanzó en actividades asociadas a la actualización de los planes de mejora del SGSI. Ya se envió el instrumento de activos de información a todas las áreas y esta en proceso la actualización de la matriz de tratamiento de riesgos de seguridad de la información. Adicionalmente se radicaron los procesos de contratación para Adquirir el servicio de firmado digital incluyendo certificados de firma digital en el sistema de gestión documental de la UPME y los de función pública SIIF Nación (token) y un certificado de firma digital de persona jurídica para facturación electrónica, asi como el proceso para Adquirir una herramienta integral para la gestión, análisis y parcheo de vulnerabilidades para el entorno de TI de la UPME. | BM21: 1 | BN21: 100% acumulado ael proyecto finalizaron las actividades previstas para dar cumplimiento a la programación de la vigencia y se realizaron las actividades de cierre (informe final del proyecto y lecciones aprendidas) | BO21: 0.05 | BP21: Ejecutada | BQ21: 0.05
E22: 2.Consolidar la modernización de la entidad para fortalecer la planeación minero energética del país y el rol como el CIO del sector. | F22: 5.Fortalecer la gobernanza de la información, mediante la adopción de herramientas tecnológicas que faciliten la gestión adecuada de los datos e información para la planeación y la investigación. (Obj. 1, 2 y 3) | G22: Fortalecer los 5 dominios de Arquitectura empresarial como gestión de proyectos TI | H22: Plan Estratégico de Tecnologías de la Información y las Comunicaciones PETI | J22: Plan Estratégico de Tecnologías de la Información - PETI, implementado | L22: 1 | M22: Actividades del proyecto ejecutadas | N22: 0.05 | O22: 130-4-7 | P22: Adelantar acciones que permitan avanzar en la transformación digital de la Entidad a través de la ejecución del proyecto: "9 Actualizar los elementos del modelo de Arquitectura Empresarial en sus distintos dominios, incluyendo la normativa vigente para su operacionalización, considerando la debida integración con el Modelo de Gestión y Gobierno de TI y el Modelo de Gestión de Proyectos de TI, de acuerdo con el alcance que se establezca para cada año de los que componen el horizonte del PETI", formulado en el PETI 2024-2026, de acuerdo con el alcance que se defina para el 2024, en la fase de inicio y planeación del mismo. | T22: 0.03 | U22: 0.05 | V22: 0.05 | W22: 0.15 | X22: 0.15 | Y22: 0.15 | Z22: 0.15 | AA22: 0.15 | AB22: 0.12 | AC22: 1 | AD22: Fortalecimiento de los servicios digitales aumentando la capacidad para la transformación digital e interacción con el ciudadano | AE22: 130-1 130-2 130-4 | AF22: POL-07 Gobierno Digital | AG22: POL-08 Seguridad Digital | AQ22: 0.03 | AR22: Se elabora el Acta de constitución del proyecto y se inicia la construcción del Plan de trabajo del proyecto. | AS22: 0.2 | AT22: Durante el periodo del presente reporte se estableció el alcance del proyecto con la definición de un plan de trabajo para el desarrollo de cada uno de los productos | AU22: =AS22+20% -> 0.4 | AV22: Porcentaje de avance total del proyecto 40%. avances sustentado en la finalización de las actividades de Inicio y planeación del proyecto 100%, diligenciamiento de la Lista de chequeo y Herramienta de diagnóstico del nivel de madurez en un 60%, el repositorio de AE se encuentra en proceso de estructuración y montaje de diseño | AW22: 0.0065 | AX22: Con avance y en terminos | AY22: 0.02 | AZ22: =AU22+10% -> 0.5 | BA22: Porcentaje Acumulado 50% Avances en el diligenciamiento de la Lista de chequeo en un 100%, se avanza en el proceso de estructuración y montaje de diseño del repositorio de AE en los dominios del modelo de AE, Se inicia la elaboración del Plan de trabajo con los diferentes dominios | BB22: 0.5 | BC22: Avance acumulado del 71% Finaliza la actividad realizar el diagnóstico del nivel de madurez de AE, Se avanza en la elaboración del Plan de trabajo con todo el equipo y se llega a la formulación completa del plan; Se elabora la matriz de seguimiento al plan de trabajo y se inicia con el seguimiento del mes de agosto y Se realiza la aceptación de entregables del dominio de sistemas de información. | BD22: 0.76 | BE22: Se avanza con el seguimiento del mes de septiembre al Plan de Trabajo, Finaliza la estructuración y montaje de diseño del repositorio de AE, Se reciben entregables del dominio institucional para revisión. | BF22: 0.029 | BG22: Con avance y en terminos | BH22: 0.038 | BI22: 0.82 | BJ22: Se realiza seguimiento al plan de trabajo del mes de octubre, Se actualiza la documentación del repositorio de AE relacionada con los dominios Institucional y Sistemas de Información. El proyecto tiene un avance total del 82%. | BK22: 0.87 | BL22: Se realizan reuniones de seguimiento de actividades específicas del dominio de tecnología, sistemas de información y seguridad. Se actualiza la documentación del repositorio de AE. El proyecto tiene un avance total del 87%. | BM22: 1 | BN22: 100% acumulado del proyecto finalizaron las actividades previstas para dar cumplimiento a la programación de la vigencia y se realizaron las actividades de cierre (informe final del proyecto y lecciones aprendidas) | BO22: 0.05 | BP22: Ejecutada | BQ22: 0.05
E23: 2.Consolidar la modernización de la entidad para fortalecer la planeación minero energética del país y el rol como el CIO del sector. | F23: 5.Fortalecer la gobernanza de la información, mediante la adopción de herramientas tecnológicas que faciliten la gestión adecuada de los datos e información para la planeación y la investigación. (Obj. 1, 2 y 3) | G23: Fortalecer los 5 dominios de Arquitectura empresarial como gestión de proyectos TI | H23: Plan Estratégico de Tecnologías de la Información y las Comunicaciones PETI | J23: Plan Estratégico de Tecnologías de la Información - PETI, implementado | L23: 1 | M23: Actividades del proyecto ejecutadas | N23: 0.05 | O23: 130-4-8 | P23: Adelantar acciones que permitan avanzar en la transformación digital de la Entidad a través de la ejecución del proyecto: "11 Explorar tecnologías disruptivas o emergentes que puedan aportar en la transformación digital de la Entidad e innovación de sus procesos a través del concepto de I+D+I.", formulado en el PETI 2024-2026, de acuerdo con el alcance que se defina para el 2024, en la fase de inicio y planeación del mismo. | T23: 0.03 | U23: 0.05 | V23: 0.05 | W23: 0.15 | X23: 0.15 | Y23: 0.15 | Z23: 0.15 | AA23: 0.15 | AB23: 0.12 | AC23: 1 | AD23: Fortalecimiento de los servicios digitales aumentando la capacidad para la transformación digital e interacción con el ciudadano | AE23: 130-1 130-2 130-4 | AF23: POL-07 Gobierno Digital | AG23: POL-08 Seguridad Digital | AQ23: 0.03 | AR23: Se formalizó el inicio del proyecto a través de la elaboración del Acta de Constitución de Proyectos documento que presenta a alto nivel los objetivos, el alcance, productos, la justificación, los recursos requeridos, las restricciones, productos, y riesgos del proyecto, es una guía interna para el equipo del proyecto y sirve de instrumento de comunicación del alcance a las partes interesadas. | AS23: 0.2 | AT23: Se realizaron reuniones con Google para presentación de su IA y posible aplicación en la UPME. Se inició contrato con Andrés Ducuara para la incorporación de tecnologías emergentes. Durante el periodo del presente reporte se estableció el alcance del proyecto con la definición de un plan de trabajo para el desarrollo de cada uno de los productos | AU23: =AS23+13.3% -> 0.333 | AV23: Porcentaje Acumulado del Proyecto 33.10% , asociado al avance en las siguientes actividades: Acta de constitución, cronograma, inicio de desarrollo del estado del arte de cada uno de los proyectos piloto PQRS y XM , piloto local para PQRS. | AW23: 0.0065 | AX23: Con avance y en terminos | AY23: 0.01665 | AZ23: =AU23+5.36% -> 0.3866 | BA23: Pocentaje: 38.66%. Se iniciaron los preparativos para la implementacion del piloto de PQRS. Se decidió un camino determinado para XM teniendo en cuenta su re planteamiento | BB23: 0.39 | BC23: Avance acumulado 41.66%Se entrego para revisión el estado del arte del piloto 1: XM. Y se inicio la fase de despliegue del proyecto 2 PQR para evaluarlo. | BD23: 0.501 | BE23: Finalizó el piloto de XM y se trabajó en la implementación de PQRS | BF23: 0.029 | BG23: Con rezago | BH23: 0.02505 | BI23: 0.54 | BJ23: Inició piloto de XM y solventaron problemas con LLM en los dos proyectos | BK23: 0.61 | BL23: Finalizaron los pilotos de PQRS y de XM, dando inicio a las etapa de análisis y resultados. | BM23: 1 | BN23: 100% acumulado ael proyecto finalizaron las actividades previstas para dar cumplimiento a la programación de la vigencia y se realizaron las actividades de cierre (informe final del proyecto y lecciones aprendidas) | BO23: 0.05 | BP23: Ejecutada | BQ23: 0.05
